Workbook

Sheet AVISO LEGAL
G2: Fecha de actualización: | I2: 2020-05-12
I23: www.ree.es

Sheet Potencia nacional
L1: 2
J5: Sistema / C.Autónoma
J6: Periodo
C8: =OFFSET(Potencia!C66,0,($L$1-1)*10) -> 2016 | D8: =OFFSET(Potencia!D66,0,($L$1-1)*10) -> 2017 | E8: =OFFSET(Potencia!E66,0,($L$1-1)*10) -> 2018 | F8: =OFFSET(Potencia!F66,0,($L$1-1)*10) -> 2019 | G8: =OFFSET(Potencia!G66,0,($L$1-1)*10) -> 2020 | H8: =OFFSET(Potencia!H66,0,($L$1-1)*10) -> 2021 | I8: =OFFSET(Potencia!I66,0,($L$1-1)*10) -> 2022 | J8: =OFFSET(Potencia!J66,0,($L$1-1)*10) -> 2023 | K8: =OFFSET(Potencia!K66,0,($L$1-1)*10) -> 2024 | L8: =OFFSET(Potencia!L66,0,($L$1-1)*10) -> 2025
B10: Hidráulica convencional y mixta | C10: =OFFSET(Potencia!C67,0,($L$1-1)*10) -> 17030.39663 | D10: =OFFSET(Potencia!D67,0,($L$1-1)*10) -> 17027.55963 | E10: =OFFSET(Potencia!E67,0,($L$1-1)*10) -> 17046.37123 | F10: =OFFSET(Potencia!F67,0,($L$1-1)*10) -> 17084.77323 | G10: =OFFSET(Potencia!G67,0,($L$1-1)*10) -> 17084.77323 | H10: =OFFSET(Potencia!H67,0,($L$1-1)*10) -> - | I10: =OFFSET(Potencia!I67,0,($L$1-1)*10) -> - | J10: =OFFSET(Potencia!J67,0,($L$1-1)*10) -> - | K10: =OFFSET(Potencia!K67,0,($L$1-1)*10) -> - | L10: =OFFSET(Potencia!L67,0,($L$1-1)*10) -> -
B11: Bombeo puro | C11: =OFFSET(Potencia!C68,0,($L$1-1)*10) -> 3328.89 | D11: =OFFSET(Potencia!D68,0,($L$1-1)*10) -> 3328.89 | E11: =OFFSET(Potencia!E68,0,($L$1-1)*10) -> 3328.89 | F11: =OFFSET(Potencia!F68,0,($L$1-1)*10) -> 3328.89 | G11: =OFFSET(Potencia!G68,0,($L$1-1)*10) -> 3328.89 | H11: =OFFSET(Potencia!H68,0,($L$1-1)*10) -> - | I11: =OFFSET(Potencia!I68,0,($L$1-1)*10) -> - | J11: =OFFSET(Potencia!J68,0,($L$1-1)*10) -> - | K11: =OFFSET(Potencia!K68,0,($L$1-1)*10) -> - | L11: =OFFSET(Potencia!L68,0,($L$1-1)*10) -> -
B12: Nuclear | C12: =OFFSET(Potencia!C69,0,($L$1-1)*10) -> 7572.58 | D12: =OFFSET(Potencia!D69,0,($L$1-1)*10) -> 7117.29 | E12: =OFFSET(Potencia!E69,0,($L$1-1)*10) -> 7117.29 | F12: =OFFSET(Potencia!F69,0,($L$1-1)*10) -> 7117.29 | G12: =OFFSET(Potencia!G69,0,($L$1-1)*10) -> 7117.29 | H12: =OFFSET(Potencia!H69,0,($L$1-1)*10) -> - | I12: =OFFSET(Potencia!I69,0,($L$1-1)*10) -> - | J12: =OFFSET(Potencia!J69,0,($L$1-1)*10) -> - | K12: =OFFSET(Potencia!K69,0,($L$1-1)*10) -> - | L12: =OFFSET(Potencia!L69,0,($L$1-1)*10) -> -
B13: Carbón | C13: =OFFSET(Potencia!C70,0,($L$1-1)*10) -> 10004.27 | D13: =OFFSET(Potencia!D70,0,($L$1-1)*10) -> 10004.27 | E13: =OFFSET(Potencia!E70,0,($L$1-1)*10) -> 10030.285 | F13: =OFFSET(Potencia!F70,0,($L$1-1)*10) -> 9683.445 | G13: =OFFSET(Potencia!G70,0,($L$1-1)*10) -> 9456.245 | H13: =OFFSET(Potencia!H70,0,($L$1-1)*10) -> - | I13: =OFFSET(Potencia!I70,0,($L$1-1)*10) -> - | J13: =OFFSET(Potencia!J70,0,($L$1-1)*10) -> - | K13: =OFFSET(Potencia!K70,0,($L$1-1)*10) -> - | L13: =OFFSET(Potencia!L70,0,($L$1-1)*10) -> -
B14: Fuel + Gas | C14: =OFFSET(Potencia!C71,0,($L$1-1)*10) -> 2490.06 | D14: =OFFSET(Potencia!D71,0,($L$1-1)*10) -> 2490.06 | E14: =OFFSET(Potencia!E71,0,($L$1-1)*10) -> 2490.06 | F14: =OFFSET(Potencia!F71,0,($L$1-1)*10) -> 2447.46 | G14: =OFFSET(Potencia!G71,0,($L$1-1)*10) -> 2447.46 | H14: =OFFSET(Potencia!H71,0,($L$1-1)*10) -> - | I14: =OFFSET(Potencia!I71,0,($L$1-1)*10) -> - | J14: =OFFSET(Potencia!J71,0,($L$1-1)*10) -> - | K14: =OFFSET(Potencia!K71,0,($L$1-1)*10) -> - | L14: =OFFSET(Potencia!L71,0,($L$1-1)*10) -> -
B15: Ciclo combinado | C15: =OFFSET(Potencia!C72,0,($L$1-1)*10) -> 26669.86 | D15: =OFFSET(Potencia!D72,0,($L$1-1)*10) -> 26669.86 | E15: =OFFSET(Potencia!E72,0,($L$1-1)*10) -> 26284.01 | F15: =OFFSET(Potencia!F72,0,($L$1-1)*10) -> 26284.01 | G15: =OFFSET(Potencia!G72,0,($L$1-1)*10) -> 26284.01 | H15: =OFFSET(Potencia!H72,0,($L$1-1)*10) -> - | I15: =OFFSET(Potencia!I72,0,($L$1-1)*10) -> - | J15: =OFFSET(Potencia!J72,0,($L$1-1)*10) -> - | K15: =OFFSET(Potencia!K72,0,($L$1-1)*10) -> - | L15: =OFFSET(Potencia!L72,0,($L$1-1)*10) -> -
B16: Hidroeólica | C16: =OFFSET(Potencia!C73,0,($L$1-1)*10) -> 11.39 | D16: =OFFSET(Potencia!D73,0,($L$1-1)*10) -> 11.39 | E16: =OFFSET(Potencia!E73,0,($L$1-1)*10) -> 11.39 | F16: =OFFSET(Potencia!F73,0,($L$1-1)*10) -> 11.39 | G16: =OFFSET(Potencia!G73,0,($L$1-1)*10) -> 11.39 | H16: =OFFSET(Potencia!H73,0,($L$1-1)*10) -> - | I16: =OFFSET(Potencia!I73,0,($L$1-1)*10) -> - | J16: =OFFSET(Potencia!J73,0,($L$1-1)*10) -> - | K16: =OFFSET(Potencia!K73,0,($L$1-1)*10) -> - | L16: =OFFSET(Potencia!L73,0,($L$1-1)*10) -> -
B17: Resto hidráulica (1) | C17: =OFFSET(Potencia!C74,0,($L$1-1)*10) -> - | D17: =OFFSET(Potencia!D74,0,($L$1-1)*10) -> - | E17: =OFFSET(Potencia!E74,0,($L$1-1)*10) -> - | F17: =OFFSET(Potencia!F74,0,($L$1-1)*10) -> - | G17: =OFFSET(Potencia!G74,0,($L$1-1)*10) -> - | H17: =OFFSET(Potencia!H74,0,($L$1-1)*10) -> - | I17: =OFFSET(Potencia!I74,0,($L$1-1)*10) -> - | J17: =OFFSET(Potencia!J74,0,($L$1-1)*10) -> - | K17: =OFFSET(Potencia!K74,0,($L$1-1)*10) -> - | L17: =OFFSET(Potencia!L74,0,($L$1-1)*10) -> -
B18: Eólica | C18: =OFFSET(Potencia!C75,0,($L$1-1)*10) -> 23001.35965 | D18: =OFFSET(Potencia!D75,0,($L$1-1)*10) -> 23081.76725 | E18: =OFFSET(Potencia!E75,0,($L$1-1)*10) -> 23545.3905 | F18: =OFFSET(Potencia!F75,0,($L$1-1)*10) -> 25799.1995 | G18: =OFFSET(Potencia!G75,0,($L$1-1)*10) -> 25901.88486 | H18: =OFFSET(Potencia!H75,0,($L$1-1)*10) -> - | I18: =OFFSET(Potencia!I75,0,($L$1-1)*10) -> - | J18: =OFFSET(Potencia!J75,0,($L$1-1)*10) -> - | K18: =OFFSET(Potencia!K75,0,($L$1-1)*10) -> - | L18: =OFFSET(Potencia!L75,0,($L$1-1)*10) -> -
B19: Solar fotovoltaica | C19: =OFFSET(Potencia!C76,0,($L$1-1)*10) -> 4682.868246 | D19: =OFFSET(Potencia!D76,0,($L$1-1)*10) -> 4685.38299 | E19: =OFFSET(Potencia!E76,0,($L$1-1)*10) -> 4711.631755 | F19: =OFFSET(Potencia!F76,0,($L$1-1)*10) -> 8912.60284 | G19: =OFFSET(Potencia!G76,0,($L$1-1)*10) -> 9145.77473 | H19: =OFFSET(Potencia!H76,0,($L$1-1)*10) -> - | I19: =OFFSET(Potencia!I76,0,($L$1-1)*10) -> - | J19: =OFFSET(Potencia!J76,0,($L$1-1)*10) -> - | K19: =OFFSET(Potencia!K76,0,($L$1-1)*10) -> - | L19: =OFFSET(Potencia!L76,0,($L$1-1)*10) -> -
B20: Solar térmica | C20: =OFFSET(Potencia!C77,0,($L$1-1)*10) -> 2304.013 | D20: =OFFSET(Potencia!D77,0,($L$1-1)*10) -> 2304.013 | E20: =OFFSET(Potencia!E77,0,($L$1-1)*10) -> 2304.013 | F20: =OFFSET(Potencia!F77,0,($L$1-1)*10) -> 2304.013 | G20: =OFFSET(Potencia!G77,0,($L$1-1)*10) -> 2304.013 | H20: =OFFSET(Potencia!H77,0,($L$1-1)*10) -> - | I20: =OFFSET(Potencia!I77,0,($L$1-1)*10) -> - | J20: =OFFSET(Potencia!J77,0,($L$1-1)*10) -> - | K20: =OFFSET(Potencia!K77,0,($L$1-1)*10) -> - | L20: =OFFSET(Potencia!L77,0,($L$1-1)*10) -> -
B21: Térmica renovable/Otras renovables (2) | C21: =OFFSET(Potencia!C78,0,($L$1-1)*10) -> 870.401 | D21: =OFFSET(Potencia!D78,0,($L$1-1)*10) -> 872.127 | E21: =OFFSET(Potencia!E78,0,($L$1-1)*10) -> 876.798 | F21: =OFFSET(Potencia!F78,0,($L$1-1)*10) -> 1076.467 | G21: =OFFSET(Potencia!G78,0,($L$1-1)*10) -> 1075.967 | H21: =OFFSET(Potencia!H78,0,($L$1-1)*10) -> - | I21: =OFFSET(Potencia!I78,0,($L$1-1)*10) -> - | J21: =OFFSET(Potencia!J78,0,($L$1-1)*10) -> - | K21: =OFFSET(Potencia!K78,0,($L$1-1)*10) -> - | L21: =OFFSET(Potencia!L78,0,($L$1-1)*10) -> -
B22: Térmica no renovable/Cogeneración y resto/Cogeneración (3) | C22: =OFFSET(Potencia!C79,0,($L$1-1)*10) -> 5965.04461 | D22: =OFFSET(Potencia!D79,0,($L$1-1)*10) -> 5800.95961 | E22: =OFFSET(Potencia!E79,0,($L$1-1)*10) -> 5727.1265 | F22: =OFFSET(Potencia!F79,0,($L$1-1)*10) -> 5676.9325 | G22: =OFFSET(Potencia!G79,0,($L$1-1)*10) -> 5672.2765 | H22: =OFFSET(Potencia!H79,0,($L$1-1)*10) -> - | I22: =OFFSET(Potencia!I79,0,($L$1-1)*10) -> - | J22: =OFFSET(Potencia!J79,0,($L$1-1)*10) -> - | K22: =OFFSET(Potencia!K79,0,($L$1-1)*10) -> - | L22: =OFFSET(Potencia!L79,0,($L$1-1)*10) -> -
B23: Residuos no renovables(4) | C23: =OFFSET(Potencia!C80,0,($L$1-1)*10) -> 496.1395 | D23: =OFFSET(Potencia!D80,0,($L$1-1)*10) -> 496.1395 | E23: =OFFSET(Potencia!E80,0,($L$1-1)*10) -> 489.6115 | F23: =OFFSET(Potencia!F80,0,($L$1-1)*10) -> 489.6115 | G23: =OFFSET(Potencia!G80,0,($L$1-1)*10) -> 489.6115 | H23: =OFFSET(Potencia!H80,0,($L$1-1)*10) -> - | I23: =OFFSET(Potencia!I80,0,($L$1-1)*10) -> - | J23: =OFFSET(Potencia!J80,0,($L$1-1)*10) -> - | K23: =OFFSET(Potencia!K80,0,($L$1-1)*10) -> - | L23: =OFFSET(Potencia!L80,0,($L$1-1)*10) -> -
B24: Residuos renovables(4) | C24: =OFFSET(Potencia!C81,0,($L$1-1)*10) -> 160.2755 | D24: =OFFSET(Potencia!D81,0,($L$1-1)*10) -> 160.2755 | E24: =OFFSET(Potencia!E81,0,($L$1-1)*10) -> 160.2755 | F24: =OFFSET(Potencia!F81,0,($L$1-1)*10) -> 160.2755 | G24: =OFFSET(Potencia!G81,0,($L$1-1)*10) -> 160.2755 | H24: =OFFSET(Potencia!H81,0,($L$1-1)*10) -> - | I24: =OFFSET(Potencia!I81,0,($L$1-1)*10) -> - | J24: =OFFSET(Potencia!J81,0,($L$1-1)*10) -> - | K24: =OFFSET(Potencia!K81,0,($L$1-1)*10) -> - | L24: =OFFSET(Potencia!L81,0,($L$1-1)*10) -> -
B25: Total | C25: =OFFSET(Potencia!C82,0,($L$1-1)*10) -> 104587.5481 | D25: =OFFSET(Potencia!D82,0,($L$1-1)*10) -> 104049.9845 | E25: =OFFSET(Potencia!E82,0,($L$1-1)*10) -> 104123.143 | F25: =OFFSET(Potencia!F82,0,($L$1-1)*10) -> 110376.3601 | G25: =OFFSET(Potencia!G82,0,($L$1-1)*10) -> 110479.8613 | H25: =OFFSET(Potencia!H82,0,($L$1-1)*10) -> - | I25: =OFFSET(Potencia!I82,0,($L$1-1)*10) -> - | J25: =OFFSET(Potencia!J82,0,($L$1-1)*10) -> - | K25: =OFFSET(Potencia!K82,0,($L$1-1)*10) -> - | L25: =OFFSET(Potencia!L82,0,($L$1-1)*10) -> -
B26: (1) Incluye todas aquellas unidades menores de 50 MW que no pertenecen a ninguna unidad de gestión hidráulica (UGH). A partir de 2015 están incluidas en hidráulica convencional y mixta.
B27: (2) Otras renovables incluyen biogás, biomasa, hidráulica marina y geotérmica. Los valores de potencia incluyen residuos hasta el 31/12/2014.
B28: (3) Los valores de potencia incluyen residuos hasta el 31/12/2014.
B29: (4) Potencia incluída en térmica renovable y térmica no renovable/cogeneración y resto/cogeneración hasta el 31/12/2014.
B30: Fuente: Comisión Nacional de los Mercados y la Competencia (CNMC) hasta 2014 en: resto hidráulica, eólica, solar fotovoltaica, solar térmica, térmica renovable/otras renovables, térmica no renovable/cogeneración y resto/cogeneración y residuos.
B31: Datos a 31 de diciembre.
B32: =IF(L1=2,IF(MONTH(FACT)=1,"",(CONCATENATE("(*) Para el año ",YEAR(FACT), " datos a ",TEXT(FACT-30,"mmmm")," de ",YEAR(FACT),"."))),"") -> (*) Para el año 2020 datos a abril de 2020.

Sheet Potencia peninsular
L1: 4
J5: Sistema / C.Autónoma
J6: Periodo
C8: =OFFSET(Potencia!C2,0,($L$1-1)*10) -> 2020 | D8: =OFFSET(Potencia!D2,0,($L$1-1)*10) -> 2021 | E8: =OFFSET(Potencia!E2,0,($L$1-1)*10) -> 2022 | F8: =OFFSET(Potencia!F2,0,($L$1-1)*10) -> 2023 | G8: =OFFSET(Potencia!G2,0,($L$1-1)*10) -> 2024 | H8: =OFFSET(Potencia!H2,0,($L$1-1)*10) -> 2025 | I8: =OFFSET(Potencia!I2,0,($L$1-1)*10) -> 2026 | J8: =OFFSET(Potencia!J2,0,($L$1-1)*10) -> 2027 | K8: =OFFSET(Potencia!K2,0,($L$1-1)*10) -> 2028 | L8: =OFFSET(Potencia!L2,0,($L$1-1)*10) -> 2029
B10: Hidráulica convencional y mixta | C10: =OFFSET(Potencia!C3,0,($L$1-1)*10) -> 17082.75323 | D10: =OFFSET(Potencia!D3,0,($L$1-1)*10) -> - | E10: =OFFSET(Potencia!E3,0,($L$1-1)*10) -> - | F10: =OFFSET(Potencia!F3,0,($L$1-1)*10) -> - | G10: =OFFSET(Potencia!G3,0,($L$1-1)*10) -> - | H10: =OFFSET(Potencia!H3,0,($L$1-1)*10) -> - | I10: =OFFSET(Potencia!I3,0,($L$1-1)*10) -> - | J10: =OFFSET(Potencia!J3,0,($L$1-1)*10) -> - | K10: =OFFSET(Potencia!K3,0,($L$1-1)*10) -> - | L10: =OFFSET(Potencia!L3,0,($L$1-1)*10) -> -
B11: Bombeo puro | C11: =OFFSET(Potencia!C4,0,($L$1-1)*10) -> 3328.89 | D11: =OFFSET(Potencia!D4,0,($L$1-1)*10) -> - | E11: =OFFSET(Potencia!E4,0,($L$1-1)*10) -> - | F11: =OFFSET(Potencia!F4,0,($L$1-1)*10) -> - | G11: =OFFSET(Potencia!G4,0,($L$1-1)*10) -> - | H11: =OFFSET(Potencia!H4,0,($L$1-1)*10) -> - | I11: =OFFSET(Potencia!I4,0,($L$1-1)*10) -> - | J11: =OFFSET(Potencia!J4,0,($L$1-1)*10) -> - | K11: =OFFSET(Potencia!K4,0,($L$1-1)*10) -> - | L11: =OFFSET(Potencia!L4,0,($L$1-1)*10) -> -
B12: Nuclear | C12: =OFFSET(Potencia!C5,0,($L$1-1)*10) -> 7117.29 | D12: =OFFSET(Potencia!D5,0,($L$1-1)*10) -> - | E12: =OFFSET(Potencia!E5,0,($L$1-1)*10) -> - | F12: =OFFSET(Potencia!F5,0,($L$1-1)*10) -> - | G12: =OFFSET(Potencia!G5,0,($L$1-1)*10) -> - | H12: =OFFSET(Potencia!H5,0,($L$1-1)*10) -> - | I12: =OFFSET(Potencia!I5,0,($L$1-1)*10) -> - | J12: =OFFSET(Potencia!J5,0,($L$1-1)*10) -> - | K12: =OFFSET(Potencia!K5,0,($L$1-1)*10) -> - | L12: =OFFSET(Potencia!L5,0,($L$1-1)*10) -> -
B13: Carbón | C13: =OFFSET(Potencia!C6,0,($L$1-1)*10) -> 9215.045 | D13: =OFFSET(Potencia!D6,0,($L$1-1)*10) -> - | E13: =OFFSET(Potencia!E6,0,($L$1-1)*10) -> - | F13: =OFFSET(Potencia!F6,0,($L$1-1)*10) -> - | G13: =OFFSET(Potencia!G6,0,($L$1-1)*10) -> - | H13: =OFFSET(Potencia!H6,0,($L$1-1)*10) -> - | I13: =OFFSET(Potencia!I6,0,($L$1-1)*10) -> - | J13: =OFFSET(Potencia!J6,0,($L$1-1)*10) -> - | K13: =OFFSET(Potencia!K6,0,($L$1-1)*10) -> - | L13: =OFFSET(Potencia!L6,0,($L$1-1)*10) -> -
B14: Fuel + Gas | C14: =OFFSET(Potencia!C7,0,($L$1-1)*10) -> - | D14: =OFFSET(Potencia!D7,0,($L$1-1)*10) -> - | E14: =OFFSET(Potencia!E7,0,($L$1-1)*10) -> - | F14: =OFFSET(Potencia!F7,0,($L$1-1)*10) -> - | G14: =OFFSET(Potencia!G7,0,($L$1-1)*10) -> - | H14: =OFFSET(Potencia!H7,0,($L$1-1)*10) -> - | I14: =OFFSET(Potencia!I7,0,($L$1-1)*10) -> - | J14: =OFFSET(Potencia!J7,0,($L$1-1)*10) -> - | K14: =OFFSET(Potencia!K7,0,($L$1-1)*10) -> - | L14: =OFFSET(Potencia!L7,0,($L$1-1)*10) -> -
B15: Ciclo combinado | C15: =OFFSET(Potencia!C8,0,($L$1-1)*10) -> 24561.86 | D15: =OFFSET(Potencia!D8,0,($L$1-1)*10) -> - | E15: =OFFSET(Potencia!E8,0,($L$1-1)*10) -> - | F15: =OFFSET(Potencia!F8,0,($L$1-1)*10) -> - | G15: =OFFSET(Potencia!G8,0,($L$1-1)*10) -> - | H15: =OFFSET(Potencia!H8,0,($L$1-1)*10) -> - | I15: =OFFSET(Potencia!I8,0,($L$1-1)*10) -> - | J15: =OFFSET(Potencia!J8,0,($L$1-1)*10) -> - | K15: =OFFSET(Potencia!K8,0,($L$1-1)*10) -> - | L15: =OFFSET(Potencia!L8,0,($L$1-1)*10) -> -
B16: Resto hidráulica (1) | C16: =OFFSET(Potencia!C9,0,($L$1-1)*10) -> - | D16: =OFFSET(Potencia!D9,0,($L$1-1)*10) -> - | E16: =OFFSET(Potencia!E9,0,($L$1-1)*10) -> - | F16: =OFFSET(Potencia!F9,0,($L$1-1)*10) -> - | G16: =OFFSET(Potencia!G9,0,($L$1-1)*10) -> - | H16: =OFFSET(Potencia!H9,0,($L$1-1)*10) -> - | I16: =OFFSET(Potencia!I9,0,($L$1-1)*10) -> - | J16: =OFFSET(Potencia!J9,0,($L$1-1)*10) -> - | K16: =OFFSET(Potencia!K9,0,($L$1-1)*10) -> - | L16: =OFFSET(Potencia!L9,0,($L$1-1)*10) -> -
B17: Eólica | C17: =OFFSET(Potencia!C10,0,($L$1-1)*10) -> 25467.93236 | D17: =OFFSET(Potencia!D10,0,($L$1-1)*10) -> - | E17: =OFFSET(Potencia!E10,0,($L$1-1)*10) -> - | F17: =OFFSET(Potencia!F10,0,($L$1-1)*10) -> - | G17: =OFFSET(Potencia!G10,0,($L$1-1)*10) -> - | H17: =OFFSET(Potencia!H10,0,($L$1-1)*10) -> - | I17: =OFFSET(Potencia!I10,0,($L$1-1)*10) -> - | J17: =OFFSET(Potencia!J10,0,($L$1-1)*10) -> - | K17: =OFFSET(Potencia!K10,0,($L$1-1)*10) -> - | L17: =OFFSET(Potencia!L10,0,($L$1-1)*10) -> -
B18: Solar fotovoltaica | C18: =OFFSET(Potencia!C11,0,($L$1-1)*10) -> 8897.73687 | D18: =OFFSET(Potencia!D11,0,($L$1-1)*10) -> - | E18: =OFFSET(Potencia!E11,0,($L$1-1)*10) -> - | F18: =OFFSET(Potencia!F11,0,($L$1-1)*10) -> - | G18: =OFFSET(Potencia!G11,0,($L$1-1)*10) -> - | H18: =OFFSET(Potencia!H11,0,($L$1-1)*10) -> - | I18: =OFFSET(Potencia!I11,0,($L$1-1)*10) -> - | J18: =OFFSET(Potencia!J11,0,($L$1-1)*10) -> - | K18: =OFFSET(Potencia!K11,0,($L$1-1)*10) -> - | L18: =OFFSET(Potencia!L11,0,($L$1-1)*10) -> -
B19: Solar térmica | C19: =OFFSET(Potencia!C12,0,($L$1-1)*10) -> 2304.013 | D19: =OFFSET(Potencia!D12,0,($L$1-1)*10) -> - | E19: =OFFSET(Potencia!E12,0,($L$1-1)*10) -> - | F19: =OFFSET(Potencia!F12,0,($L$1-1)*10) -> - | G19: =OFFSET(Potencia!G12,0,($L$1-1)*10) -> - | H19: =OFFSET(Potencia!H12,0,($L$1-1)*10) -> - | I19: =OFFSET(Potencia!I12,0,($L$1-1)*10) -> - | J19: =OFFSET(Potencia!J12,0,($L$1-1)*10) -> - | K19: =OFFSET(Potencia!K12,0,($L$1-1)*10) -> - | L19: =OFFSET(Potencia!L12,0,($L$1-1)*10) -> -
B20: Térmica renovable/Otras renovables (2) | C20: =OFFSET(Potencia!C13,0,($L$1-1)*10) -> 1070.141 | D20: =OFFSET(Potencia!D13,0,($L$1-1)*10) -> - | E20: =OFFSET(Potencia!E13,0,($L$1-1)*10) -> - | F20: =OFFSET(Potencia!F13,0,($L$1-1)*10) -> - | G20: =OFFSET(Potencia!G13,0,($L$1-1)*10) -> - | H20: =OFFSET(Potencia!H13,0,($L$1-1)*10) -> - | I20: =OFFSET(Potencia!I13,0,($L$1-1)*10) -> - | J20: =OFFSET(Potencia!J13,0,($L$1-1)*10) -> - | K20: =OFFSET(Potencia!K13,0,($L$1-1)*10) -> - | L20: =OFFSET(Potencia!L13,0,($L$1-1)*10) -> -
B21: Térmica no renovable/Cogeneración y resto/Cogeneración (3) | C21: =OFFSET(Potencia!C14,0,($L$1-1)*10) -> 5661.7895 | D21: =OFFSET(Potencia!D14,0,($L$1-1)*10) -> - | E21: =OFFSET(Potencia!E14,0,($L$1-1)*10) -> - | F21: =OFFSET(Potencia!F14,0,($L$1-1)*10) -> - | G21: =OFFSET(Potencia!G14,0,($L$1-1)*10) -> - | H21: =OFFSET(Potencia!H14,0,($L$1-1)*10) -> - | I21: =OFFSET(Potencia!I14,0,($L$1-1)*10) -> - | J21: =OFFSET(Potencia!J14,0,($L$1-1)*10) -> - | K21: =OFFSET(Potencia!K14,0,($L$1-1)*10) -> - | L21: =OFFSET(Potencia!L14,0,($L$1-1)*10) -> -
B22: Residuos no renovables(4) | C22: =OFFSET(Potencia!C15,0,($L$1-1)*10) -> 451.1275 | D22: =OFFSET(Potencia!D15,0,($L$1-1)*10) -> - | E22: =OFFSET(Potencia!E15,0,($L$1-1)*10) -> - | F22: =OFFSET(Potencia!F15,0,($L$1-1)*10) -> - | G22: =OFFSET(Potencia!G15,0,($L$1-1)*10) -> - | H22: =OFFSET(Potencia!H15,0,($L$1-1)*10) -> - | I22: =OFFSET(Potencia!I15,0,($L$1-1)*10) -> - | J22: =OFFSET(Potencia!J15,0,($L$1-1)*10) -> - | K22: =OFFSET(Potencia!K15,0,($L$1-1)*10) -> - | L22: =OFFSET(Potencia!L15,0,($L$1-1)*10) -> -
B23: Residuos renovables(4) | C23: =OFFSET(Potencia!C16,0,($L$1-1)*10) -> 121.7915 | D23: =OFFSET(Potencia!D16,0,($L$1-1)*10) -> - | E23: =OFFSET(Potencia!E16,0,($L$1-1)*10) -> - | F23: =OFFSET(Potencia!F16,0,($L$1-1)*10) -> - | G23: =OFFSET(Potencia!G16,0,($L$1-1)*10) -> - | H23: =OFFSET(Potencia!H16,0,($L$1-1)*10) -> - | I23: =OFFSET(Potencia!I16,0,($L$1-1)*10) -> - | J23: =OFFSET(Potencia!J16,0,($L$1-1)*10) -> - | K23: =OFFSET(Potencia!K16,0,($L$1-1)*10) -> - | L23: =OFFSET(Potencia!L16,0,($L$1-1)*10) -> -
B24: Total | C24: =OFFSET(Potencia!C17,0,($L$1-1)*10) -> 105280.37 | D24: =OFFSET(Potencia!D17,0,($L$1-1)*10) -> - | E24: =OFFSET(Potencia!E17,0,($L$1-1)*10) -> - | F24: =OFFSET(Potencia!F17,0,($L$1-1)*10) -> - | G24: =OFFSET(Potencia!G17,0,($L$1-1)*10) -> - | H24: =OFFSET(Potencia!H17,0,($L$1-1)*10) -> - | I24: =OFFSET(Potencia!I17,0,($L$1-1)*10) -> - | J24: =OFFSET(Potencia!J17,0,($L$1-1)*10) -> - | K24: =OFFSET(Potencia!K17,0,($L$1-1)*10) -> - | L24: =OFFSET(Potencia!L17,0,($L$1-1)*10) -> -
B25: (1) Incluye todas aquellas unidades menores de 50 MW que no pertenecen a ninguna unidad de gestión hidráulica (UGH). A partir de 2015 están incluidas en hidráulica convencional y mixta.
B26: (2) Otras renovables incluyen biogás, biomasa, hidráulica marina y geotérmica. Los valores de potencia incluyen residuos hasta el 31/12/2014.
B27: (3) Los valores de potencia incluyen residuos hasta el 31/12/2014.
B28: (4) Potencia incluída en térmica renovable y térmica no renovable/cogeneración y resto/cogeneración hasta el 31/12/2014.
B29: Fuente: Comisión Nacional de los Mercados y la Competencia (CNMC) hasta 2014 en: resto hidráulica, eólica, solar fotovoltaica, solar térmica, térmica renovable/otras renovables, térmica no renovable/cogeneración y resto/cogeneración y residuos.
B30: Datos a 31 de diciembre.
B31: =IF(L1=3,IF(MONTH(FACT)=1,"",(CONCATENATE("(*) Para el año ",YEAR(FACT), " datos a ",TEXT(FACT-30,"mmmm")," de ",YEAR(FACT),"."))),"") -> 
B32: A partir del 1/1/2011 se incluye GICC (Elcogás) en carbón, anteriormente en fuel/gas. Según el R.D. 134/2010 esta central está obligada a participar, como unidad vendedora que utiliza carbón autóctono como combustible, en el proceso de resolucion de restricciones por garantía de suministro.

Sheet Potencia Baleares
L1: 2
J5: Sistema / C.Autónoma
J6: Periodo
C8: =OFFSET(Potencia!C19,0,($L$1-1)*10) -> 2016 | D8: =OFFSET(Potencia!D19,0,($L$1-1)*10) -> 2017 | E8: =OFFSET(Potencia!E19,0,($L$1-1)*10) -> 2018 | F8: =OFFSET(Potencia!F19,0,($L$1-1)*10) -> 2019 | G8: =OFFSET(Potencia!G19,0,($L$1-1)*10) -> 2020 | H8: =OFFSET(Potencia!H19,0,($L$1-1)*10) -> 2021 | I8: =OFFSET(Potencia!I19,0,($L$1-1)*10) -> 2022 | J8: =OFFSET(Potencia!J19,0,($L$1-1)*10) -> 2023 | K8: =OFFSET(Potencia!K19,0,($L$1-1)*10) -> 2024 | L8: =OFFSET(Potencia!L19,0,($L$1-1)*10) -> 2025
B10: Carbón | C10: =OFFSET(Potencia!C20,0,($L$1-1)*10) -> 468.4 | D10: =OFFSET(Potencia!D20,0,($L$1-1)*10) -> 468.4 | E10: =OFFSET(Potencia!E20,0,($L$1-1)*10) -> 468.4 | F10: =OFFSET(Potencia!F20,0,($L$1-1)*10) -> 468.4 | G10: =OFFSET(Potencia!G20,0,($L$1-1)*10) -> 241.2 | H10: =OFFSET(Potencia!H20,0,($L$1-1)*10) -> - | I10: =OFFSET(Potencia!I20,0,($L$1-1)*10) -> - | J10: =OFFSET(Potencia!J20,0,($L$1-1)*10) -> - | K10: =OFFSET(Potencia!K20,0,($L$1-1)*10) -> - | L10: =OFFSET(Potencia!L20,0,($L$1-1)*10) -> -
B11: Motores diesel | C11: =OFFSET(Potencia!C21,0,($L$1-1)*10) -> 182 | D11: =OFFSET(Potencia!D21,0,($L$1-1)*10) -> 182 | E11: =OFFSET(Potencia!E21,0,($L$1-1)*10) -> 182 | F11: =OFFSET(Potencia!F21,0,($L$1-1)*10) -> 139.4 | G11: =OFFSET(Potencia!G21,0,($L$1-1)*10) -> 139.4 | H11: =OFFSET(Potencia!H21,0,($L$1-1)*10) -> - | I11: =OFFSET(Potencia!I21,0,($L$1-1)*10) -> - | J11: =OFFSET(Potencia!J21,0,($L$1-1)*10) -> - | K11: =OFFSET(Potencia!K21,0,($L$1-1)*10) -> - | L11: =OFFSET(Potencia!L21,0,($L$1-1)*10) -> -
B12: Turbina de gas | C12: =OFFSET(Potencia!C22,0,($L$1-1)*10) -> 605.4 | D12: =OFFSET(Potencia!D22,0,($L$1-1)*10) -> 605.4 | E12: =OFFSET(Potencia!E22,0,($L$1-1)*10) -> 605.4 | F12: =OFFSET(Potencia!F22,0,($L$1-1)*10) -> 605.4 | G12: =OFFSET(Potencia!G22,0,($L$1-1)*10) -> 605.4 | H12: =OFFSET(Potencia!H22,0,($L$1-1)*10) -> - | I12: =OFFSET(Potencia!I22,0,($L$1-1)*10) -> - | J12: =OFFSET(Potencia!J22,0,($L$1-1)*10) -> - | K12: =OFFSET(Potencia!K22,0,($L$1-1)*10) -> - | L12: =OFFSET(Potencia!L22,0,($L$1-1)*10) -> -
B13: Fuel + Gas | C13: =OFFSET(Potencia!C23,0,($L$1-1)*10) -> 787.4 | D13: =OFFSET(Potencia!D23,0,($L$1-1)*10) -> 787.4 | E13: =OFFSET(Potencia!E23,0,($L$1-1)*10) -> 787.4 | F13: =OFFSET(Potencia!F23,0,($L$1-1)*10) -> 744.8 | G13: =OFFSET(Potencia!G23,0,($L$1-1)*10) -> 744.8 | H13: =OFFSET(Potencia!H23,0,($L$1-1)*10) -> - | I13: =OFFSET(Potencia!I23,0,($L$1-1)*10) -> - | J13: =OFFSET(Potencia!J23,0,($L$1-1)*10) -> - | K13: =OFFSET(Potencia!K23,0,($L$1-1)*10) -> - | L13: =OFFSET(Potencia!L23,0,($L$1-1)*10) -> -
B14: Ciclo combinado | C14: =OFFSET(Potencia!C24,0,($L$1-1)*10) -> 857.95 | D14: =OFFSET(Potencia!D24,0,($L$1-1)*10) -> 857.95 | E14: =OFFSET(Potencia!E24,0,($L$1-1)*10) -> 857.95 | F14: =OFFSET(Potencia!F24,0,($L$1-1)*10) -> 857.95 | G14: =OFFSET(Potencia!G24,0,($L$1-1)*10) -> 857.95 | H14: =OFFSET(Potencia!H24,0,($L$1-1)*10) -> - | I14: =OFFSET(Potencia!I24,0,($L$1-1)*10) -> - | J14: =OFFSET(Potencia!J24,0,($L$1-1)*10) -> - | K14: =OFFSET(Potencia!K24,0,($L$1-1)*10) -> - | L14: =OFFSET(Potencia!L24,0,($L$1-1)*10) -> -
B15: Generación auxiliar (1) | C15: =OFFSET(Potencia!C25,0,($L$1-1)*10) -> - | D15: =OFFSET(Potencia!D25,0,($L$1-1)*10) -> - | E15: =OFFSET(Potencia!E25,0,($L$1-1)*10) -> - | F15: =OFFSET(Potencia!F25,0,($L$1-1)*10) -> - | G15: =OFFSET(Potencia!G25,0,($L$1-1)*10) -> - | H15: =OFFSET(Potencia!H25,0,($L$1-1)*10) -> - | I15: =OFFSET(Potencia!I25,0,($L$1-1)*10) -> - | J15: =OFFSET(Potencia!J25,0,($L$1-1)*10) -> - | K15: =OFFSET(Potencia!K25,0,($L$1-1)*10) -> - | L15: =OFFSET(Potencia!L25,0,($L$1-1)*10) -> -
B16: Eólica | C16: =OFFSET(Potencia!C26,0,($L$1-1)*10) -> 3.6475 | D16: =OFFSET(Potencia!D26,0,($L$1-1)*10) -> 3.6475 | E16: =OFFSET(Potencia!E26,0,($L$1-1)*10) -> 3.6375 | F16: =OFFSET(Potencia!F26,0,($L$1-1)*10) -> 3.6375 | G16: =OFFSET(Potencia!G26,0,($L$1-1)*10) -> 3.6375 | H16: =OFFSET(Potencia!H26,0,($L$1-1)*10) -> - | I16: =OFFSET(Potencia!I26,0,($L$1-1)*10) -> - | J16: =OFFSET(Potencia!J26,0,($L$1-1)*10) -> - | K16: =OFFSET(Potencia!K26,0,($L$1-1)*10) -> - | L16: =OFFSET(Potencia!L26,0,($L$1-1)*10) -> -
B17: Solar fotovoltaica | C17: =OFFSET(Potencia!C27,0,($L$1-1)*10) -> 79.428215 | D17: =OFFSET(Potencia!D27,0,($L$1-1)*10) -> 79.997085 | E17: =OFFSET(Potencia!E27,0,($L$1-1)*10) -> 80.442745 | F17: =OFFSET(Potencia!F27,0,($L$1-1)*10) -> 80.871015 | G17: =OFFSET(Potencia!G27,0,($L$1-1)*10) -> 80.871015 | H17: =OFFSET(Potencia!H27,0,($L$1-1)*10) -> - | I17: =OFFSET(Potencia!I27,0,($L$1-1)*10) -> - | J17: =OFFSET(Potencia!J27,0,($L$1-1)*10) -> - | K17: =OFFSET(Potencia!K27,0,($L$1-1)*10) -> - | L17: =OFFSET(Potencia!L27,0,($L$1-1)*10) -> -
B18: Térmica renovable/Otras renovables (2) | C18: =OFFSET(Potencia!C28,0,($L$1-1)*10) -> 2.13 | D18: =OFFSET(Potencia!D28,0,($L$1-1)*10) -> 2.13 | E18: =OFFSET(Potencia!E28,0,($L$1-1)*10) -> 2.13 | F18: =OFFSET(Potencia!F28,0,($L$1-1)*10) -> 2.13 | G18: =OFFSET(Potencia!G28,0,($L$1-1)*10) -> 2.13 | H18: =OFFSET(Potencia!H28,0,($L$1-1)*10) -> - | I18: =OFFSET(Potencia!I28,0,($L$1-1)*10) -> - | J18: =OFFSET(Potencia!J28,0,($L$1-1)*10) -> - | K18: =OFFSET(Potencia!K28,0,($L$1-1)*10) -> - | L18: =OFFSET(Potencia!L28,0,($L$1-1)*10) -> -
B19: Térmica no renovable/Cogeneración y resto/Cogeneración (3) | C19: =OFFSET(Potencia!C29,0,($L$1-1)*10) -> 10.487 | D19: =OFFSET(Potencia!D29,0,($L$1-1)*10) -> 10.487 | E19: =OFFSET(Potencia!E29,0,($L$1-1)*10) -> 10.487 | F19: =OFFSET(Potencia!F29,0,($L$1-1)*10) -> 10.487 | G19: =OFFSET(Potencia!G29,0,($L$1-1)*10) -> 10.487 | H19: =OFFSET(Potencia!H29,0,($L$1-1)*10) -> - | I19: =OFFSET(Potencia!I29,0,($L$1-1)*10) -> - | J19: =OFFSET(Potencia!J29,0,($L$1-1)*10) -> - | K19: =OFFSET(Potencia!K29,0,($L$1-1)*10) -> - | L19: =OFFSET(Potencia!L29,0,($L$1-1)*10) -> -
B20: Residuos no renovables(4) | C20: =OFFSET(Potencia!C30,0,($L$1-1)*10) -> 37.4 | D20: =OFFSET(Potencia!D30,0,($L$1-1)*10) -> 37.4 | E20: =OFFSET(Potencia!E30,0,($L$1-1)*10) -> 37.4 | F20: =OFFSET(Potencia!F30,0,($L$1-1)*10) -> 37.4 | G20: =OFFSET(Potencia!G30,0,($L$1-1)*10) -> 37.4 | H20: =OFFSET(Potencia!H30,0,($L$1-1)*10) -> - | I20: =OFFSET(Potencia!I30,0,($L$1-1)*10) -> - | J20: =OFFSET(Potencia!J30,0,($L$1-1)*10) -> - | K20: =OFFSET(Potencia!K30,0,($L$1-1)*10) -> - | L20: =OFFSET(Potencia!L30,0,($L$1-1)*10) -> -
B21: Residuos renovables(4) | C21: =OFFSET(Potencia!C31,0,($L$1-1)*10) -> 37.4 | D21: =OFFSET(Potencia!D31,0,($L$1-1)*10) -> 37.4 | E21: =OFFSET(Potencia!E31,0,($L$1-1)*10) -> 37.4 | F21: =OFFSET(Potencia!F31,0,($L$1-1)*10) -> 37.4 | G21: =OFFSET(Potencia!G31,0,($L$1-1)*10) -> 37.4 | H21: =OFFSET(Potencia!H31,0,($L$1-1)*10) -> - | I21: =OFFSET(Potencia!I31,0,($L$1-1)*10) -> - | J21: =OFFSET(Potencia!J31,0,($L$1-1)*10) -> - | K21: =OFFSET(Potencia!K31,0,($L$1-1)*10) -> - | L21: =OFFSET(Potencia!L31,0,($L$1-1)*10) -> -
B22: Total | C22: =OFFSET(Potencia!C32,0,($L$1-1)*10) -> 2284.242715 | D22: =OFFSET(Potencia!D32,0,($L$1-1)*10) -> 2284.811585 | E22: =OFFSET(Potencia!E32,0,($L$1-1)*10) -> 2285.247245 | F22: =OFFSET(Potencia!F32,0,($L$1-1)*10) -> 2243.075515 | G22: =OFFSET(Potencia!G32,0,($L$1-1)*10) -> 2015.875515 | H22: =OFFSET(Potencia!H32,0,($L$1-1)*10) -> - | I22: =OFFSET(Potencia!I32,0,($L$1-1)*10) -> - | J22: =OFFSET(Potencia!J32,0,($L$1-1)*10) -> - | K22: =OFFSET(Potencia!K32,0,($L$1-1)*10) -> - | L22: =OFFSET(Potencia!L32,0,($L$1-1)*10) -> -
B23: (1) Grupos de emergencia que se instalan de forma transitoria en determinadas zonas para cubrir un déficit de generación.
B24: (2) Otras renovables incluyen biogás y biomasa. Los valores de potencia incluyen residuos hasta el 31/12/2014.
B25: (3) Los valores de potencia incluyen residuos hasta el 31/12/2014.
B26: (4) Potencia incluída en térmica renovable y térmica no renovable/cogeneración y resto/cogeneración hasta el 31/12/2014.
B27: Fuente: Comisión Nacional de los Mercados y la Competencia (CNMC) hasta 2014 en: eólica, solar fotovoltaica, térmica renovable/otras renovables, térmica no renovable/cogeneración y resto/cogeneración y residuos.
B28: Datos a 31 de diciembre.
B29: =IF(L1=2,IF(MONTH(FACT)=1,"",(CONCATENATE("(*) Para el año ",YEAR(FACT), " datos a ",TEXT(FACT-30,"mmmm")," de ",YEAR(FACT),"."))),"") -> (*) Para el año 2020 datos a abril de 2020.

Sheet Potencia Canarias
L1: 2
J5: Sistema / C.Autónoma
J6: Periodo
C8: =OFFSET(Potencia!C34,0,($L$1-1)*10) -> 2016 | D8: =OFFSET(Potencia!D34,0,($L$1-1)*10) -> 2017 | E8: =OFFSET(Potencia!E34,0,($L$1-1)*10) -> 2018 | F8: =OFFSET(Potencia!F34,0,($L$1-1)*10) -> 2019 | G8: =OFFSET(Potencia!G34,0,($L$1-1)*10) -> 2020 | H8: =OFFSET(Potencia!H34,0,($L$1-1)*10) -> 2021 | I8: =OFFSET(Potencia!I34,0,($L$1-1)*10) -> 2022 | J8: =OFFSET(Potencia!J34,0,($L$1-1)*10) -> 2023 | K8: =OFFSET(Potencia!K34,0,($L$1-1)*10) -> 2024 | L8: =OFFSET(Potencia!L34,0,($L$1-1)*10) -> 2025
B10: Hidráulica | C10: =OFFSET(Potencia!C35,0,($L$1-1)*10) -> 2.02 | D10: =OFFSET(Potencia!D35,0,($L$1-1)*10) -> 2.02 | E10: =OFFSET(Potencia!E35,0,($L$1-1)*10) -> 2.02 | F10: =OFFSET(Potencia!F35,0,($L$1-1)*10) -> 2.02 | G10: =OFFSET(Potencia!G35,0,($L$1-1)*10) -> 2.02 | H10: =OFFSET(Potencia!H35,0,($L$1-1)*10) -> - | I10: =OFFSET(Potencia!I35,0,($L$1-1)*10) -> - | J10: =OFFSET(Potencia!J35,0,($L$1-1)*10) -> - | K10: =OFFSET(Potencia!K35,0,($L$1-1)*10) -> - | L10: =OFFSET(Potencia!L35,0,($L$1-1)*10) -> -
B11: Motores diesel | C11: =OFFSET(Potencia!C36,0,($L$1-1)*10) -> 495.92 | D11: =OFFSET(Potencia!D36,0,($L$1-1)*10) -> 495.92 | E11: =OFFSET(Potencia!E36,0,($L$1-1)*10) -> 495.92 | F11: =OFFSET(Potencia!F36,0,($L$1-1)*10) -> 495.92 | G11: =OFFSET(Potencia!G36,0,($L$1-1)*10) -> 495.92 | H11: =OFFSET(Potencia!H36,0,($L$1-1)*10) -> - | I11: =OFFSET(Potencia!I36,0,($L$1-1)*10) -> - | J11: =OFFSET(Potencia!J36,0,($L$1-1)*10) -> - | K11: =OFFSET(Potencia!K36,0,($L$1-1)*10) -> - | L11: =OFFSET(Potencia!L36,0,($L$1-1)*10) -> -
B12: Turbina de gas | C12: =OFFSET(Potencia!C37,0,($L$1-1)*10) -> 557.14 | D12: =OFFSET(Potencia!D37,0,($L$1-1)*10) -> 557.14 | E12: =OFFSET(Potencia!E37,0,($L$1-1)*10) -> 557.14 | F12: =OFFSET(Potencia!F37,0,($L$1-1)*10) -> 557.14 | G12: =OFFSET(Potencia!G37,0,($L$1-1)*10) -> 557.14 | H12: =OFFSET(Potencia!H37,0,($L$1-1)*10) -> - | I12: =OFFSET(Potencia!I37,0,($L$1-1)*10) -> - | J12: =OFFSET(Potencia!J37,0,($L$1-1)*10) -> - | K12: =OFFSET(Potencia!K37,0,($L$1-1)*10) -> - | L12: =OFFSET(Potencia!L37,0,($L$1-1)*10) -> -
B13: Turbina de vapor | C13: =OFFSET(Potencia!C38,0,($L$1-1)*10) -> 482.64 | D13: =OFFSET(Potencia!D38,0,($L$1-1)*10) -> 482.64 | E13: =OFFSET(Potencia!E38,0,($L$1-1)*10) -> 482.64 | F13: =OFFSET(Potencia!F38,0,($L$1-1)*10) -> 482.64 | G13: =OFFSET(Potencia!G38,0,($L$1-1)*10) -> 482.64 | H13: =OFFSET(Potencia!H38,0,($L$1-1)*10) -> - | I13: =OFFSET(Potencia!I38,0,($L$1-1)*10) -> - | J13: =OFFSET(Potencia!J38,0,($L$1-1)*10) -> - | K13: =OFFSET(Potencia!K38,0,($L$1-1)*10) -> - | L13: =OFFSET(Potencia!L38,0,($L$1-1)*10) -> -
B14: Fuel + Gas | C14: =OFFSET(Potencia!C39,0,($L$1-1)*10) -> 1535.7 | D14: =OFFSET(Potencia!D39,0,($L$1-1)*10) -> 1535.7 | E14: =OFFSET(Potencia!E39,0,($L$1-1)*10) -> 1535.7 | F14: =OFFSET(Potencia!F39,0,($L$1-1)*10) -> 1535.7 | G14: =OFFSET(Potencia!G39,0,($L$1-1)*10) -> 1535.7 | H14: =OFFSET(Potencia!H39,0,($L$1-1)*10) -> - | I14: =OFFSET(Potencia!I39,0,($L$1-1)*10) -> - | J14: =OFFSET(Potencia!J39,0,($L$1-1)*10) -> - | K14: =OFFSET(Potencia!K39,0,($L$1-1)*10) -> - | L14: =OFFSET(Potencia!L39,0,($L$1-1)*10) -> -
B15: Ciclo combinado (1) | C15: =OFFSET(Potencia!C40,0,($L$1-1)*10) -> 864.2 | D15: =OFFSET(Potencia!D40,0,($L$1-1)*10) -> 864.2 | E15: =OFFSET(Potencia!E40,0,($L$1-1)*10) -> 864.2 | F15: =OFFSET(Potencia!F40,0,($L$1-1)*10) -> 864.2 | G15: =OFFSET(Potencia!G40,0,($L$1-1)*10) -> 864.2 | H15: =OFFSET(Potencia!H40,0,($L$1-1)*10) -> - | I15: =OFFSET(Potencia!I40,0,($L$1-1)*10) -> - | J15: =OFFSET(Potencia!J40,0,($L$1-1)*10) -> - | K15: =OFFSET(Potencia!K40,0,($L$1-1)*10) -> - | L15: =OFFSET(Potencia!L40,0,($L$1-1)*10) -> -
B16: Generación auxiliar (2) | C16: =OFFSET(Potencia!C41,0,($L$1-1)*10) -> - | D16: =OFFSET(Potencia!D41,0,($L$1-1)*10) -> - | E16: =OFFSET(Potencia!E41,0,($L$1-1)*10) -> - | F16: =OFFSET(Potencia!F41,0,($L$1-1)*10) -> - | G16: =OFFSET(Potencia!G41,0,($L$1-1)*10) -> - | H16: =OFFSET(Potencia!H41,0,($L$1-1)*10) -> - | I16: =OFFSET(Potencia!I41,0,($L$1-1)*10) -> - | J16: =OFFSET(Potencia!J41,0,($L$1-1)*10) -> - | K16: =OFFSET(Potencia!K41,0,($L$1-1)*10) -> - | L16: =OFFSET(Potencia!L41,0,($L$1-1)*10) -> -
B17: Hidroeólica | C17: =OFFSET(Potencia!C42,0,($L$1-1)*10) -> 11.39 | D17: =OFFSET(Potencia!D42,0,($L$1-1)*10) -> 11.39 | E17: =OFFSET(Potencia!E42,0,($L$1-1)*10) -> 11.39 | F17: =OFFSET(Potencia!F42,0,($L$1-1)*10) -> 11.39 | G17: =OFFSET(Potencia!G42,0,($L$1-1)*10) -> 11.39 | H17: =OFFSET(Potencia!H42,0,($L$1-1)*10) -> - | I17: =OFFSET(Potencia!I42,0,($L$1-1)*10) -> - | J17: =OFFSET(Potencia!J42,0,($L$1-1)*10) -> - | K17: =OFFSET(Potencia!K42,0,($L$1-1)*10) -> - | L17: =OFFSET(Potencia!L42,0,($L$1-1)*10) -> -
B18: Resto hidráulica | C18: =OFFSET(Potencia!C43,0,($L$1-1)*10) -> - | D18: =OFFSET(Potencia!D43,0,($L$1-1)*10) -> - | E18: =OFFSET(Potencia!E43,0,($L$1-1)*10) -> - | F18: =OFFSET(Potencia!F43,0,($L$1-1)*10) -> - | G18: =OFFSET(Potencia!G43,0,($L$1-1)*10) -> - | H18: =OFFSET(Potencia!H43,0,($L$1-1)*10) -> - | I18: =OFFSET(Potencia!I43,0,($L$1-1)*10) -> - | J18: =OFFSET(Potencia!J43,0,($L$1-1)*10) -> - | K18: =OFFSET(Potencia!K43,0,($L$1-1)*10) -> - | L18: =OFFSET(Potencia!L43,0,($L$1-1)*10) -> -
B19: Eólica | C19: =OFFSET(Potencia!C44,0,($L$1-1)*10) -> 152.055 | D19: =OFFSET(Potencia!D44,0,($L$1-1)*10) -> 206.9 | E19: =OFFSET(Potencia!E44,0,($L$1-1)*10) -> 417.715 | F19: =OFFSET(Potencia!F44,0,($L$1-1)*10) -> 430.315 | G19: =OFFSET(Potencia!G44,0,($L$1-1)*10) -> 430.315 | H19: =OFFSET(Potencia!H44,0,($L$1-1)*10) -> - | I19: =OFFSET(Potencia!I44,0,($L$1-1)*10) -> - | J19: =OFFSET(Potencia!J44,0,($L$1-1)*10) -> - | K19: =OFFSET(Potencia!K44,0,($L$1-1)*10) -> - | L19: =OFFSET(Potencia!L44,0,($L$1-1)*10) -> -
B20: Solar fotovoltaica | C20: =OFFSET(Potencia!C45,0,($L$1-1)*10) -> 167.19167 | D20: =OFFSET(Potencia!D45,0,($L$1-1)*10) -> 167.25117 | E20: =OFFSET(Potencia!E45,0,($L$1-1)*10) -> 167.34817 | F20: =OFFSET(Potencia!F45,0,($L$1-1)*10) -> 167.107145 | G20: =OFFSET(Potencia!G45,0,($L$1-1)*10) -> 167.107145 | H20: =OFFSET(Potencia!H45,0,($L$1-1)*10) -> - | I20: =OFFSET(Potencia!I45,0,($L$1-1)*10) -> - | J20: =OFFSET(Potencia!J45,0,($L$1-1)*10) -> - | K20: =OFFSET(Potencia!K45,0,($L$1-1)*10) -> - | L20: =OFFSET(Potencia!L45,0,($L$1-1)*10) -> -
B21: Térmica renovable/Otras renovables (3) | C21: =OFFSET(Potencia!C46,0,($L$1-1)*10) -> 3.696 | D21: =OFFSET(Potencia!D46,0,($L$1-1)*10) -> 3.696 | E21: =OFFSET(Potencia!E46,0,($L$1-1)*10) -> 3.696 | F21: =OFFSET(Potencia!F46,0,($L$1-1)*10) -> 3.696 | G21: =OFFSET(Potencia!G46,0,($L$1-1)*10) -> 3.696 | H21: =OFFSET(Potencia!H46,0,($L$1-1)*10) -> - | I21: =OFFSET(Potencia!I46,0,($L$1-1)*10) -> - | J21: =OFFSET(Potencia!J46,0,($L$1-1)*10) -> - | K21: =OFFSET(Potencia!K46,0,($L$1-1)*10) -> - | L21: =OFFSET(Potencia!L46,0,($L$1-1)*10) -> -
B22: Térmica no renovable/Cogeneración y resto/Cogeneración | C22: =OFFSET(Potencia!C47,0,($L$1-1)*10) -> - | D22: =OFFSET(Potencia!D47,0,($L$1-1)*10) -> - | E22: =OFFSET(Potencia!E47,0,($L$1-1)*10) -> - | F22: =OFFSET(Potencia!F47,0,($L$1-1)*10) -> - | G22: =OFFSET(Potencia!G47,0,($L$1-1)*10) -> - | H22: =OFFSET(Potencia!H47,0,($L$1-1)*10) -> - | I22: =OFFSET(Potencia!I47,0,($L$1-1)*10) -> - | J22: =OFFSET(Potencia!J47,0,($L$1-1)*10) -> - | K22: =OFFSET(Potencia!K47,0,($L$1-1)*10) -> - | L22: =OFFSET(Potencia!L47,0,($L$1-1)*10) -> -
B23: Total | C23: =OFFSET(Potencia!C48,0,($L$1-1)*10) -> 2736.25267 | D23: =OFFSET(Potencia!D48,0,($L$1-1)*10) -> 2791.15717 | E23: =OFFSET(Potencia!E48,0,($L$1-1)*10) -> 3002.06917 | F23: =OFFSET(Potencia!F48,0,($L$1-1)*10) -> 3014.428145 | G23: =OFFSET(Potencia!G48,0,($L$1-1)*10) -> 3014.428145 | H23: =OFFSET(Potencia!H48,0,($L$1-1)*10) -> - | I23: =OFFSET(Potencia!I48,0,($L$1-1)*10) -> - | J23: =OFFSET(Potencia!J48,0,($L$1-1)*10) -> - | K23: =OFFSET(Potencia!K48,0,($L$1-1)*10) -> - | L23: =OFFSET(Potencia!L48,0,($L$1-1)*10) -> -
B24: (1) Utiliza gasoil como combustible principal.
B25: (2) Grupos de emergencia que se instalan de forma transitoria en determinadas zonas para cubrir un déficit de generación.
B26: (3) Otras renovables incluyen biogás y biomasa.
B27: Fuente: Comisión Nacional de los Mercados y la Competencia (CNMC) hasta 2014 en: resto hidráulica, eólica, solar fotovoltaica, térmica renovable/otras renovables y térmica no renovable/cogeneración y resto/cogeneración.
B28: Datos a 31 de diciembre.
B29: =IF(L1=2,IF(MONTH(FACT)=1,"",(CONCATENATE("(*) Para el año ",YEAR(FACT), " datos a ",TEXT(FACT-30,"mmmm")," de ",YEAR(FACT),"."))),"") -> (*) Para el año 2020 datos a abril de 2020.

Sheet Potencia Ceuta
L1: 2
J5: Sistema / C.Autónoma
J6: Periodo
C8: =OFFSET(Potencia!C50,0,($L$1-1)*10) -> 2016 | D8: =OFFSET(Potencia!D50,0,($L$1-1)*10) -> 2017 | E8: =OFFSET(Potencia!E50,0,($L$1-1)*10) -> 2018 | F8: =OFFSET(Potencia!F50,0,($L$1-1)*10) -> 2019 | G8: =OFFSET(Potencia!G50,0,($L$1-1)*10) -> 2020 | H8: =OFFSET(Potencia!H50,0,($L$1-1)*10) -> 2021 | I8: =OFFSET(Potencia!I50,0,($L$1-1)*10) -> 2022 | J8: =OFFSET(Potencia!J50,0,($L$1-1)*10) -> 2023 | K8: =OFFSET(Potencia!K50,0,($L$1-1)*10) -> 2024 | L8: =OFFSET(Potencia!L50,0,($L$1-1)*10) -> 2025
B10: Motores diesel | C10: =OFFSET(Potencia!C51,0,($L$1-1)*10) -> 77.52 | D10: =OFFSET(Potencia!D51,0,($L$1-1)*10) -> 77.52 | E10: =OFFSET(Potencia!E51,0,($L$1-1)*10) -> 77.52 | F10: =OFFSET(Potencia!F51,0,($L$1-1)*10) -> 77.52 | G10: =OFFSET(Potencia!G51,0,($L$1-1)*10) -> 77.52 | H10: =OFFSET(Potencia!H51,0,($L$1-1)*10) -> - | I10: =OFFSET(Potencia!I51,0,($L$1-1)*10) -> - | J10: =OFFSET(Potencia!J51,0,($L$1-1)*10) -> - | K10: =OFFSET(Potencia!K51,0,($L$1-1)*10) -> - | L10: =OFFSET(Potencia!L51,0,($L$1-1)*10) -> -
B11: Turbina de gas | C11: =OFFSET(Potencia!C52,0,($L$1-1)*10) -> 13.3 | D11: =OFFSET(Potencia!D52,0,($L$1-1)*10) -> 13.3 | E11: =OFFSET(Potencia!E52,0,($L$1-1)*10) -> 13.3 | F11: =OFFSET(Potencia!F52,0,($L$1-1)*10) -> 13.3 | G11: =OFFSET(Potencia!G52,0,($L$1-1)*10) -> 13.3 | H11: =OFFSET(Potencia!H52,0,($L$1-1)*10) -> - | I11: =OFFSET(Potencia!I52,0,($L$1-1)*10) -> - | J11: =OFFSET(Potencia!J52,0,($L$1-1)*10) -> - | K11: =OFFSET(Potencia!K52,0,($L$1-1)*10) -> - | L11: =OFFSET(Potencia!L52,0,($L$1-1)*10) -> -
B12: Fuel + Gas | C12: =OFFSET(Potencia!C53,0,($L$1-1)*10) -> 90.82 | D12: =OFFSET(Potencia!D53,0,($L$1-1)*10) -> 90.82 | E12: =OFFSET(Potencia!E53,0,($L$1-1)*10) -> 90.82 | F12: =OFFSET(Potencia!F53,0,($L$1-1)*10) -> 90.82 | G12: =OFFSET(Potencia!G53,0,($L$1-1)*10) -> 90.82 | H12: =OFFSET(Potencia!H53,0,($L$1-1)*10) -> - | I12: =OFFSET(Potencia!I53,0,($L$1-1)*10) -> - | J12: =OFFSET(Potencia!J53,0,($L$1-1)*10) -> - | K12: =OFFSET(Potencia!K53,0,($L$1-1)*10) -> - | L12: =OFFSET(Potencia!L53,0,($L$1-1)*10) -> -
B13: Total | C13: =OFFSET(Potencia!C54,0,($L$1-1)*10) -> 90.82 | D13: =OFFSET(Potencia!D54,0,($L$1-1)*10) -> 90.82 | E13: =OFFSET(Potencia!E54,0,($L$1-1)*10) -> 90.82 | F13: =OFFSET(Potencia!F54,0,($L$1-1)*10) -> 90.82 | G13: =OFFSET(Potencia!G54,0,($L$1-1)*10) -> 90.82 | H13: =OFFSET(Potencia!H54,0,($L$1-1)*10) -> - | I13: =OFFSET(Potencia!I54,0,($L$1-1)*10) -> - | J13: =OFFSET(Potencia!J54,0,($L$1-1)*10) -> - | K13: =OFFSET(Potencia!K54,0,($L$1-1)*10) -> - | L13: =OFFSET(Potencia!L54,0,($L$1-1)*10) -> -
B14: Datos a 31 de diciembre.
B15: =IF(L1=2,IF(MONTH(FACT)=1,"",(CONCATENATE("(*) Para el año ",YEAR(FACT), " datos a ",TEXT(FACT-30,"mmmm")," de ",YEAR(FACT),"."))),"") -> (*) Para el año 2020 datos a abril de 2020.

Sheet Potencia Melilla
L1: 2
J5: Sistema / C.Autónoma
J6: Periodo
C8: =OFFSET(Potencia!C56,0,($L$1-1)*10) -> 2016 | D8: =OFFSET(Potencia!D56,0,($L$1-1)*10) -> 2017 | E8: =OFFSET(Potencia!E56,0,($L$1-1)*10) -> 2018 | F8: =OFFSET(Potencia!F56,0,($L$1-1)*10) -> 2019 | G8: =OFFSET(Potencia!G56,0,($L$1-1)*10) -> 2020 | H8: =OFFSET(Potencia!H56,0,($L$1-1)*10) -> 2021 | I8: =OFFSET(Potencia!I56,0,($L$1-1)*10) -> 2022 | J8: =OFFSET(Potencia!J56,0,($L$1-1)*10) -> 2023 | K8: =OFFSET(Potencia!K56,0,($L$1-1)*10) -> 2024 | L8: =OFFSET(Potencia!L56,0,($L$1-1)*10) -> 2025
B10: Motores diesel | C10: =OFFSET(Potencia!C57,0,($L$1-1)*10) -> 64.64 | D10: =OFFSET(Potencia!D57,0,($L$1-1)*10) -> 64.64 | E10: =OFFSET(Potencia!E57,0,($L$1-1)*10) -> 64.64 | F10: =OFFSET(Potencia!F57,0,($L$1-1)*10) -> 64.64 | G10: =OFFSET(Potencia!G57,0,($L$1-1)*10) -> 64.64 | H10: =OFFSET(Potencia!H57,0,($L$1-1)*10) -> - | I10: =OFFSET(Potencia!I57,0,($L$1-1)*10) -> - | J10: =OFFSET(Potencia!J57,0,($L$1-1)*10) -> - | K10: =OFFSET(Potencia!K57,0,($L$1-1)*10) -> - | L10: =OFFSET(Potencia!L57,0,($L$1-1)*10) -> -
B11: Turbina de gas | C11: =OFFSET(Potencia!C58,0,($L$1-1)*10) -> 11.5 | D11: =OFFSET(Potencia!D58,0,($L$1-1)*10) -> 11.5 | E11: =OFFSET(Potencia!E58,0,($L$1-1)*10) -> 11.5 | F11: =OFFSET(Potencia!F58,0,($L$1-1)*10) -> 11.5 | G11: =OFFSET(Potencia!G58,0,($L$1-1)*10) -> 11.5 | H11: =OFFSET(Potencia!H58,0,($L$1-1)*10) -> - | I11: =OFFSET(Potencia!I58,0,($L$1-1)*10) -> - | J11: =OFFSET(Potencia!J58,0,($L$1-1)*10) -> - | K11: =OFFSET(Potencia!K58,0,($L$1-1)*10) -> - | L11: =OFFSET(Potencia!L58,0,($L$1-1)*10) -> -
B12: Fuel + Gas | C12: =OFFSET(Potencia!C59,0,($L$1-1)*10) -> 76.14 | D12: =OFFSET(Potencia!D59,0,($L$1-1)*10) -> 76.14 | E12: =OFFSET(Potencia!E59,0,($L$1-1)*10) -> 76.14 | F12: =OFFSET(Potencia!F59,0,($L$1-1)*10) -> 76.14 | G12: =OFFSET(Potencia!G59,0,($L$1-1)*10) -> 76.14 | H12: =OFFSET(Potencia!H59,0,($L$1-1)*10) -> - | I12: =OFFSET(Potencia!I59,0,($L$1-1)*10) -> - | J12: =OFFSET(Potencia!J59,0,($L$1-1)*10) -> - | K12: =OFFSET(Potencia!K59,0,($L$1-1)*10) -> - | L12: =OFFSET(Potencia!L59,0,($L$1-1)*10) -> -
B13: Solar fotovoltaica | C13: =OFFSET(Potencia!C60,0,($L$1-1)*10) -> 0.0597 | D13: =OFFSET(Potencia!D60,0,($L$1-1)*10) -> 0.0597 | E13: =OFFSET(Potencia!E60,0,($L$1-1)*10) -> 0.0597 | F13: =OFFSET(Potencia!F60,0,($L$1-1)*10) -> 0.0597 | G13: =OFFSET(Potencia!G60,0,($L$1-1)*10) -> 0.0597 | H13: =OFFSET(Potencia!H60,0,($L$1-1)*10) -> - | I13: =OFFSET(Potencia!I60,0,($L$1-1)*10) -> - | J13: =OFFSET(Potencia!J60,0,($L$1-1)*10) -> - | K13: =OFFSET(Potencia!K60,0,($L$1-1)*10) -> - | L13: =OFFSET(Potencia!L60,0,($L$1-1)*10) -> -
B14: Térmica no renovable/Cogeneración y resto/Cogeneración | C14: =OFFSET(Potencia!C61,0,($L$1-1)*10) -> - | D14: =OFFSET(Potencia!D61,0,($L$1-1)*10) -> - | E14: =OFFSET(Potencia!E61,0,($L$1-1)*10) -> - | F14: =OFFSET(Potencia!F61,0,($L$1-1)*10) -> - | G14: =OFFSET(Potencia!G61,0,($L$1-1)*10) -> - | H14: =OFFSET(Potencia!H61,0,($L$1-1)*10) -> - | I14: =OFFSET(Potencia!I61,0,($L$1-1)*10) -> - | J14: =OFFSET(Potencia!J61,0,($L$1-1)*10) -> - | K14: =OFFSET(Potencia!K61,0,($L$1-1)*10) -> - | L14: =OFFSET(Potencia!L61,0,($L$1-1)*10) -> -
B15: Residuos no renovables(1) | C15: =OFFSET(Potencia!C62,0,($L$1-1)*10) -> 1.084 | D15: =OFFSET(Potencia!D62,0,($L$1-1)*10) -> 1.084 | E15: =OFFSET(Potencia!E62,0,($L$1-1)*10) -> 1.084 | F15: =OFFSET(Potencia!F62,0,($L$1-1)*10) -> 1.084 | G15: =OFFSET(Potencia!G62,0,($L$1-1)*10) -> 1.084 | H15: =OFFSET(Potencia!H62,0,($L$1-1)*10) -> - | I15: =OFFSET(Potencia!I62,0,($L$1-1)*10) -> - | J15: =OFFSET(Potencia!J62,0,($L$1-1)*10) -> - | K15: =OFFSET(Potencia!K62,0,($L$1-1)*10) -> - | L15: =OFFSET(Potencia!L62,0,($L$1-1)*10) -> -
B16: Residuos renovables(1) | C16: =OFFSET(Potencia!C63,0,($L$1-1)*10) -> 1.084 | D16: =OFFSET(Potencia!D63,0,($L$1-1)*10) -> 1.084 | E16: =OFFSET(Potencia!E63,0,($L$1-1)*10) -> 1.084 | F16: =OFFSET(Potencia!F63,0,($L$1-1)*10) -> 1.084 | G16: =OFFSET(Potencia!G63,0,($L$1-1)*10) -> 1.084 | H16: =OFFSET(Potencia!H63,0,($L$1-1)*10) -> - | I16: =OFFSET(Potencia!I63,0,($L$1-1)*10) -> - | J16: =OFFSET(Potencia!J63,0,($L$1-1)*10) -> - | K16: =OFFSET(Potencia!K63,0,($L$1-1)*10) -> - | L16: =OFFSET(Potencia!L63,0,($L$1-1)*10) -> -
B17: Total | C17: =OFFSET(Potencia!C64,0,($L$1-1)*10) -> 78.3677 | D17: =OFFSET(Potencia!D64,0,($L$1-1)*10) -> 78.3677 | E17: =OFFSET(Potencia!E64,0,($L$1-1)*10) -> 78.3677 | F17: =OFFSET(Potencia!F64,0,($L$1-1)*10) -> 78.3677 | G17: =OFFSET(Potencia!G64,0,($L$1-1)*10) -> 78.3677 | H17: =OFFSET(Potencia!H64,0,($L$1-1)*10) -> - | I17: =OFFSET(Potencia!I64,0,($L$1-1)*10) -> - | J17: =OFFSET(Potencia!J64,0,($L$1-1)*10) -> - | K17: =OFFSET(Potencia!K64,0,($L$1-1)*10) -> - | L17: =OFFSET(Potencia!L64,0,($L$1-1)*10) -> -
B18: (1) Potencia incluída en térmica no renovable/cogeneración y resto/cogeneración hasta el 31/12/2014.
B19: Fuente: Comisión Nacional de los Mercados y la Competencia (CNMC) hasta 2014 en: solar fotovoltaica, térmica no renovable/cogeneración y resto/cogeneración y residuos.
B20: Datos a 31 de diciembre.
B21: =IF(L1=2,IF(MONTH(FACT)=1,"",(CONCATENATE("(*) Para el año ",YEAR(FACT), " datos a ",TEXT(FACT-30,"mmmm")," de ",YEAR(FACT),"."))),"") -> (*) Para el año 2020 datos a abril de 2020.

Sheet Potencia Andalucía
L1: 1
J5: Sistema / C.Autónoma
J6: Periodo
C8: =OFFSET(Potencia!C84,0,($L$1-1)*10) -> 2015 | D8: =OFFSET(Potencia!D84,0,($L$1-1)*10) -> 2016 | E8: =OFFSET(Potencia!E84,0,($L$1-1)*10) -> 2017 | F8: =OFFSET(Potencia!F84,0,($L$1-1)*10) -> 2018 | G8: =OFFSET(Potencia!G84,0,($L$1-1)*10) -> 2019 | H8: =OFFSET(Potencia!H84,0,($L$1-1)*10) -> 2020 | I8: =OFFSET(Potencia!I84,0,($L$1-1)*10) -> 2021 | J8: =OFFSET(Potencia!J84,0,($L$1-1)*10) -> 2022 | K8: =OFFSET(Potencia!K84,0,($L$1-1)*10) -> 2023 | L8: =OFFSET(Potencia!L84,0,($L$1-1)*10) -> 2024
B10: Bombeo puro | C10: =OFFSET(Potencia!C85,0,($L$1-1)*10) -> 582.88 | D10: =OFFSET(Potencia!D85,0,($L$1-1)*10) -> 582.88 | E10: =OFFSET(Potencia!E85,0,($L$1-1)*10) -> 582.88 | F10: =OFFSET(Potencia!F85,0,($L$1-1)*10) -> 582.88 | G10: =OFFSET(Potencia!G85,0,($L$1-1)*10) -> 582.88 | H10: =OFFSET(Potencia!H85,0,($L$1-1)*10) -> 582.88 | I10: =OFFSET(Potencia!I85,0,($L$1-1)*10) -> - | J10: =OFFSET(Potencia!J85,0,($L$1-1)*10) -> - | K10: =OFFSET(Potencia!K85,0,($L$1-1)*10) -> - | L10: =OFFSET(Potencia!L85,0,($L$1-1)*10) -> -
B11: Hidráulica convencional y mixta | C11: =OFFSET(Potencia!C86,0,($L$1-1)*10) -> 590.023 | D11: =OFFSET(Potencia!D86,0,($L$1-1)*10) -> 590.553 | E11: =OFFSET(Potencia!E86,0,($L$1-1)*10) -> 587.444 | F11: =OFFSET(Potencia!F86,0,($L$1-1)*10) -> 587.484 | G11: =OFFSET(Potencia!G86,0,($L$1-1)*10) -> 621.579 | H11: =OFFSET(Potencia!H86,0,($L$1-1)*10) -> 621.579 | I11: =OFFSET(Potencia!I86,0,($L$1-1)*10) -> - | J11: =OFFSET(Potencia!J86,0,($L$1-1)*10) -> - | K11: =OFFSET(Potencia!K86,0,($L$1-1)*10) -> - | L11: =OFFSET(Potencia!L86,0,($L$1-1)*10) -> -
B12: Nuclear | C12: =OFFSET(Potencia!C87,0,($L$1-1)*10) -> - | D12: =OFFSET(Potencia!D87,0,($L$1-1)*10) -> - | E12: =OFFSET(Potencia!E87,0,($L$1-1)*10) -> - | F12: =OFFSET(Potencia!F87,0,($L$1-1)*10) -> - | G12: =OFFSET(Potencia!G87,0,($L$1-1)*10) -> - | H12: =OFFSET(Potencia!H87,0,($L$1-1)*10) -> - | I12: =OFFSET(Potencia!I87,0,($L$1-1)*10) -> - | J12: =OFFSET(Potencia!J87,0,($L$1-1)*10) -> - | K12: =OFFSET(Potencia!K87,0,($L$1-1)*10) -> - | L12: =OFFSET(Potencia!L87,0,($L$1-1)*10) -> -
B13: Carbón | C13: =OFFSET(Potencia!C88,0,($L$1-1)*10) -> 1989.4 | D13: =OFFSET(Potencia!D88,0,($L$1-1)*10) -> 1989.4 | E13: =OFFSET(Potencia!E88,0,($L$1-1)*10) -> 1989.4 | F13: =OFFSET(Potencia!F88,0,($L$1-1)*10) -> 1989.4 | G13: =OFFSET(Potencia!G88,0,($L$1-1)*10) -> 1989.4 | H13: =OFFSET(Potencia!H88,0,($L$1-1)*10) -> 1989.4 | I13: =OFFSET(Potencia!I88,0,($L$1-1)*10) -> - | J13: =OFFSET(Potencia!J88,0,($L$1-1)*10) -> - | K13: =OFFSET(Potencia!K88,0,($L$1-1)*10) -> - | L13: =OFFSET(Potencia!L88,0,($L$1-1)*10) -> -
B14: Fuel + Gas | C14: =OFFSET(Potencia!C89,0,($L$1-1)*10) -> - | D14: =OFFSET(Potencia!D89,0,($L$1-1)*10) -> - | E14: =OFFSET(Potencia!E89,0,($L$1-1)*10) -> - | F14: =OFFSET(Potencia!F89,0,($L$1-1)*10) -> - | G14: =OFFSET(Potencia!G89,0,($L$1-1)*10) -> - | H14: =OFFSET(Potencia!H89,0,($L$1-1)*10) -> - | I14: =OFFSET(Potencia!I89,0,($L$1-1)*10) -> - | J14: =OFFSET(Potencia!J89,0,($L$1-1)*10) -> - | K14: =OFFSET(Potencia!K89,0,($L$1-1)*10) -> - | L14: =OFFSET(Potencia!L89,0,($L$1-1)*10) -> -
B15: Ciclo combinado | C15: =OFFSET(Potencia!C90,0,($L$1-1)*10) -> 5951.72 | D15: =OFFSET(Potencia!D90,0,($L$1-1)*10) -> 5951.72 | E15: =OFFSET(Potencia!E90,0,($L$1-1)*10) -> 5951.72 | F15: =OFFSET(Potencia!F90,0,($L$1-1)*10) -> 5951.72 | G15: =OFFSET(Potencia!G90,0,($L$1-1)*10) -> 5951.72 | H15: =OFFSET(Potencia!H90,0,($L$1-1)*10) -> 5951.72 | I15: =OFFSET(Potencia!I90,0,($L$1-1)*10) -> - | J15: =OFFSET(Potencia!J90,0,($L$1-1)*10) -> - | K15: =OFFSET(Potencia!K90,0,($L$1-1)*10) -> - | L15: =OFFSET(Potencia!L90,0,($L$1-1)*10) -> -
B16: Eólica | C16: =OFFSET(Potencia!C91,0,($L$1-1)*10) -> 3327.1805 | D16: =OFFSET(Potencia!D91,0,($L$1-1)*10) -> 3327.1805 | E16: =OFFSET(Potencia!E91,0,($L$1-1)*10) -> 3327.1805 | F16: =OFFSET(Potencia!F91,0,($L$1-1)*10) -> 3327.1805 | G16: =OFFSET(Potencia!G91,0,($L$1-1)*10) -> 3450.9055 | H16: =OFFSET(Potencia!H91,0,($L$1-1)*10) -> 3450.9055 | I16: =OFFSET(Potencia!I91,0,($L$1-1)*10) -> - | J16: =OFFSET(Potencia!J91,0,($L$1-1)*10) -> - | K16: =OFFSET(Potencia!K91,0,($L$1-1)*10) -> - | L16: =OFFSET(Potencia!L91,0,($L$1-1)*10) -> -
B17: Solar fotovoltaica | C17: =OFFSET(Potencia!C92,0,($L$1-1)*10) -> 874.983159 | D17: =OFFSET(Potencia!D92,0,($L$1-1)*10) -> 877.647779 | E17: =OFFSET(Potencia!E92,0,($L$1-1)*10) -> 878.469509 | F17: =OFFSET(Potencia!F92,0,($L$1-1)*10) -> 881.891959 | G17: =OFFSET(Potencia!G92,0,($L$1-1)*10) -> 1783.841539 | H17: =OFFSET(Potencia!H92,0,($L$1-1)*10) -> 1954.894799 | I17: =OFFSET(Potencia!I92,0,($L$1-1)*10) -> - | J17: =OFFSET(Potencia!J92,0,($L$1-1)*10) -> - | K17: =OFFSET(Potencia!K92,0,($L$1-1)*10) -> - | L17: =OFFSET(Potencia!L92,0,($L$1-1)*10) -> -
B18: Solar térmica | C18: =OFFSET(Potencia!C93,0,($L$1-1)*10) -> 1000.023 | D18: =OFFSET(Potencia!D93,0,($L$1-1)*10) -> 1000.023 | E18: =OFFSET(Potencia!E93,0,($L$1-1)*10) -> 1000.023 | F18: =OFFSET(Potencia!F93,0,($L$1-1)*10) -> 1000.023 | G18: =OFFSET(Potencia!G93,0,($L$1-1)*10) -> 1000.023 | H18: =OFFSET(Potencia!H93,0,($L$1-1)*10) -> 1000.023 | I18: =OFFSET(Potencia!I93,0,($L$1-1)*10) -> - | J18: =OFFSET(Potencia!J93,0,($L$1-1)*10) -> - | K18: =OFFSET(Potencia!K93,0,($L$1-1)*10) -> - | L18: =OFFSET(Potencia!L93,0,($L$1-1)*10) -> -
B19: Otras renovables (1) | C19: =OFFSET(Potencia!C94,0,($L$1-1)*10) -> 232.26 | D19: =OFFSET(Potencia!D94,0,($L$1-1)*10) -> 233.644 | E19: =OFFSET(Potencia!E94,0,($L$1-1)*10) -> 229.929 | F19: =OFFSET(Potencia!F94,0,($L$1-1)*10) -> 229.929 | G19: =OFFSET(Potencia!G94,0,($L$1-1)*10) -> 276.862 | H19: =OFFSET(Potencia!H94,0,($L$1-1)*10) -> 276.862 | I19: =OFFSET(Potencia!I94,0,($L$1-1)*10) -> - | J19: =OFFSET(Potencia!J94,0,($L$1-1)*10) -> - | K19: =OFFSET(Potencia!K94,0,($L$1-1)*10) -> - | L19: =OFFSET(Potencia!L94,0,($L$1-1)*10) -> -
B20: Cogeneración | C20: =OFFSET(Potencia!C95,0,($L$1-1)*10) -> 903.4805 | D20: =OFFSET(Potencia!D95,0,($L$1-1)*10) -> 897.6805 | E20: =OFFSET(Potencia!E95,0,($L$1-1)*10) -> 849.9585 | F20: =OFFSET(Potencia!F95,0,($L$1-1)*10) -> 848.9595 | G20: =OFFSET(Potencia!G95,0,($L$1-1)*10) -> 848.9595 | H20: =OFFSET(Potencia!H95,0,($L$1-1)*10) -> 848.9595 | I20: =OFFSET(Potencia!I95,0,($L$1-1)*10) -> - | J20: =OFFSET(Potencia!J95,0,($L$1-1)*10) -> - | K20: =OFFSET(Potencia!K95,0,($L$1-1)*10) -> - | L20: =OFFSET(Potencia!L95,0,($L$1-1)*10) -> -
B21: Residuos no renovables | C21: =OFFSET(Potencia!C96,0,($L$1-1)*10) -> 95.473 | D21: =OFFSET(Potencia!D96,0,($L$1-1)*10) -> 83.541 | E21: =OFFSET(Potencia!E96,0,($L$1-1)*10) -> 83.541 | F21: =OFFSET(Potencia!F96,0,($L$1-1)*10) -> 83.541 | G21: =OFFSET(Potencia!G96,0,($L$1-1)*10) -> 83.541 | H21: =OFFSET(Potencia!H96,0,($L$1-1)*10) -> 83.541 | I21: =OFFSET(Potencia!I96,0,($L$1-1)*10) -> - | J21: =OFFSET(Potencia!J96,0,($L$1-1)*10) -> - | K21: =OFFSET(Potencia!K96,0,($L$1-1)*10) -> - | L21: =OFFSET(Potencia!L96,0,($L$1-1)*10) -> -
B22: Residuos renovables | C22: =OFFSET(Potencia!C97,0,($L$1-1)*10) -> - | D22: =OFFSET(Potencia!D97,0,($L$1-1)*10) -> - | E22: =OFFSET(Potencia!E97,0,($L$1-1)*10) -> - | F22: =OFFSET(Potencia!F97,0,($L$1-1)*10) -> - | G22: =OFFSET(Potencia!G97,0,($L$1-1)*10) -> - | H22: =OFFSET(Potencia!H97,0,($L$1-1)*10) -> - | I22: =OFFSET(Potencia!I97,0,($L$1-1)*10) -> - | J22: =OFFSET(Potencia!J97,0,($L$1-1)*10) -> - | K22: =OFFSET(Potencia!K97,0,($L$1-1)*10) -> - | L22: =OFFSET(Potencia!L97,0,($L$1-1)*10) -> -
B23: Total | C23: =OFFSET(Potencia!C98,0,($L$1-1)*10) -> 15547.42316 | D23: =OFFSET(Potencia!D98,0,($L$1-1)*10) -> 15534.26978 | E23: =OFFSET(Potencia!E98,0,($L$1-1)*10) -> 15480.54551 | F23: =OFFSET(Potencia!F98,0,($L$1-1)*10) -> 15483.00896 | G23: =OFFSET(Potencia!G98,0,($L$1-1)*10) -> 16589.71154 | H23: =OFFSET(Potencia!H98,0,($L$1-1)*10) -> 16760.7648 | I23: =OFFSET(Potencia!I98,0,($L$1-1)*10) -> - | J23: =OFFSET(Potencia!J98,0,($L$1-1)*10) -> - | K23: =OFFSET(Potencia!K98,0,($L$1-1)*10) -> - | L23: =OFFSET(Potencia!L98,0,($L$1-1)*10) -> -
B24: (1) Otras renovables incluyen biogás, biomasa, hidráulica marina y geotérmica.
B25: Datos a 31 de diciembre.
B26: =IF(L1=1,IF(MONTH(FACT)=1,"",(CONCATENATE("(*) Para el año ",YEAR(FACT), " datos a ",TEXT(FACT-30,"mmmm")," de ",YEAR(FACT),"."))),"") -> (*) Para el año 2020 datos a abril de 2020.
B30: =IF(L1=2,IF(MONTH(FACT)=1,"",(CONCATENATE("(*) Para el año ",YEAR(FACT), " datos a ",TEXT(FACT-30,"mmmm")," de ",YEAR(FACT),"."))),"") -> 

Sheet Potencia Aragón
L1: 1
J5: Sistema / C.Autónoma
J6: Periodo
C8: =OFFSET(Potencia!C100,0,($L$1-1)*10) -> 2015 | D8: =OFFSET(Potencia!D100,0,($L$1-1)*10) -> 2016 | E8: =OFFSET(Potencia!E100,0,($L$1-1)*10) -> 2017 | F8: =OFFSET(Potencia!F100,0,($L$1-1)*10) -> 2018 | G8: =OFFSET(Potencia!G100,0,($L$1-1)*10) -> 2019 | H8: =OFFSET(Potencia!H100,0,($L$1-1)*10) -> 2020 | I8: =OFFSET(Potencia!I100,0,($L$1-1)*10) -> 2021 | J8: =OFFSET(Potencia!J100,0,($L$1-1)*10) -> 2022 | K8: =OFFSET(Potencia!K100,0,($L$1-1)*10) -> 2023 | L8: =OFFSET(Potencia!L100,0,($L$1-1)*10) -> 2024
B10: =Potencia!B85 -> Bombeo puro | C10: =OFFSET(Potencia!C101,0,($L$1-1)*10) -> 219.14 | D10: =OFFSET(Potencia!D101,0,($L$1-1)*10) -> 219.14 | E10: =OFFSET(Potencia!E101,0,($L$1-1)*10) -> 219.14 | F10: =OFFSET(Potencia!F101,0,($L$1-1)*10) -> 219.14 | G10: =OFFSET(Potencia!G101,0,($L$1-1)*10) -> 219.14 | H10: =OFFSET(Potencia!H101,0,($L$1-1)*10) -> 219.14 | I10: =OFFSET(Potencia!I101,0,($L$1-1)*10) -> - | J10: =OFFSET(Potencia!J101,0,($L$1-1)*10) -> - | K10: =OFFSET(Potencia!K101,0,($L$1-1)*10) -> - | L10: =OFFSET(Potencia!L101,0,($L$1-1)*10) -> -
B11: =Potencia!B86 -> Hidráulica convencional y mixta | C11: =OFFSET(Potencia!C102,0,($L$1-1)*10) -> 1333.8325 | D11: =OFFSET(Potencia!D102,0,($L$1-1)*10) -> 1333.8325 | E11: =OFFSET(Potencia!E102,0,($L$1-1)*10) -> 1333.8325 | F11: =OFFSET(Potencia!F102,0,($L$1-1)*10) -> 1333.8325 | G11: =OFFSET(Potencia!G102,0,($L$1-1)*10) -> 1333.8545 | H11: =OFFSET(Potencia!H102,0,($L$1-1)*10) -> 1333.8545 | I11: =OFFSET(Potencia!I102,0,($L$1-1)*10) -> - | J11: =OFFSET(Potencia!J102,0,($L$1-1)*10) -> - | K11: =OFFSET(Potencia!K102,0,($L$1-1)*10) -> - | L11: =OFFSET(Potencia!L102,0,($L$1-1)*10) -> -
B12: =Potencia!B87 -> Nuclear | C12: =OFFSET(Potencia!C103,0,($L$1-1)*10) -> - | D12: =OFFSET(Potencia!D103,0,($L$1-1)*10) -> - | E12: =OFFSET(Potencia!E103,0,($L$1-1)*10) -> - | F12: =OFFSET(Potencia!F103,0,($L$1-1)*10) -> - | G12: =OFFSET(Potencia!G103,0,($L$1-1)*10) -> - | H12: =OFFSET(Potencia!H103,0,($L$1-1)*10) -> - | I12: =OFFSET(Potencia!I103,0,($L$1-1)*10) -> - | J12: =OFFSET(Potencia!J103,0,($L$1-1)*10) -> - | K12: =OFFSET(Potencia!K103,0,($L$1-1)*10) -> - | L12: =OFFSET(Potencia!L103,0,($L$1-1)*10) -> -
B13: =Potencia!B88 -> Carbón | C13: =OFFSET(Potencia!C104,0,($L$1-1)*10) -> 1055.77 | D13: =OFFSET(Potencia!D104,0,($L$1-1)*10) -> 1055.77 | E13: =OFFSET(Potencia!E104,0,($L$1-1)*10) -> 1055.77 | F13: =OFFSET(Potencia!F104,0,($L$1-1)*10) -> 1055.77 | G13: =OFFSET(Potencia!G104,0,($L$1-1)*10) -> 1055.77 | H13: =OFFSET(Potencia!H104,0,($L$1-1)*10) -> 1055.77 | I13: =OFFSET(Potencia!I104,0,($L$1-1)*10) -> - | J13: =OFFSET(Potencia!J104,0,($L$1-1)*10) -> - | K13: =OFFSET(Potencia!K104,0,($L$1-1)*10) -> - | L13: =OFFSET(Potencia!L104,0,($L$1-1)*10) -> -
B14: =Potencia!B89 -> Fuel + Gas | C14: =OFFSET(Potencia!C105,0,($L$1-1)*10) -> - | D14: =OFFSET(Potencia!D105,0,($L$1-1)*10) -> - | E14: =OFFSET(Potencia!E105,0,($L$1-1)*10) -> - | F14: =OFFSET(Potencia!F105,0,($L$1-1)*10) -> - | G14: =OFFSET(Potencia!G105,0,($L$1-1)*10) -> - | H14: =OFFSET(Potencia!H105,0,($L$1-1)*10) -> - | I14: =OFFSET(Potencia!I105,0,($L$1-1)*10) -> - | J14: =OFFSET(Potencia!J105,0,($L$1-1)*10) -> - | K14: =OFFSET(Potencia!K105,0,($L$1-1)*10) -> - | L14: =OFFSET(Potencia!L105,0,($L$1-1)*10) -> -
B15: =Potencia!B90 -> Ciclo combinado | C15: =OFFSET(Potencia!C106,0,($L$1-1)*10) -> 1869.68 | D15: =OFFSET(Potencia!D106,0,($L$1-1)*10) -> 1869.68 | E15: =OFFSET(Potencia!E106,0,($L$1-1)*10) -> 1869.68 | F15: =OFFSET(Potencia!F106,0,($L$1-1)*10) -> 1869.68 | G15: =OFFSET(Potencia!G106,0,($L$1-1)*10) -> 1869.68 | H15: =OFFSET(Potencia!H106,0,($L$1-1)*10) -> 1869.68 | I15: =OFFSET(Potencia!I106,0,($L$1-1)*10) -> - | J15: =OFFSET(Potencia!J106,0,($L$1-1)*10) -> - | K15: =OFFSET(Potencia!K106,0,($L$1-1)*10) -> - | L15: =OFFSET(Potencia!L106,0,($L$1-1)*10) -> -
B16: =Potencia!B91 -> Eólica | C16: =OFFSET(Potencia!C107,0,($L$1-1)*10) -> 1906.32 | D16: =OFFSET(Potencia!D107,0,($L$1-1)*10) -> 1906.32 | E16: =OFFSET(Potencia!E107,0,($L$1-1)*10) -> 1924.32 | F16: =OFFSET(Potencia!F107,0,($L$1-1)*10) -> 2096.42 | G16: =OFFSET(Potencia!G107,0,($L$1-1)*10) -> 3213.189 | H16: =OFFSET(Potencia!H107,0,($L$1-1)*10) -> 3266.08436 | I16: =OFFSET(Potencia!I107,0,($L$1-1)*10) -> - | J16: =OFFSET(Potencia!J107,0,($L$1-1)*10) -> - | K16: =OFFSET(Potencia!K107,0,($L$1-1)*10) -> - | L16: =OFFSET(Potencia!L107,0,($L$1-1)*10) -> -
B17: =Potencia!B92 -> Solar fotovoltaica | C17: =OFFSET(Potencia!C108,0,($L$1-1)*10) -> 168.48274 | D17: =OFFSET(Potencia!D108,0,($L$1-1)*10) -> 168.50274 | E17: =OFFSET(Potencia!E108,0,($L$1-1)*10) -> 168.74614 | F17: =OFFSET(Potencia!F108,0,($L$1-1)*10) -> 168.97914 | G17: =OFFSET(Potencia!G108,0,($L$1-1)*10) -> 938.44109 | H17: =OFFSET(Potencia!H108,0,($L$1-1)*10) -> 950.77901 | I17: =OFFSET(Potencia!I108,0,($L$1-1)*10) -> - | J17: =OFFSET(Potencia!J108,0,($L$1-1)*10) -> - | K17: =OFFSET(Potencia!K108,0,($L$1-1)*10) -> - | L17: =OFFSET(Potencia!L108,0,($L$1-1)*10) -> -
B18: =Potencia!B93 -> Solar térmica | C18: =OFFSET(Potencia!C109,0,($L$1-1)*10) -> - | D18: =OFFSET(Potencia!D109,0,($L$1-1)*10) -> - | E18: =OFFSET(Potencia!E109,0,($L$1-1)*10) -> - | F18: =OFFSET(Potencia!F109,0,($L$1-1)*10) -> - | G18: =OFFSET(Potencia!G109,0,($L$1-1)*10) -> - | H18: =OFFSET(Potencia!H109,0,($L$1-1)*10) -> - | I18: =OFFSET(Potencia!I109,0,($L$1-1)*10) -> - | J18: =OFFSET(Potencia!J109,0,($L$1-1)*10) -> - | K18: =OFFSET(Potencia!K109,0,($L$1-1)*10) -> - | L18: =OFFSET(Potencia!L109,0,($L$1-1)*10) -> -
B19: Otras renovables (1) | C19: =OFFSET(Potencia!C110,0,($L$1-1)*10) -> 42.335 | D19: =OFFSET(Potencia!D110,0,($L$1-1)*10) -> 42.335 | E19: =OFFSET(Potencia!E110,0,($L$1-1)*10) -> 42.335 | F19: =OFFSET(Potencia!F110,0,($L$1-1)*10) -> 42.335 | G19: =OFFSET(Potencia!G110,0,($L$1-1)*10) -> 42.335 | H19: =OFFSET(Potencia!H110,0,($L$1-1)*10) -> 42.335 | I19: =OFFSET(Potencia!I110,0,($L$1-1)*10) -> - | J19: =OFFSET(Potencia!J110,0,($L$1-1)*10) -> - | K19: =OFFSET(Potencia!K110,0,($L$1-1)*10) -> - | L19: =OFFSET(Potencia!L110,0,($L$1-1)*10) -> -
B20: Cogeneración | C20: =OFFSET(Potencia!C111,0,($L$1-1)*10) -> 493.732 | D20: =OFFSET(Potencia!D111,0,($L$1-1)*10) -> 490.937 | E20: =OFFSET(Potencia!E111,0,($L$1-1)*10) -> 478.227 | F20: =OFFSET(Potencia!F111,0,($L$1-1)*10) -> 478.259 | G20: =OFFSET(Potencia!G111,0,($L$1-1)*10) -> 478.259 | H20: =OFFSET(Potencia!H111,0,($L$1-1)*10) -> 478.259 | I20: =OFFSET(Potencia!I111,0,($L$1-1)*10) -> - | J20: =OFFSET(Potencia!J111,0,($L$1-1)*10) -> - | K20: =OFFSET(Potencia!K111,0,($L$1-1)*10) -> - | L20: =OFFSET(Potencia!L111,0,($L$1-1)*10) -> -
B21: Residuos no renovables | C21: =OFFSET(Potencia!C112,0,($L$1-1)*10) -> 49.9 | D21: =OFFSET(Potencia!D112,0,($L$1-1)*10) -> 49.9 | E21: =OFFSET(Potencia!E112,0,($L$1-1)*10) -> 49.9 | F21: =OFFSET(Potencia!F112,0,($L$1-1)*10) -> 49.9 | G21: =OFFSET(Potencia!G112,0,($L$1-1)*10) -> 49.9 | H21: =OFFSET(Potencia!H112,0,($L$1-1)*10) -> 49.9 | I21: =OFFSET(Potencia!I112,0,($L$1-1)*10) -> - | J21: =OFFSET(Potencia!J112,0,($L$1-1)*10) -> - | K21: =OFFSET(Potencia!K112,0,($L$1-1)*10) -> - | L21: =OFFSET(Potencia!L112,0,($L$1-1)*10) -> -
B22: Residuos renovables | C22: =OFFSET(Potencia!C113,0,($L$1-1)*10) -> - | D22: =OFFSET(Potencia!D113,0,($L$1-1)*10) -> - | E22: =OFFSET(Potencia!E113,0,($L$1-1)*10) -> - | F22: =OFFSET(Potencia!F113,0,($L$1-1)*10) -> - | G22: =OFFSET(Potencia!G113,0,($L$1-1)*10) -> - | H22: =OFFSET(Potencia!H113,0,($L$1-1)*10) -> - | I22: =OFFSET(Potencia!I113,0,($L$1-1)*10) -> - | J22: =OFFSET(Potencia!J113,0,($L$1-1)*10) -> - | K22: =OFFSET(Potencia!K113,0,($L$1-1)*10) -> - | L22: =OFFSET(Potencia!L113,0,($L$1-1)*10) -> -
B23: Total | C23: =OFFSET(Potencia!C114,0,($L$1-1)*10) -> 7139.19224 | D23: =OFFSET(Potencia!D114,0,($L$1-1)*10) -> 7136.41724 | E23: =OFFSET(Potencia!E114,0,($L$1-1)*10) -> 7141.95064 | F23: =OFFSET(Potencia!F114,0,($L$1-1)*10) -> 7314.31564 | G23: =OFFSET(Potencia!G114,0,($L$1-1)*10) -> 9200.56859 | H23: =OFFSET(Potencia!H114,0,($L$1-1)*10) -> 9265.80187 | I23: =OFFSET(Potencia!I114,0,($L$1-1)*10) -> - | J23: =OFFSET(Potencia!J114,0,($L$1-1)*10) -> - | K23: =OFFSET(Potencia!K114,0,($L$1-1)*10) -> - | L23: =OFFSET(Potencia!L114,0,($L$1-1)*10) -> -
B24: (1) Otras renovables incluyen biogás, biomasa, hidráulica marina y geotérmica.
B25: Datos a 31 de diciembre.
B26: =IF(L1=1,IF(MONTH(FACT)=1,"",(CONCATENATE("(*) Para el año ",YEAR(FACT), " datos a ",TEXT(FACT-30,"mmmm")," de ",YEAR(FACT),"."))),"") -> (*) Para el año 2020 datos a abril de 2020.
B30: =IF(L1=2,IF(MONTH(FACT)=1,"",(CONCATENATE("(*) Para el año ",YEAR(FACT), " datos a ",TEXT(FACT-30,"mmmm")," de ",YEAR(FACT),"."))),"") -> 

Sheet Potencia Asturias
L1: 1
J5: Sistema / C.Autónoma
J6: Periodo
C8: =OFFSET(Potencia!C116,0,($L$1-1)*10) -> 2015 | D8: =OFFSET(Potencia!D116,0,($L$1-1)*10) -> 2016 | E8: =OFFSET(Potencia!E116,0,($L$1-1)*10) -> 2017 | F8: =OFFSET(Potencia!F116,0,($L$1-1)*10) -> 2018 | G8: =OFFSET(Potencia!G116,0,($L$1-1)*10) -> 2019 | H8: =OFFSET(Potencia!H116,0,($L$1-1)*10) -> 2020 | I8: =OFFSET(Potencia!I116,0,($L$1-1)*10) -> 2021 | J8: =OFFSET(Potencia!J116,0,($L$1-1)*10) -> 2022 | K8: =OFFSET(Potencia!K116,0,($L$1-1)*10) -> 2023 | L8: =OFFSET(Potencia!L116,0,($L$1-1)*10) -> 2024
B10: =Potencia!B85 -> Bombeo puro | C10: =OFFSET(Potencia!C117,0,($L$1-1)*10) -> - | D10: =OFFSET(Potencia!D117,0,($L$1-1)*10) -> - | E10: =OFFSET(Potencia!E117,0,($L$1-1)*10) -> - | F10: =OFFSET(Potencia!F117,0,($L$1-1)*10) -> - | G10: =OFFSET(Potencia!G117,0,($L$1-1)*10) -> - | H10: =OFFSET(Potencia!H117,0,($L$1-1)*10) -> - | I10: =OFFSET(Potencia!I117,0,($L$1-1)*10) -> - | J10: =OFFSET(Potencia!J117,0,($L$1-1)*10) -> - | K10: =OFFSET(Potencia!K117,0,($L$1-1)*10) -> - | L10: =OFFSET(Potencia!L117,0,($L$1-1)*10) -> -
B11: =Potencia!B86 -> Hidráulica convencional y mixta | C11: =OFFSET(Potencia!C118,0,($L$1-1)*10) -> 804.7518 | D11: =OFFSET(Potencia!D118,0,($L$1-1)*10) -> 804.7518 | E11: =OFFSET(Potencia!E118,0,($L$1-1)*10) -> 804.7518 | F11: =OFFSET(Potencia!F118,0,($L$1-1)*10) -> 804.7518 | G11: =OFFSET(Potencia!G118,0,($L$1-1)*10) -> 804.7518 | H11: =OFFSET(Potencia!H118,0,($L$1-1)*10) -> 804.7518 | I11: =OFFSET(Potencia!I118,0,($L$1-1)*10) -> - | J11: =OFFSET(Potencia!J118,0,($L$1-1)*10) -> - | K11: =OFFSET(Potencia!K118,0,($L$1-1)*10) -> - | L11: =OFFSET(Potencia!L118,0,($L$1-1)*10) -> -
B12: =Potencia!B87 -> Nuclear | C12: =OFFSET(Potencia!C119,0,($L$1-1)*10) -> - | D12: =OFFSET(Potencia!D119,0,($L$1-1)*10) -> - | E12: =OFFSET(Potencia!E119,0,($L$1-1)*10) -> - | F12: =OFFSET(Potencia!F119,0,($L$1-1)*10) -> - | G12: =OFFSET(Potencia!G119,0,($L$1-1)*10) -> - | H12: =OFFSET(Potencia!H119,0,($L$1-1)*10) -> - | I12: =OFFSET(Potencia!I119,0,($L$1-1)*10) -> - | J12: =OFFSET(Potencia!J119,0,($L$1-1)*10) -> - | K12: =OFFSET(Potencia!K119,0,($L$1-1)*10) -> - | L12: =OFFSET(Potencia!L119,0,($L$1-1)*10) -> -
B13: =Potencia!B88 -> Carbón | C13: =OFFSET(Potencia!C120,0,($L$1-1)*10) -> 2364.59 | D13: =OFFSET(Potencia!D120,0,($L$1-1)*10) -> 2073.42 | E13: =OFFSET(Potencia!E120,0,($L$1-1)*10) -> 2073.42 | F13: =OFFSET(Potencia!F120,0,($L$1-1)*10) -> 2099.435 | G13: =OFFSET(Potencia!G120,0,($L$1-1)*10) -> 2099.435 | H13: =OFFSET(Potencia!H120,0,($L$1-1)*10) -> 2099.435 | I13: =OFFSET(Potencia!I120,0,($L$1-1)*10) -> - | J13: =OFFSET(Potencia!J120,0,($L$1-1)*10) -> - | K13: =OFFSET(Potencia!K120,0,($L$1-1)*10) -> - | L13: =OFFSET(Potencia!L120,0,($L$1-1)*10) -> -
B14: =Potencia!B89 -> Fuel + Gas | C14: =OFFSET(Potencia!C121,0,($L$1-1)*10) -> - | D14: =OFFSET(Potencia!D121,0,($L$1-1)*10) -> - | E14: =OFFSET(Potencia!E121,0,($L$1-1)*10) -> - | F14: =OFFSET(Potencia!F121,0,($L$1-1)*10) -> - | G14: =OFFSET(Potencia!G121,0,($L$1-1)*10) -> - | H14: =OFFSET(Potencia!H121,0,($L$1-1)*10) -> - | I14: =OFFSET(Potencia!I121,0,($L$1-1)*10) -> - | J14: =OFFSET(Potencia!J121,0,($L$1-1)*10) -> - | K14: =OFFSET(Potencia!K121,0,($L$1-1)*10) -> - | L14: =OFFSET(Potencia!L121,0,($L$1-1)*10) -> -
B15: =Potencia!B90 -> Ciclo combinado | C15: =OFFSET(Potencia!C122,0,($L$1-1)*10) -> 854.17 | D15: =OFFSET(Potencia!D122,0,($L$1-1)*10) -> 854.17 | E15: =OFFSET(Potencia!E122,0,($L$1-1)*10) -> 854.17 | F15: =OFFSET(Potencia!F122,0,($L$1-1)*10) -> 854.17 | G15: =OFFSET(Potencia!G122,0,($L$1-1)*10) -> 854.17 | H15: =OFFSET(Potencia!H122,0,($L$1-1)*10) -> 854.17 | I15: =OFFSET(Potencia!I122,0,($L$1-1)*10) -> - | J15: =OFFSET(Potencia!J122,0,($L$1-1)*10) -> - | K15: =OFFSET(Potencia!K122,0,($L$1-1)*10) -> - | L15: =OFFSET(Potencia!L122,0,($L$1-1)*10) -> -
B16: =Potencia!B91 -> Eólica | C16: =OFFSET(Potencia!C123,0,($L$1-1)*10) -> 518.45 | D16: =OFFSET(Potencia!D123,0,($L$1-1)*10) -> 518.45 | E16: =OFFSET(Potencia!E123,0,($L$1-1)*10) -> 518.45 | F16: =OFFSET(Potencia!F123,0,($L$1-1)*10) -> 518.45 | G16: =OFFSET(Potencia!G123,0,($L$1-1)*10) -> 518.45 | H16: =OFFSET(Potencia!H123,0,($L$1-1)*10) -> 518.45 | I16: =OFFSET(Potencia!I123,0,($L$1-1)*10) -> - | J16: =OFFSET(Potencia!J123,0,($L$1-1)*10) -> - | K16: =OFFSET(Potencia!K123,0,($L$1-1)*10) -> - | L16: =OFFSET(Potencia!L123,0,($L$1-1)*10) -> -
B17: =Potencia!B92 -> Solar fotovoltaica | C17: =OFFSET(Potencia!C124,0,($L$1-1)*10) -> 0.79043 | D17: =OFFSET(Potencia!D124,0,($L$1-1)*10) -> 0.79043 | E17: =OFFSET(Potencia!E124,0,($L$1-1)*10) -> 0.73653 | F17: =OFFSET(Potencia!F124,0,($L$1-1)*10) -> 0.828955 | G17: =OFFSET(Potencia!G124,0,($L$1-1)*10) -> 0.796485 | H17: =OFFSET(Potencia!H124,0,($L$1-1)*10) -> 0.796485 | I17: =OFFSET(Potencia!I124,0,($L$1-1)*10) -> - | J17: =OFFSET(Potencia!J124,0,($L$1-1)*10) -> - | K17: =OFFSET(Potencia!K124,0,($L$1-1)*10) -> - | L17: =OFFSET(Potencia!L124,0,($L$1-1)*10) -> -
B18: =Potencia!B93 -> Solar térmica | C18: =OFFSET(Potencia!C125,0,($L$1-1)*10) -> - | D18: =OFFSET(Potencia!D125,0,($L$1-1)*10) -> - | E18: =OFFSET(Potencia!E125,0,($L$1-1)*10) -> - | F18: =OFFSET(Potencia!F125,0,($L$1-1)*10) -> - | G18: =OFFSET(Potencia!G125,0,($L$1-1)*10) -> - | H18: =OFFSET(Potencia!H125,0,($L$1-1)*10) -> - | I18: =OFFSET(Potencia!I125,0,($L$1-1)*10) -> - | J18: =OFFSET(Potencia!J125,0,($L$1-1)*10) -> - | K18: =OFFSET(Potencia!K125,0,($L$1-1)*10) -> - | L18: =OFFSET(Potencia!L125,0,($L$1-1)*10) -> -
B19: Otras renovables (1) | C19: =OFFSET(Potencia!C126,0,($L$1-1)*10) -> 86.71 | D19: =OFFSET(Potencia!D126,0,($L$1-1)*10) -> 86.71 | E19: =OFFSET(Potencia!E126,0,($L$1-1)*10) -> 86.71 | F19: =OFFSET(Potencia!F126,0,($L$1-1)*10) -> 90.86 | G19: =OFFSET(Potencia!G126,0,($L$1-1)*10) -> 90.86 | H19: =OFFSET(Potencia!H126,0,($L$1-1)*10) -> 90.86 | I19: =OFFSET(Potencia!I126,0,($L$1-1)*10) -> - | J19: =OFFSET(Potencia!J126,0,($L$1-1)*10) -> - | K19: =OFFSET(Potencia!K126,0,($L$1-1)*10) -> - | L19: =OFFSET(Potencia!L126,0,($L$1-1)*10) -> -
B20: Cogeneración | C20: =OFFSET(Potencia!C127,0,($L$1-1)*10) -> 81.517 | D20: =OFFSET(Potencia!D127,0,($L$1-1)*10) -> 74.906 | E20: =OFFSET(Potencia!E127,0,($L$1-1)*10) -> 68.924 | F20: =OFFSET(Potencia!F127,0,($L$1-1)*10) -> 68.924 | G20: =OFFSET(Potencia!G127,0,($L$1-1)*10) -> 68.924 | H20: =OFFSET(Potencia!H127,0,($L$1-1)*10) -> 68.924 | I20: =OFFSET(Potencia!I127,0,($L$1-1)*10) -> - | J20: =OFFSET(Potencia!J127,0,($L$1-1)*10) -> - | K20: =OFFSET(Potencia!K127,0,($L$1-1)*10) -> - | L20: =OFFSET(Potencia!L127,0,($L$1-1)*10) -> -
B21: Residuos no renovables | C21: =OFFSET(Potencia!C128,0,($L$1-1)*10) -> 74.387 | D21: =OFFSET(Potencia!D128,0,($L$1-1)*10) -> 74.387 | E21: =OFFSET(Potencia!E128,0,($L$1-1)*10) -> 74.387 | F21: =OFFSET(Potencia!F128,0,($L$1-1)*10) -> 74.387 | G21: =OFFSET(Potencia!G128,0,($L$1-1)*10) -> 74.387 | H21: =OFFSET(Potencia!H128,0,($L$1-1)*10) -> 74.387 | I21: =OFFSET(Potencia!I128,0,($L$1-1)*10) -> - | J21: =OFFSET(Potencia!J128,0,($L$1-1)*10) -> - | K21: =OFFSET(Potencia!K128,0,($L$1-1)*10) -> - | L21: =OFFSET(Potencia!L128,0,($L$1-1)*10) -> -
B22: Residuos renovables | C22: =OFFSET(Potencia!C129,0,($L$1-1)*10) -> - | D22: =OFFSET(Potencia!D129,0,($L$1-1)*10) -> - | E22: =OFFSET(Potencia!E129,0,($L$1-1)*10) -> - | F22: =OFFSET(Potencia!F129,0,($L$1-1)*10) -> - | G22: =OFFSET(Potencia!G129,0,($L$1-1)*10) -> - | H22: =OFFSET(Potencia!H129,0,($L$1-1)*10) -> - | I22: =OFFSET(Potencia!I129,0,($L$1-1)*10) -> - | J22: =OFFSET(Potencia!J129,0,($L$1-1)*10) -> - | K22: =OFFSET(Potencia!K129,0,($L$1-1)*10) -> - | L22: =OFFSET(Potencia!L129,0,($L$1-1)*10) -> -
B23: Total | C23: =OFFSET(Potencia!C130,0,($L$1-1)*10) -> 4785.36623 | D23: =OFFSET(Potencia!D130,0,($L$1-1)*10) -> 4487.58523 | E23: =OFFSET(Potencia!E130,0,($L$1-1)*10) -> 4481.54933 | F23: =OFFSET(Potencia!F130,0,($L$1-1)*10) -> 4511.806755 | G23: =OFFSET(Potencia!G130,0,($L$1-1)*10) -> 4511.774285 | H23: =OFFSET(Potencia!H130,0,($L$1-1)*10) -> 4511.774285 | I23: =OFFSET(Potencia!I130,0,($L$1-1)*10) -> - | J23: =OFFSET(Potencia!J130,0,($L$1-1)*10) -> - | K23: =OFFSET(Potencia!K130,0,($L$1-1)*10) -> - | L23: =OFFSET(Potencia!L130,0,($L$1-1)*10) -> -
B24: (1) Otras renovables incluyen biogás, biomasa, hidráulica marina y geotérmica.
B25: Datos a 31 de diciembre.
B26: =IF(L1=1,IF(MONTH(FACT)=1,"",(CONCATENATE("(*) Para el año ",YEAR(FACT), " datos a ",TEXT(FACT-30,"mmmm")," de ",YEAR(FACT),"."))),"") -> (*) Para el año 2020 datos a abril de 2020.
B30: =IF(L1=2,IF(MONTH(FACT)=1,"",(CONCATENATE("(*) Para el año ",YEAR(FACT), " datos a ",TEXT(FACT-30,"mmmm")," de ",YEAR(FACT),"."))),"") -> 

Sheet Potencia C.Valenciana
L1: 1
J5: Sistema / C.Autónoma
J6: Periodo
C8: =OFFSET(Potencia!C132,0,($L$1-1)*10) -> 2015 | D8: =OFFSET(Potencia!D132,0,($L$1-1)*10) -> 2016 | E8: =OFFSET(Potencia!E132,0,($L$1-1)*10) -> 2017 | F8: =OFFSET(Potencia!F132,0,($L$1-1)*10) -> 2018 | G8: =OFFSET(Potencia!G132,0,($L$1-1)*10) -> 2019 | H8: =OFFSET(Potencia!H132,0,($L$1-1)*10) -> 2020 | I8: =OFFSET(Potencia!I132,0,($L$1-1)*10) -> 2021 | J8: =OFFSET(Potencia!J132,0,($L$1-1)*10) -> 2022 | K8: =OFFSET(Potencia!K132,0,($L$1-1)*10) -> 2023 | L8: =OFFSET(Potencia!L132,0,($L$1-1)*10) -> 2024
B10: =Potencia!B85 -> Bombeo puro | C10: =OFFSET(Potencia!C133,0,($L$1-1)*10) -> 1511.95 | D10: =OFFSET(Potencia!D133,0,($L$1-1)*10) -> 1511.95 | E10: =OFFSET(Potencia!E133,0,($L$1-1)*10) -> 1511.95 | F10: =OFFSET(Potencia!F133,0,($L$1-1)*10) -> 1511.95 | G10: =OFFSET(Potencia!G133,0,($L$1-1)*10) -> 1511.95 | H10: =OFFSET(Potencia!H133,0,($L$1-1)*10) -> 1511.95 | I10: =OFFSET(Potencia!I133,0,($L$1-1)*10) -> - | J10: =OFFSET(Potencia!J133,0,($L$1-1)*10) -> - | K10: =OFFSET(Potencia!K133,0,($L$1-1)*10) -> - | L10: =OFFSET(Potencia!L133,0,($L$1-1)*10) -> -
B11: =Potencia!B86 -> Hidráulica convencional y mixta | C11: =OFFSET(Potencia!C134,0,($L$1-1)*10) -> 639.784 | D11: =OFFSET(Potencia!D134,0,($L$1-1)*10) -> 639.784 | E11: =OFFSET(Potencia!E134,0,($L$1-1)*10) -> 639.784 | F11: =OFFSET(Potencia!F134,0,($L$1-1)*10) -> 639.784 | G11: =OFFSET(Potencia!G134,0,($L$1-1)*10) -> 639.784 | H11: =OFFSET(Potencia!H134,0,($L$1-1)*10) -> 639.784 | I11: =OFFSET(Potencia!I134,0,($L$1-1)*10) -> - | J11: =OFFSET(Potencia!J134,0,($L$1-1)*10) -> - | K11: =OFFSET(Potencia!K134,0,($L$1-1)*10) -> - | L11: =OFFSET(Potencia!L134,0,($L$1-1)*10) -> -
B12: =Potencia!B87 -> Nuclear | C12: =OFFSET(Potencia!C135,0,($L$1-1)*10) -> 1063.94 | D12: =OFFSET(Potencia!D135,0,($L$1-1)*10) -> 1063.94 | E12: =OFFSET(Potencia!E135,0,($L$1-1)*10) -> 1063.94 | F12: =OFFSET(Potencia!F135,0,($L$1-1)*10) -> 1063.94 | G12: =OFFSET(Potencia!G135,0,($L$1-1)*10) -> 1063.94 | H12: =OFFSET(Potencia!H135,0,($L$1-1)*10) -> 1063.94 | I12: =OFFSET(Potencia!I135,0,($L$1-1)*10) -> - | J12: =OFFSET(Potencia!J135,0,($L$1-1)*10) -> - | K12: =OFFSET(Potencia!K135,0,($L$1-1)*10) -> - | L12: =OFFSET(Potencia!L135,0,($L$1-1)*10) -> -
B13: =Potencia!B88 -> Carbón | C13: =OFFSET(Potencia!C136,0,($L$1-1)*10) -> - | D13: =OFFSET(Potencia!D136,0,($L$1-1)*10) -> - | E13: =OFFSET(Potencia!E136,0,($L$1-1)*10) -> - | F13: =OFFSET(Potencia!F136,0,($L$1-1)*10) -> - | G13: =OFFSET(Potencia!G136,0,($L$1-1)*10) -> - | H13: =OFFSET(Potencia!H136,0,($L$1-1)*10) -> - | I13: =OFFSET(Potencia!I136,0,($L$1-1)*10) -> - | J13: =OFFSET(Potencia!J136,0,($L$1-1)*10) -> - | K13: =OFFSET(Potencia!K136,0,($L$1-1)*10) -> - | L13: =OFFSET(Potencia!L136,0,($L$1-1)*10) -> -
B14: =Potencia!B89 -> Fuel + Gas | C14: =OFFSET(Potencia!C137,0,($L$1-1)*10) -> - | D14: =OFFSET(Potencia!D137,0,($L$1-1)*10) -> - | E14: =OFFSET(Potencia!E137,0,($L$1-1)*10) -> - | F14: =OFFSET(Potencia!F137,0,($L$1-1)*10) -> - | G14: =OFFSET(Potencia!G137,0,($L$1-1)*10) -> - | H14: =OFFSET(Potencia!H137,0,($L$1-1)*10) -> - | I14: =OFFSET(Potencia!I137,0,($L$1-1)*10) -> - | J14: =OFFSET(Potencia!J137,0,($L$1-1)*10) -> - | K14: =OFFSET(Potencia!K137,0,($L$1-1)*10) -> - | L14: =OFFSET(Potencia!L137,0,($L$1-1)*10) -> -
B15: =Potencia!B90 -> Ciclo combinado | C15: =OFFSET(Potencia!C138,0,($L$1-1)*10) -> 2853.54 | D15: =OFFSET(Potencia!D138,0,($L$1-1)*10) -> 2853.54 | E15: =OFFSET(Potencia!E138,0,($L$1-1)*10) -> 2853.54 | F15: =OFFSET(Potencia!F138,0,($L$1-1)*10) -> 2853.54 | G15: =OFFSET(Potencia!G138,0,($L$1-1)*10) -> 2853.54 | H15: =OFFSET(Potencia!H138,0,($L$1-1)*10) -> 2853.54 | I15: =OFFSET(Potencia!I138,0,($L$1-1)*10) -> - | J15: =OFFSET(Potencia!J138,0,($L$1-1)*10) -> - | K15: =OFFSET(Potencia!K138,0,($L$1-1)*10) -> - | L15: =OFFSET(Potencia!L138,0,($L$1-1)*10) -> -
B16: =Potencia!B91 -> Eólica | C16: =OFFSET(Potencia!C139,0,($L$1-1)*10) -> 1205.24 | D16: =OFFSET(Potencia!D139,0,($L$1-1)*10) -> 1205.24 | E16: =OFFSET(Potencia!E139,0,($L$1-1)*10) -> 1205.24 | F16: =OFFSET(Potencia!F139,0,($L$1-1)*10) -> 1205.24 | G16: =OFFSET(Potencia!G139,0,($L$1-1)*10) -> 1205.24 | H16: =OFFSET(Potencia!H139,0,($L$1-1)*10) -> 1255.03 | I16: =OFFSET(Potencia!I139,0,($L$1-1)*10) -> - | J16: =OFFSET(Potencia!J139,0,($L$1-1)*10) -> - | K16: =OFFSET(Potencia!K139,0,($L$1-1)*10) -> - | L16: =OFFSET(Potencia!L139,0,($L$1-1)*10) -> -
B17: =Potencia!B92 -> Solar fotovoltaica | C17: =OFFSET(Potencia!C140,0,($L$1-1)*10) -> 348.085955 | D17: =OFFSET(Potencia!D140,0,($L$1-1)*10) -> 348.10864 | E17: =OFFSET(Potencia!E140,0,($L$1-1)*10) -> 348.255125 | F17: =OFFSET(Potencia!F140,0,($L$1-1)*10) -> 360.357725 | G17: =OFFSET(Potencia!G140,0,($L$1-1)*10) -> 364.315115 | H17: =OFFSET(Potencia!H140,0,($L$1-1)*10) -> 364.315115 | I17: =OFFSET(Potencia!I140,0,($L$1-1)*10) -> - | J17: =OFFSET(Potencia!J140,0,($L$1-1)*10) -> - | K17: =OFFSET(Potencia!K140,0,($L$1-1)*10) -> - | L17: =OFFSET(Potencia!L140,0,($L$1-1)*10) -> -
B18: =Potencia!B93 -> Solar térmica | C18: =OFFSET(Potencia!C141,0,($L$1-1)*10) -> 49.9 | D18: =OFFSET(Potencia!D141,0,($L$1-1)*10) -> 49.9 | E18: =OFFSET(Potencia!E141,0,($L$1-1)*10) -> 49.9 | F18: =OFFSET(Potencia!F141,0,($L$1-1)*10) -> 49.9 | G18: =OFFSET(Potencia!G141,0,($L$1-1)*10) -> 49.9 | H18: =OFFSET(Potencia!H141,0,($L$1-1)*10) -> 49.9 | I18: =OFFSET(Potencia!I141,0,($L$1-1)*10) -> - | J18: =OFFSET(Potencia!J141,0,($L$1-1)*10) -> - | K18: =OFFSET(Potencia!K141,0,($L$1-1)*10) -> - | L18: =OFFSET(Potencia!L141,0,($L$1-1)*10) -> -
B19: Otras renovables (1) | C19: =OFFSET(Potencia!C142,0,($L$1-1)*10) -> 14.043 | D19: =OFFSET(Potencia!D142,0,($L$1-1)*10) -> 12.393 | E19: =OFFSET(Potencia!E142,0,($L$1-1)*10) -> 12.893 | F19: =OFFSET(Potencia!F142,0,($L$1-1)*10) -> 13.223 | G19: =OFFSET(Potencia!G142,0,($L$1-1)*10) -> 13.223 | H19: =OFFSET(Potencia!H142,0,($L$1-1)*10) -> 13.223 | I19: =OFFSET(Potencia!I142,0,($L$1-1)*10) -> - | J19: =OFFSET(Potencia!J142,0,($L$1-1)*10) -> - | K19: =OFFSET(Potencia!K142,0,($L$1-1)*10) -> - | L19: =OFFSET(Potencia!L142,0,($L$1-1)*10) -> -
B20: Cogeneración | C20: =OFFSET(Potencia!C143,0,($L$1-1)*10) -> 522.76261 | D20: =OFFSET(Potencia!D143,0,($L$1-1)*10) -> 503.37061 | E20: =OFFSET(Potencia!E143,0,($L$1-1)*10) -> 500.92061 | F20: =OFFSET(Potencia!F143,0,($L$1-1)*10) -> 462.52 | G20: =OFFSET(Potencia!G143,0,($L$1-1)*10) -> 457.785 | H20: =OFFSET(Potencia!H143,0,($L$1-1)*10) -> 453.129 | I20: =OFFSET(Potencia!I143,0,($L$1-1)*10) -> - | J20: =OFFSET(Potencia!J143,0,($L$1-1)*10) -> - | K20: =OFFSET(Potencia!K143,0,($L$1-1)*10) -> - | L20: =OFFSET(Potencia!L143,0,($L$1-1)*10) -> -
B21: Residuos no renovables | C21: =OFFSET(Potencia!C144,0,($L$1-1)*10) -> 63.088 | D21: =OFFSET(Potencia!D144,0,($L$1-1)*10) -> 63.088 | E21: =OFFSET(Potencia!E144,0,($L$1-1)*10) -> 63.088 | F21: =OFFSET(Potencia!F144,0,($L$1-1)*10) -> 63.088 | G21: =OFFSET(Potencia!G144,0,($L$1-1)*10) -> 63.088 | H21: =OFFSET(Potencia!H144,0,($L$1-1)*10) -> 63.088 | I21: =OFFSET(Potencia!I144,0,($L$1-1)*10) -> - | J21: =OFFSET(Potencia!J144,0,($L$1-1)*10) -> - | K21: =OFFSET(Potencia!K144,0,($L$1-1)*10) -> - | L21: =OFFSET(Potencia!L144,0,($L$1-1)*10) -> -
B22: Residuos renovables | C22: =OFFSET(Potencia!C145,0,($L$1-1)*10) -> - | D22: =OFFSET(Potencia!D145,0,($L$1-1)*10) -> - | E22: =OFFSET(Potencia!E145,0,($L$1-1)*10) -> - | F22: =OFFSET(Potencia!F145,0,($L$1-1)*10) -> - | G22: =OFFSET(Potencia!G145,0,($L$1-1)*10) -> - | H22: =OFFSET(Potencia!H145,0,($L$1-1)*10) -> - | I22: =OFFSET(Potencia!I145,0,($L$1-1)*10) -> - | J22: =OFFSET(Potencia!J145,0,($L$1-1)*10) -> - | K22: =OFFSET(Potencia!K145,0,($L$1-1)*10) -> - | L22: =OFFSET(Potencia!L145,0,($L$1-1)*10) -> -
B23: Total | C23: =OFFSET(Potencia!C146,0,($L$1-1)*10) -> 8272.333565 | D23: =OFFSET(Potencia!D146,0,($L$1-1)*10) -> 8251.31425 | E23: =OFFSET(Potencia!E146,0,($L$1-1)*10) -> 8249.510735 | F23: =OFFSET(Potencia!F146,0,($L$1-1)*10) -> 8223.542725 | G23: =OFFSET(Potencia!G146,0,($L$1-1)*10) -> 8222.765115 | H23: =OFFSET(Potencia!H146,0,($L$1-1)*10) -> 8267.899115 | I23: =OFFSET(Potencia!I146,0,($L$1-1)*10) -> - | J23: =OFFSET(Potencia!J146,0,($L$1-1)*10) -> - | K23: =OFFSET(Potencia!K146,0,($L$1-1)*10) -> - | L23: =OFFSET(Potencia!L146,0,($L$1-1)*10) -> -
B24: (1) Otras renovables incluyen biogás, biomasa, hidráulica marina y geotérmica.
B25: Datos a 31 de diciembre.
B26: =IF(L1=1,IF(MONTH(FACT)=1,"",(CONCATENATE("(*) Para el año ",YEAR(FACT), " datos a ",TEXT(FACT-30,"mmmm")," de ",YEAR(FACT),"."))),"") -> (*) Para el año 2020 datos a abril de 2020.
B30: =IF(L1=2,IF(MONTH(FACT)=1,"",(CONCATENATE("(*) Para el año ",YEAR(FACT), " datos a ",TEXT(FACT-30,"mmmm")," de ",YEAR(FACT),"."))),"") -> 

Sheet Potencia Cantabria
L1: 1
J5: Sistema / C.Autónoma
J6: Periodo
C8: =OFFSET(Potencia!C148,0,($L$1-1)*10) -> 2015 | D8: =OFFSET(Potencia!D148,0,($L$1-1)*10) -> 2016 | E8: =OFFSET(Potencia!E148,0,($L$1-1)*10) -> 2017 | F8: =OFFSET(Potencia!F148,0,($L$1-1)*10) -> 2018 | G8: =OFFSET(Potencia!G148,0,($L$1-1)*10) -> 2019 | H8: =OFFSET(Potencia!H148,0,($L$1-1)*10) -> 2020 | I8: =OFFSET(Potencia!I148,0,($L$1-1)*10) -> 2021 | J8: =OFFSET(Potencia!J148,0,($L$1-1)*10) -> 2022 | K8: =OFFSET(Potencia!K148,0,($L$1-1)*10) -> 2023 | L8: =OFFSET(Potencia!L148,0,($L$1-1)*10) -> 2024
B10: =Potencia!B85 -> Bombeo puro | C10: =OFFSET(Potencia!C149,0,($L$1-1)*10) -> 360.6 | D10: =OFFSET(Potencia!D149,0,($L$1-1)*10) -> 360.6 | E10: =OFFSET(Potencia!E149,0,($L$1-1)*10) -> 360.6 | F10: =OFFSET(Potencia!F149,0,($L$1-1)*10) -> 360.6 | G10: =OFFSET(Potencia!G149,0,($L$1-1)*10) -> 360.6 | H10: =OFFSET(Potencia!H149,0,($L$1-1)*10) -> 360.6 | I10: =OFFSET(Potencia!I149,0,($L$1-1)*10) -> - | J10: =OFFSET(Potencia!J149,0,($L$1-1)*10) -> - | K10: =OFFSET(Potencia!K149,0,($L$1-1)*10) -> - | L10: =OFFSET(Potencia!L149,0,($L$1-1)*10) -> -
B11: =Potencia!B86 -> Hidráulica convencional y mixta | C11: =OFFSET(Potencia!C150,0,($L$1-1)*10) -> 98.417 | D11: =OFFSET(Potencia!D150,0,($L$1-1)*10) -> 98.842 | E11: =OFFSET(Potencia!E150,0,($L$1-1)*10) -> 98.842 | F11: =OFFSET(Potencia!F150,0,($L$1-1)*10) -> 98.842 | G11: =OFFSET(Potencia!G150,0,($L$1-1)*10) -> 98.912 | H11: =OFFSET(Potencia!H150,0,($L$1-1)*10) -> 98.912 | I11: =OFFSET(Potencia!I150,0,($L$1-1)*10) -> - | J11: =OFFSET(Potencia!J150,0,($L$1-1)*10) -> - | K11: =OFFSET(Potencia!K150,0,($L$1-1)*10) -> - | L11: =OFFSET(Potencia!L150,0,($L$1-1)*10) -> -
B12: =Potencia!B87 -> Nuclear | C12: =OFFSET(Potencia!C151,0,($L$1-1)*10) -> - | D12: =OFFSET(Potencia!D151,0,($L$1-1)*10) -> - | E12: =OFFSET(Potencia!E151,0,($L$1-1)*10) -> - | F12: =OFFSET(Potencia!F151,0,($L$1-1)*10) -> - | G12: =OFFSET(Potencia!G151,0,($L$1-1)*10) -> - | H12: =OFFSET(Potencia!H151,0,($L$1-1)*10) -> - | I12: =OFFSET(Potencia!I151,0,($L$1-1)*10) -> - | J12: =OFFSET(Potencia!J151,0,($L$1-1)*10) -> - | K12: =OFFSET(Potencia!K151,0,($L$1-1)*10) -> - | L12: =OFFSET(Potencia!L151,0,($L$1-1)*10) -> -
B13: =Potencia!B88 -> Carbón | C13: =OFFSET(Potencia!C152,0,($L$1-1)*10) -> - | D13: =OFFSET(Potencia!D152,0,($L$1-1)*10) -> - | E13: =OFFSET(Potencia!E152,0,($L$1-1)*10) -> - | F13: =OFFSET(Potencia!F152,0,($L$1-1)*10) -> - | G13: =OFFSET(Potencia!G152,0,($L$1-1)*10) -> - | H13: =OFFSET(Potencia!H152,0,($L$1-1)*10) -> - | I13: =OFFSET(Potencia!I152,0,($L$1-1)*10) -> - | J13: =OFFSET(Potencia!J152,0,($L$1-1)*10) -> - | K13: =OFFSET(Potencia!K152,0,($L$1-1)*10) -> - | L13: =OFFSET(Potencia!L152,0,($L$1-1)*10) -> -
B14: =Potencia!B89 -> Fuel + Gas | C14: =OFFSET(Potencia!C153,0,($L$1-1)*10) -> - | D14: =OFFSET(Potencia!D153,0,($L$1-1)*10) -> - | E14: =OFFSET(Potencia!E153,0,($L$1-1)*10) -> - | F14: =OFFSET(Potencia!F153,0,($L$1-1)*10) -> - | G14: =OFFSET(Potencia!G153,0,($L$1-1)*10) -> - | H14: =OFFSET(Potencia!H153,0,($L$1-1)*10) -> - | I14: =OFFSET(Potencia!I153,0,($L$1-1)*10) -> - | J14: =OFFSET(Potencia!J153,0,($L$1-1)*10) -> - | K14: =OFFSET(Potencia!K153,0,($L$1-1)*10) -> - | L14: =OFFSET(Potencia!L153,0,($L$1-1)*10) -> -
B15: =Potencia!B90 -> Ciclo combinado | C15: =OFFSET(Potencia!C154,0,($L$1-1)*10) -> - | D15: =OFFSET(Potencia!D154,0,($L$1-1)*10) -> - | E15: =OFFSET(Potencia!E154,0,($L$1-1)*10) -> - | F15: =OFFSET(Potencia!F154,0,($L$1-1)*10) -> - | G15: =OFFSET(Potencia!G154,0,($L$1-1)*10) -> - | H15: =OFFSET(Potencia!H154,0,($L$1-1)*10) -> - | I15: =OFFSET(Potencia!I154,0,($L$1-1)*10) -> - | J15: =OFFSET(Potencia!J154,0,($L$1-1)*10) -> - | K15: =OFFSET(Potencia!K154,0,($L$1-1)*10) -> - | L15: =OFFSET(Potencia!L154,0,($L$1-1)*10) -> -
B16: =Potencia!B91 -> Eólica | C16: =OFFSET(Potencia!C155,0,($L$1-1)*10) -> 35.3105 | D16: =OFFSET(Potencia!D155,0,($L$1-1)*10) -> 35.3105 | E16: =OFFSET(Potencia!E155,0,($L$1-1)*10) -> 35.3105 | F16: =OFFSET(Potencia!F155,0,($L$1-1)*10) -> 35.3105 | G16: =OFFSET(Potencia!G155,0,($L$1-1)*10) -> 35.3105 | H16: =OFFSET(Potencia!H155,0,($L$1-1)*10) -> 35.3105 | I16: =OFFSET(Potencia!I155,0,($L$1-1)*10) -> - | J16: =OFFSET(Potencia!J155,0,($L$1-1)*10) -> - | K16: =OFFSET(Potencia!K155,0,($L$1-1)*10) -> - | L16: =OFFSET(Potencia!L155,0,($L$1-1)*10) -> -
B17: =Potencia!B92 -> Solar fotovoltaica | C17: =OFFSET(Potencia!C156,0,($L$1-1)*10) -> 2.099535 | D17: =OFFSET(Potencia!D156,0,($L$1-1)*10) -> 2.099535 | E17: =OFFSET(Potencia!E156,0,($L$1-1)*10) -> 2.173055 | F17: =OFFSET(Potencia!F156,0,($L$1-1)*10) -> 2.173055 | G17: =OFFSET(Potencia!G156,0,($L$1-1)*10) -> 2.173055 | H17: =OFFSET(Potencia!H156,0,($L$1-1)*10) -> 2.173055 | I17: =OFFSET(Potencia!I156,0,($L$1-1)*10) -> - | J17: =OFFSET(Potencia!J156,0,($L$1-1)*10) -> - | K17: =OFFSET(Potencia!K156,0,($L$1-1)*10) -> - | L17: =OFFSET(Potencia!L156,0,($L$1-1)*10) -> -
B18: =Potencia!B93 -> Solar térmica | C18: =OFFSET(Potencia!C157,0,($L$1-1)*10) -> - | D18: =OFFSET(Potencia!D157,0,($L$1-1)*10) -> - | E18: =OFFSET(Potencia!E157,0,($L$1-1)*10) -> - | F18: =OFFSET(Potencia!F157,0,($L$1-1)*10) -> - | G18: =OFFSET(Potencia!G157,0,($L$1-1)*10) -> - | H18: =OFFSET(Potencia!H157,0,($L$1-1)*10) -> - | I18: =OFFSET(Potencia!I157,0,($L$1-1)*10) -> - | J18: =OFFSET(Potencia!J157,0,($L$1-1)*10) -> - | K18: =OFFSET(Potencia!K157,0,($L$1-1)*10) -> - | L18: =OFFSET(Potencia!L157,0,($L$1-1)*10) -> -
B19: Otras renovables (1) | C19: =OFFSET(Potencia!C158,0,($L$1-1)*10) -> 12.862 | D19: =OFFSET(Potencia!D158,0,($L$1-1)*10) -> 12.862 | E19: =OFFSET(Potencia!E158,0,($L$1-1)*10) -> 12.862 | F19: =OFFSET(Potencia!F158,0,($L$1-1)*10) -> 12.862 | G19: =OFFSET(Potencia!G158,0,($L$1-1)*10) -> 12.862 | H19: =OFFSET(Potencia!H158,0,($L$1-1)*10) -> 12.862 | I19: =OFFSET(Potencia!I158,0,($L$1-1)*10) -> - | J19: =OFFSET(Potencia!J158,0,($L$1-1)*10) -> - | K19: =OFFSET(Potencia!K158,0,($L$1-1)*10) -> - | L19: =OFFSET(Potencia!L158,0,($L$1-1)*10) -> -
B20: Cogeneración | C20: =OFFSET(Potencia!C159,0,($L$1-1)*10) -> 295.5995 | D20: =OFFSET(Potencia!D159,0,($L$1-1)*10) -> 295.5995 | E20: =OFFSET(Potencia!E159,0,($L$1-1)*10) -> 295.5995 | F20: =OFFSET(Potencia!F159,0,($L$1-1)*10) -> 295.5995 | G20: =OFFSET(Potencia!G159,0,($L$1-1)*10) -> 295.5995 | H20: =OFFSET(Potencia!H159,0,($L$1-1)*10) -> 295.5995 | I20: =OFFSET(Potencia!I159,0,($L$1-1)*10) -> - | J20: =OFFSET(Potencia!J159,0,($L$1-1)*10) -> - | K20: =OFFSET(Potencia!K159,0,($L$1-1)*10) -> - | L20: =OFFSET(Potencia!L159,0,($L$1-1)*10) -> -
B21: Residuos no renovables | C21: =OFFSET(Potencia!C160,0,($L$1-1)*10) -> 4.967 | D21: =OFFSET(Potencia!D160,0,($L$1-1)*10) -> 4.967 | E21: =OFFSET(Potencia!E160,0,($L$1-1)*10) -> 4.967 | F21: =OFFSET(Potencia!F160,0,($L$1-1)*10) -> 4.967 | G21: =OFFSET(Potencia!G160,0,($L$1-1)*10) -> 4.967 | H21: =OFFSET(Potencia!H160,0,($L$1-1)*10) -> 4.967 | I21: =OFFSET(Potencia!I160,0,($L$1-1)*10) -> - | J21: =OFFSET(Potencia!J160,0,($L$1-1)*10) -> - | K21: =OFFSET(Potencia!K160,0,($L$1-1)*10) -> - | L21: =OFFSET(Potencia!L160,0,($L$1-1)*10) -> -
B22: Residuos renovables | C22: =OFFSET(Potencia!C161,0,($L$1-1)*10) -> 4.967 | D22: =OFFSET(Potencia!D161,0,($L$1-1)*10) -> 4.967 | E22: =OFFSET(Potencia!E161,0,($L$1-1)*10) -> 4.967 | F22: =OFFSET(Potencia!F161,0,($L$1-1)*10) -> 4.967 | G22: =OFFSET(Potencia!G161,0,($L$1-1)*10) -> 4.967 | H22: =OFFSET(Potencia!H161,0,($L$1-1)*10) -> 4.967 | I22: =OFFSET(Potencia!I161,0,($L$1-1)*10) -> - | J22: =OFFSET(Potencia!J161,0,($L$1-1)*10) -> - | K22: =OFFSET(Potencia!K161,0,($L$1-1)*10) -> - | L22: =OFFSET(Potencia!L161,0,($L$1-1)*10) -> -
B23: Total | C23: =OFFSET(Potencia!C162,0,($L$1-1)*10) -> 814.822535 | D23: =OFFSET(Potencia!D162,0,($L$1-1)*10) -> 815.247535 | E23: =OFFSET(Potencia!E162,0,($L$1-1)*10) -> 815.321055 | F23: =OFFSET(Potencia!F162,0,($L$1-1)*10) -> 815.321055 | G23: =OFFSET(Potencia!G162,0,($L$1-1)*10) -> 815.391055 | H23: =OFFSET(Potencia!H162,0,($L$1-1)*10) -> 815.391055 | I23: =OFFSET(Potencia!I162,0,($L$1-1)*10) -> - | J23: =OFFSET(Potencia!J162,0,($L$1-1)*10) -> - | K23: =OFFSET(Potencia!K162,0,($L$1-1)*10) -> - | L23: =OFFSET(Potencia!L162,0,($L$1-1)*10) -> -
B24: (1) Otras renovables incluyen biogás, biomasa, hidráulica marina y geotérmica.
B25: Datos a 31 de diciembre.
B26: =IF(L1=1,IF(MONTH(FACT)=1,"",(CONCATENATE("(*) Para el año ",YEAR(FACT), " datos a ",TEXT(FACT-30,"mmmm")," de ",YEAR(FACT),"."))),"") -> (*) Para el año 2020 datos a abril de 2020.
B30: =IF(L1=2,IF(MONTH(FACT)=1,"",(CONCATENATE("(*) Para el año ",YEAR(FACT), " datos a ",TEXT(FACT-30,"mmmm")," de ",YEAR(FACT),"."))),"") -> 

Sheet Potencia Castilla-La Mancha
L1: 1
J5: Sistema / C.Autónoma
J6: Periodo
C8: =OFFSET(Potencia!C164,0,($L$1-1)*10) -> 2015 | D8: =OFFSET(Potencia!D164,0,($L$1-1)*10) -> 2016 | E8: =OFFSET(Potencia!E164,0,($L$1-1)*10) -> 2017 | F8: =OFFSET(Potencia!F164,0,($L$1-1)*10) -> 2018 | G8: =OFFSET(Potencia!G164,0,($L$1-1)*10) -> 2019 | H8: =OFFSET(Potencia!H164,0,($L$1-1)*10) -> 2020 | I8: =OFFSET(Potencia!I164,0,($L$1-1)*10) -> 2021 | J8: =OFFSET(Potencia!J164,0,($L$1-1)*10) -> 2022 | K8: =OFFSET(Potencia!K164,0,($L$1-1)*10) -> 2023 | L8: =OFFSET(Potencia!L164,0,($L$1-1)*10) -> 2024
B10: =Potencia!B85 -> Bombeo puro | C10: =OFFSET(Potencia!C165,0,($L$1-1)*10) -> 215 | D10: =OFFSET(Potencia!D165,0,($L$1-1)*10) -> 215 | E10: =OFFSET(Potencia!E165,0,($L$1-1)*10) -> 215 | F10: =OFFSET(Potencia!F165,0,($L$1-1)*10) -> 215 | G10: =OFFSET(Potencia!G165,0,($L$1-1)*10) -> 215 | H10: =OFFSET(Potencia!H165,0,($L$1-1)*10) -> 215 | I10: =OFFSET(Potencia!I165,0,($L$1-1)*10) -> - | J10: =OFFSET(Potencia!J165,0,($L$1-1)*10) -> - | K10: =OFFSET(Potencia!K165,0,($L$1-1)*10) -> - | L10: =OFFSET(Potencia!L165,0,($L$1-1)*10) -> -
B11: =Potencia!B86 -> Hidráulica convencional y mixta | C11: =OFFSET(Potencia!C166,0,($L$1-1)*10) -> 649.967 | D11: =OFFSET(Potencia!D166,0,($L$1-1)*10) -> 650.242 | E11: =OFFSET(Potencia!E166,0,($L$1-1)*10) -> 650.242 | F11: =OFFSET(Potencia!F166,0,($L$1-1)*10) -> 650.242 | G11: =OFFSET(Potencia!G166,0,($L$1-1)*10) -> 650.242 | H11: =OFFSET(Potencia!H166,0,($L$1-1)*10) -> 650.242 | I11: =OFFSET(Potencia!I166,0,($L$1-1)*10) -> - | J11: =OFFSET(Potencia!J166,0,($L$1-1)*10) -> - | K11: =OFFSET(Potencia!K166,0,($L$1-1)*10) -> - | L11: =OFFSET(Potencia!L166,0,($L$1-1)*10) -> -
B12: =Potencia!B87 -> Nuclear | C12: =OFFSET(Potencia!C167,0,($L$1-1)*10) -> 1003.41 | D12: =OFFSET(Potencia!D167,0,($L$1-1)*10) -> 1003.41 | E12: =OFFSET(Potencia!E167,0,($L$1-1)*10) -> 1003.41 | F12: =OFFSET(Potencia!F167,0,($L$1-1)*10) -> 1003.41 | G12: =OFFSET(Potencia!G167,0,($L$1-1)*10) -> 1003.41 | H12: =OFFSET(Potencia!H167,0,($L$1-1)*10) -> 1003.41 | I12: =OFFSET(Potencia!I167,0,($L$1-1)*10) -> - | J12: =OFFSET(Potencia!J167,0,($L$1-1)*10) -> - | K12: =OFFSET(Potencia!K167,0,($L$1-1)*10) -> - | L12: =OFFSET(Potencia!L167,0,($L$1-1)*10) -> -
B13: =Potencia!B88 -> Carbón | C13: =OFFSET(Potencia!C168,0,($L$1-1)*10) -> 502.64 | D13: =OFFSET(Potencia!D168,0,($L$1-1)*10) -> - | E13: =OFFSET(Potencia!E168,0,($L$1-1)*10) -> - | F13: =OFFSET(Potencia!F168,0,($L$1-1)*10) -> - | G13: =OFFSET(Potencia!G168,0,($L$1-1)*10) -> - | H13: =OFFSET(Potencia!H168,0,($L$1-1)*10) -> - | I13: =OFFSET(Potencia!I168,0,($L$1-1)*10) -> - | J13: =OFFSET(Potencia!J168,0,($L$1-1)*10) -> - | K13: =OFFSET(Potencia!K168,0,($L$1-1)*10) -> - | L13: =OFFSET(Potencia!L168,0,($L$1-1)*10) -> -
B14: =Potencia!B89 -> Fuel + Gas | C14: =OFFSET(Potencia!C169,0,($L$1-1)*10) -> - | D14: =OFFSET(Potencia!D169,0,($L$1-1)*10) -> - | E14: =OFFSET(Potencia!E169,0,($L$1-1)*10) -> - | F14: =OFFSET(Potencia!F169,0,($L$1-1)*10) -> - | G14: =OFFSET(Potencia!G169,0,($L$1-1)*10) -> - | H14: =OFFSET(Potencia!H169,0,($L$1-1)*10) -> - | I14: =OFFSET(Potencia!I169,0,($L$1-1)*10) -> - | J14: =OFFSET(Potencia!J169,0,($L$1-1)*10) -> - | K14: =OFFSET(Potencia!K169,0,($L$1-1)*10) -> - | L14: =OFFSET(Potencia!L169,0,($L$1-1)*10) -> -
B15: =Potencia!B90 -> Ciclo combinado | C15: =OFFSET(Potencia!C170,0,($L$1-1)*10) -> 758.74 | D15: =OFFSET(Potencia!D170,0,($L$1-1)*10) -> 758.74 | E15: =OFFSET(Potencia!E170,0,($L$1-1)*10) -> 758.74 | F15: =OFFSET(Potencia!F170,0,($L$1-1)*10) -> 758.74 | G15: =OFFSET(Potencia!G170,0,($L$1-1)*10) -> 758.74 | H15: =OFFSET(Potencia!H170,0,($L$1-1)*10) -> 758.74 | I15: =OFFSET(Potencia!I170,0,($L$1-1)*10) -> - | J15: =OFFSET(Potencia!J170,0,($L$1-1)*10) -> - | K15: =OFFSET(Potencia!K170,0,($L$1-1)*10) -> - | L15: =OFFSET(Potencia!L170,0,($L$1-1)*10) -> -
B16: =Potencia!B91 -> Eólica | C16: =OFFSET(Potencia!C171,0,($L$1-1)*10) -> 3798.9292 | D16: =OFFSET(Potencia!D171,0,($L$1-1)*10) -> 3798.9292 | E16: =OFFSET(Potencia!E171,0,($L$1-1)*10) -> 3799.1542 | F16: =OFFSET(Potencia!F171,0,($L$1-1)*10) -> 3809.5242 | G16: =OFFSET(Potencia!G171,0,($L$1-1)*10) -> 3812.5242 | H16: =OFFSET(Potencia!H171,0,($L$1-1)*10) -> 3812.5242 | I16: =OFFSET(Potencia!I171,0,($L$1-1)*10) -> - | J16: =OFFSET(Potencia!J171,0,($L$1-1)*10) -> - | K16: =OFFSET(Potencia!K171,0,($L$1-1)*10) -> - | L16: =OFFSET(Potencia!L171,0,($L$1-1)*10) -> -
B17: =Potencia!B92 -> Solar fotovoltaica | C17: =OFFSET(Potencia!C172,0,($L$1-1)*10) -> 923.21464 | D17: =OFFSET(Potencia!D172,0,($L$1-1)*10) -> 923.2315 | E17: =OFFSET(Potencia!E172,0,($L$1-1)*10) -> 924.65074 | F17: =OFFSET(Potencia!F172,0,($L$1-1)*10) -> 924.8334 | G17: =OFFSET(Potencia!G172,0,($L$1-1)*10) -> 1746.22667 | H17: =OFFSET(Potencia!H172,0,($L$1-1)*10) -> 1791.16603 | I17: =OFFSET(Potencia!I172,0,($L$1-1)*10) -> - | J17: =OFFSET(Potencia!J172,0,($L$1-1)*10) -> - | K17: =OFFSET(Potencia!K172,0,($L$1-1)*10) -> - | L17: =OFFSET(Potencia!L172,0,($L$1-1)*10) -> -
B18: =Potencia!B93 -> Solar térmica | C18: =OFFSET(Potencia!C173,0,($L$1-1)*10) -> 349.4 | D18: =OFFSET(Potencia!D173,0,($L$1-1)*10) -> 349.4 | E18: =OFFSET(Potencia!E173,0,($L$1-1)*10) -> 349.4 | F18: =OFFSET(Potencia!F173,0,($L$1-1)*10) -> 349.4 | G18: =OFFSET(Potencia!G173,0,($L$1-1)*10) -> 349.4 | H18: =OFFSET(Potencia!H173,0,($L$1-1)*10) -> 349.4 | I18: =OFFSET(Potencia!I173,0,($L$1-1)*10) -> - | J18: =OFFSET(Potencia!J173,0,($L$1-1)*10) -> - | K18: =OFFSET(Potencia!K173,0,($L$1-1)*10) -> - | L18: =OFFSET(Potencia!L173,0,($L$1-1)*10) -> -
B19: Otras renovables (1) | C19: =OFFSET(Potencia!C174,0,($L$1-1)*10) -> 88.277 | D19: =OFFSET(Potencia!D174,0,($L$1-1)*10) -> 88.277 | E19: =OFFSET(Potencia!E174,0,($L$1-1)*10) -> 89.34 | F19: =OFFSET(Potencia!F174,0,($L$1-1)*10) -> 89.34 | G19: =OFFSET(Potencia!G174,0,($L$1-1)*10) -> 140.403 | H19: =OFFSET(Potencia!H174,0,($L$1-1)*10) -> 140.403 | I19: =OFFSET(Potencia!I174,0,($L$1-1)*10) -> - | J19: =OFFSET(Potencia!J174,0,($L$1-1)*10) -> - | K19: =OFFSET(Potencia!K174,0,($L$1-1)*10) -> - | L19: =OFFSET(Potencia!L174,0,($L$1-1)*10) -> -
B20: Cogeneración | C20: =OFFSET(Potencia!C175,0,($L$1-1)*10) -> 389.781 | D20: =OFFSET(Potencia!D175,0,($L$1-1)*10) -> 379.789 | E20: =OFFSET(Potencia!E175,0,($L$1-1)*10) -> 352.523 | F20: =OFFSET(Potencia!F175,0,($L$1-1)*10) -> 353.472 | G20: =OFFSET(Potencia!G175,0,($L$1-1)*10) -> 353.472 | H20: =OFFSET(Potencia!H175,0,($L$1-1)*10) -> 353.472 | I20: =OFFSET(Potencia!I175,0,($L$1-1)*10) -> - | J20: =OFFSET(Potencia!J175,0,($L$1-1)*10) -> - | K20: =OFFSET(Potencia!K175,0,($L$1-1)*10) -> - | L20: =OFFSET(Potencia!L175,0,($L$1-1)*10) -> -
B21: Residuos no renovables | C21: =OFFSET(Potencia!C176,0,($L$1-1)*10) -> 0.68 | D21: =OFFSET(Potencia!D176,0,($L$1-1)*10) -> 0.68 | E21: =OFFSET(Potencia!E176,0,($L$1-1)*10) -> 0.68 | F21: =OFFSET(Potencia!F176,0,($L$1-1)*10) -> 0.68 | G21: =OFFSET(Potencia!G176,0,($L$1-1)*10) -> 0.68 | H21: =OFFSET(Potencia!H176,0,($L$1-1)*10) -> 0.68 | I21: =OFFSET(Potencia!I176,0,($L$1-1)*10) -> - | J21: =OFFSET(Potencia!J176,0,($L$1-1)*10) -> - | K21: =OFFSET(Potencia!K176,0,($L$1-1)*10) -> - | L21: =OFFSET(Potencia!L176,0,($L$1-1)*10) -> -
B22: Residuos renovables | C22: =OFFSET(Potencia!C177,0,($L$1-1)*10) -> - | D22: =OFFSET(Potencia!D177,0,($L$1-1)*10) -> - | E22: =OFFSET(Potencia!E177,0,($L$1-1)*10) -> - | F22: =OFFSET(Potencia!F177,0,($L$1-1)*10) -> - | G22: =OFFSET(Potencia!G177,0,($L$1-1)*10) -> - | H22: =OFFSET(Potencia!H177,0,($L$1-1)*10) -> - | I22: =OFFSET(Potencia!I177,0,($L$1-1)*10) -> - | J22: =OFFSET(Potencia!J177,0,($L$1-1)*10) -> - | K22: =OFFSET(Potencia!K177,0,($L$1-1)*10) -> - | L22: =OFFSET(Potencia!L177,0,($L$1-1)*10) -> -
B23: Total | C23: =OFFSET(Potencia!C178,0,($L$1-1)*10) -> 8680.03884 | D23: =OFFSET(Potencia!D178,0,($L$1-1)*10) -> 8167.6987 | E23: =OFFSET(Potencia!E178,0,($L$1-1)*10) -> 8143.13994 | F23: =OFFSET(Potencia!F178,0,($L$1-1)*10) -> 8154.6416 | G23: =OFFSET(Potencia!G178,0,($L$1-1)*10) -> 9030.09787 | H23: =OFFSET(Potencia!H178,0,($L$1-1)*10) -> 9075.03723 | I23: =OFFSET(Potencia!I178,0,($L$1-1)*10) -> - | J23: =OFFSET(Potencia!J178,0,($L$1-1)*10) -> - | K23: =OFFSET(Potencia!K178,0,($L$1-1)*10) -> - | L23: =OFFSET(Potencia!L178,0,($L$1-1)*10) -> -
B24: (1) Otras renovables incluyen biogás, biomasa, hidráulica marina y geotérmica.
B25: Datos a 31 de diciembre.
B26: =IF(L1=1,IF(MONTH(FACT)=1,"",(CONCATENATE("(*) Para el año ",YEAR(FACT), " datos a ",TEXT(FACT-30,"mmmm")," de ",YEAR(FACT),"."))),"") -> (*) Para el año 2020 datos a abril de 2020.
B30: =IF(L1=2,IF(MONTH(FACT)=1,"",(CONCATENATE("(*) Para el año ",YEAR(FACT), " datos a ",TEXT(FACT-30,"mmmm")," de ",YEAR(FACT),"."))),"") -> 

Sheet Potencia Castilla y León
L1: 1
J5: Sistema / C.Autónoma
J6: Periodo
C8: =OFFSET(Potencia!C180,0,($L$1-1)*10) -> 2015 | D8: =OFFSET(Potencia!D180,0,($L$1-1)*10) -> 2016 | E8: =OFFSET(Potencia!E180,0,($L$1-1)*10) -> 2017 | F8: =OFFSET(Potencia!F180,0,($L$1-1)*10) -> 2018 | G8: =OFFSET(Potencia!G180,0,($L$1-1)*10) -> 2019 | H8: =OFFSET(Potencia!H180,0,($L$1-1)*10) -> 2020 | I8: =OFFSET(Potencia!I180,0,($L$1-1)*10) -> 2021 | J8: =OFFSET(Potencia!J180,0,($L$1-1)*10) -> 2022 | K8: =OFFSET(Potencia!K180,0,($L$1-1)*10) -> 2023 | L8: =OFFSET(Potencia!L180,0,($L$1-1)*10) -> 2024
B10: =Potencia!B85 -> Bombeo puro | C10: =OFFSET(Potencia!C181,0,($L$1-1)*10) -> - | D10: =OFFSET(Potencia!D181,0,($L$1-1)*10) -> - | E10: =OFFSET(Potencia!E181,0,($L$1-1)*10) -> - | F10: =OFFSET(Potencia!F181,0,($L$1-1)*10) -> - | G10: =OFFSET(Potencia!G181,0,($L$1-1)*10) -> - | H10: =OFFSET(Potencia!H181,0,($L$1-1)*10) -> - | I10: =OFFSET(Potencia!I181,0,($L$1-1)*10) -> - | J10: =OFFSET(Potencia!J181,0,($L$1-1)*10) -> - | K10: =OFFSET(Potencia!K181,0,($L$1-1)*10) -> - | L10: =OFFSET(Potencia!L181,0,($L$1-1)*10) -> -
B11: =Potencia!B86 -> Hidráulica convencional y mixta | C11: =OFFSET(Potencia!C182,0,($L$1-1)*10) -> 4398.9859 | D11: =OFFSET(Potencia!D182,0,($L$1-1)*10) -> 4398.9859 | E11: =OFFSET(Potencia!E182,0,($L$1-1)*10) -> 4399.2279 | F11: =OFFSET(Potencia!F182,0,($L$1-1)*10) -> 4399.3155 | G11: =OFFSET(Potencia!G182,0,($L$1-1)*10) -> 4399.3155 | H11: =OFFSET(Potencia!H182,0,($L$1-1)*10) -> 4399.3155 | I11: =OFFSET(Potencia!I182,0,($L$1-1)*10) -> - | J11: =OFFSET(Potencia!J182,0,($L$1-1)*10) -> - | K11: =OFFSET(Potencia!K182,0,($L$1-1)*10) -> - | L11: =OFFSET(Potencia!L182,0,($L$1-1)*10) -> -
B12: =Potencia!B87 -> Nuclear | C12: =OFFSET(Potencia!C183,0,($L$1-1)*10) -> 455.29 | D12: =OFFSET(Potencia!D183,0,($L$1-1)*10) -> 455.29 | E12: =OFFSET(Potencia!E183,0,($L$1-1)*10) -> - | F12: =OFFSET(Potencia!F183,0,($L$1-1)*10) -> - | G12: =OFFSET(Potencia!G183,0,($L$1-1)*10) -> - | H12: =OFFSET(Potencia!H183,0,($L$1-1)*10) -> - | I12: =OFFSET(Potencia!I183,0,($L$1-1)*10) -> - | J12: =OFFSET(Potencia!J183,0,($L$1-1)*10) -> - | K12: =OFFSET(Potencia!K183,0,($L$1-1)*10) -> - | L12: =OFFSET(Potencia!L183,0,($L$1-1)*10) -> -
B13: =Potencia!B88 -> Carbón | C13: =OFFSET(Potencia!C184,0,($L$1-1)*10) -> 2595.23 | D13: =OFFSET(Potencia!D184,0,($L$1-1)*10) -> 2456.89 | E13: =OFFSET(Potencia!E184,0,($L$1-1)*10) -> 2456.89 | F13: =OFFSET(Potencia!F184,0,($L$1-1)*10) -> 2456.89 | G13: =OFFSET(Potencia!G184,0,($L$1-1)*10) -> 2110.05 | H13: =OFFSET(Potencia!H184,0,($L$1-1)*10) -> 2110.05 | I13: =OFFSET(Potencia!I184,0,($L$1-1)*10) -> - | J13: =OFFSET(Potencia!J184,0,($L$1-1)*10) -> - | K13: =OFFSET(Potencia!K184,0,($L$1-1)*10) -> - | L13: =OFFSET(Potencia!L184,0,($L$1-1)*10) -> -
B14: =Potencia!B89 -> Fuel + Gas | C14: =OFFSET(Potencia!C185,0,($L$1-1)*10) -> - | D14: =OFFSET(Potencia!D185,0,($L$1-1)*10) -> - | E14: =OFFSET(Potencia!E185,0,($L$1-1)*10) -> - | F14: =OFFSET(Potencia!F185,0,($L$1-1)*10) -> - | G14: =OFFSET(Potencia!G185,0,($L$1-1)*10) -> - | H14: =OFFSET(Potencia!H185,0,($L$1-1)*10) -> - | I14: =OFFSET(Potencia!I185,0,($L$1-1)*10) -> - | J14: =OFFSET(Potencia!J185,0,($L$1-1)*10) -> - | K14: =OFFSET(Potencia!K185,0,($L$1-1)*10) -> - | L14: =OFFSET(Potencia!L185,0,($L$1-1)*10) -> -
B15: =Potencia!B90 -> Ciclo combinado | C15: =OFFSET(Potencia!C186,0,($L$1-1)*10) -> - | D15: =OFFSET(Potencia!D186,0,($L$1-1)*10) -> - | E15: =OFFSET(Potencia!E186,0,($L$1-1)*10) -> - | F15: =OFFSET(Potencia!F186,0,($L$1-1)*10) -> - | G15: =OFFSET(Potencia!G186,0,($L$1-1)*10) -> - | H15: =OFFSET(Potencia!H186,0,($L$1-1)*10) -> - | I15: =OFFSET(Potencia!I186,0,($L$1-1)*10) -> - | J15: =OFFSET(Potencia!J186,0,($L$1-1)*10) -> - | K15: =OFFSET(Potencia!K186,0,($L$1-1)*10) -> - | L15: =OFFSET(Potencia!L186,0,($L$1-1)*10) -> -
B16: =Potencia!B91 -> Eólica | C16: =OFFSET(Potencia!C187,0,($L$1-1)*10) -> 5556.382 | D16: =OFFSET(Potencia!D187,0,($L$1-1)*10) -> 5589.882 | E16: =OFFSET(Potencia!E187,0,($L$1-1)*10) -> 5589.882 | F16: =OFFSET(Potencia!F187,0,($L$1-1)*10) -> 5589.882 | G16: =OFFSET(Potencia!G187,0,($L$1-1)*10) -> 6051.217 | H16: =OFFSET(Potencia!H187,0,($L$1-1)*10) -> 6051.217 | I16: =OFFSET(Potencia!I187,0,($L$1-1)*10) -> - | J16: =OFFSET(Potencia!J187,0,($L$1-1)*10) -> - | K16: =OFFSET(Potencia!K187,0,($L$1-1)*10) -> - | L16: =OFFSET(Potencia!L187,0,($L$1-1)*10) -> -
B17: =Potencia!B92 -> Solar fotovoltaica | C17: =OFFSET(Potencia!C188,0,($L$1-1)*10) -> 494.27894 | D17: =OFFSET(Potencia!D188,0,($L$1-1)*10) -> 494.428585 | E17: =OFFSET(Potencia!E188,0,($L$1-1)*10) -> 495.03416 | F17: =OFFSET(Potencia!F188,0,($L$1-1)*10) -> 495.63263 | G17: =OFFSET(Potencia!G188,0,($L$1-1)*10) -> 802.722105 | H17: =OFFSET(Potencia!H188,0,($L$1-1)*10) -> 802.717105 | I17: =OFFSET(Potencia!I188,0,($L$1-1)*10) -> - | J17: =OFFSET(Potencia!J188,0,($L$1-1)*10) -> - | K17: =OFFSET(Potencia!K188,0,($L$1-1)*10) -> - | L17: =OFFSET(Potencia!L188,0,($L$1-1)*10) -> -
B18: =Potencia!B93 -> Solar térmica | C18: =OFFSET(Potencia!C189,0,($L$1-1)*10) -> - | D18: =OFFSET(Potencia!D189,0,($L$1-1)*10) -> - | E18: =OFFSET(Potencia!E189,0,($L$1-1)*10) -> - | F18: =OFFSET(Potencia!F189,0,($L$1-1)*10) -> - | G18: =OFFSET(Potencia!G189,0,($L$1-1)*10) -> - | H18: =OFFSET(Potencia!H189,0,($L$1-1)*10) -> - | I18: =OFFSET(Potencia!I189,0,($L$1-1)*10) -> - | J18: =OFFSET(Potencia!J189,0,($L$1-1)*10) -> - | K18: =OFFSET(Potencia!K189,0,($L$1-1)*10) -> - | L18: =OFFSET(Potencia!L189,0,($L$1-1)*10) -> -
B19: Otras renovables (1) | C19: =OFFSET(Potencia!C190,0,($L$1-1)*10) -> 60.58 | D19: =OFFSET(Potencia!D190,0,($L$1-1)*10) -> 46.895 | E19: =OFFSET(Potencia!E190,0,($L$1-1)*10) -> 46.895 | F19: =OFFSET(Potencia!F190,0,($L$1-1)*10) -> 46.895 | G19: =OFFSET(Potencia!G190,0,($L$1-1)*10) -> 96.395 | H19: =OFFSET(Potencia!H190,0,($L$1-1)*10) -> 96.395 | I19: =OFFSET(Potencia!I190,0,($L$1-1)*10) -> - | J19: =OFFSET(Potencia!J190,0,($L$1-1)*10) -> - | K19: =OFFSET(Potencia!K190,0,($L$1-1)*10) -> - | L19: =OFFSET(Potencia!L190,0,($L$1-1)*10) -> -
B20: Cogeneración | C20: =OFFSET(Potencia!C191,0,($L$1-1)*10) -> 605.398 | D20: =OFFSET(Potencia!D191,0,($L$1-1)*10) -> 595.839 | E20: =OFFSET(Potencia!E191,0,($L$1-1)*10) -> 592.509 | F20: =OFFSET(Potencia!F191,0,($L$1-1)*10) -> 592.509 | G20: =OFFSET(Potencia!G191,0,($L$1-1)*10) -> 592.509 | H20: =OFFSET(Potencia!H191,0,($L$1-1)*10) -> 592.509 | I20: =OFFSET(Potencia!I191,0,($L$1-1)*10) -> - | J20: =OFFSET(Potencia!J191,0,($L$1-1)*10) -> - | K20: =OFFSET(Potencia!K191,0,($L$1-1)*10) -> - | L20: =OFFSET(Potencia!L191,0,($L$1-1)*10) -> -
B21: Residuos no renovables | C21: =OFFSET(Potencia!C192,0,($L$1-1)*10) -> - | D21: =OFFSET(Potencia!D192,0,($L$1-1)*10) -> - | E21: =OFFSET(Potencia!E192,0,($L$1-1)*10) -> - | F21: =OFFSET(Potencia!F192,0,($L$1-1)*10) -> - | G21: =OFFSET(Potencia!G192,0,($L$1-1)*10) -> - | H21: =OFFSET(Potencia!H192,0,($L$1-1)*10) -> - | I21: =OFFSET(Potencia!I192,0,($L$1-1)*10) -> - | J21: =OFFSET(Potencia!J192,0,($L$1-1)*10) -> - | K21: =OFFSET(Potencia!K192,0,($L$1-1)*10) -> - | L21: =OFFSET(Potencia!L192,0,($L$1-1)*10) -> -
B22: Residuos renovables | C22: =OFFSET(Potencia!C193,0,($L$1-1)*10) -> - | D22: =OFFSET(Potencia!D193,0,($L$1-1)*10) -> - | E22: =OFFSET(Potencia!E193,0,($L$1-1)*10) -> - | F22: =OFFSET(Potencia!F193,0,($L$1-1)*10) -> - | G22: =OFFSET(Potencia!G193,0,($L$1-1)*10) -> - | H22: =OFFSET(Potencia!H193,0,($L$1-1)*10) -> - | I22: =OFFSET(Potencia!I193,0,($L$1-1)*10) -> - | J22: =OFFSET(Potencia!J193,0,($L$1-1)*10) -> - | K22: =OFFSET(Potencia!K193,0,($L$1-1)*10) -> - | L22: =OFFSET(Potencia!L193,0,($L$1-1)*10) -> -
B23: Total | C23: =OFFSET(Potencia!C194,0,($L$1-1)*10) -> 14166.14484 | D23: =OFFSET(Potencia!D194,0,($L$1-1)*10) -> 14038.21049 | E23: =OFFSET(Potencia!E194,0,($L$1-1)*10) -> 13580.43806 | F23: =OFFSET(Potencia!F194,0,($L$1-1)*10) -> 13581.12413 | G23: =OFFSET(Potencia!G194,0,($L$1-1)*10) -> 14052.20861 | H23: =OFFSET(Potencia!H194,0,($L$1-1)*10) -> 14052.20361 | I23: =OFFSET(Potencia!I194,0,($L$1-1)*10) -> - | J23: =OFFSET(Potencia!J194,0,($L$1-1)*10) -> - | K23: =OFFSET(Potencia!K194,0,($L$1-1)*10) -> - | L23: =OFFSET(Potencia!L194,0,($L$1-1)*10) -> -
B24: (1) Otras renovables incluyen biogás, biomasa, hidráulica marina y geotérmica.
B25: Datos a 31 de diciembre.
B26: =IF(L1=1,IF(MONTH(FACT)=1,"",(CONCATENATE("(*) Para el año ",YEAR(FACT), " datos a ",TEXT(FACT-30,"mmmm")," de ",YEAR(FACT),"."))),"") -> (*) Para el año 2020 datos a abril de 2020.
B30: =IF(L1=2,IF(MONTH(FACT)=1,"",(CONCATENATE("(*) Para el año ",YEAR(FACT), " datos a ",TEXT(FACT-30,"mmmm")," de ",YEAR(FACT),"."))),"") -> 

Sheet Potencia Cataluña
L1: 1
J5: Sistema / C.Autónoma
J6: Periodo
C8: =OFFSET(Potencia!C196,0,($L$1-1)*10) -> 2015 | D8: =OFFSET(Potencia!D196,0,($L$1-1)*10) -> 2016 | E8: =OFFSET(Potencia!E196,0,($L$1-1)*10) -> 2017 | F8: =OFFSET(Potencia!F196,0,($L$1-1)*10) -> 2018 | G8: =OFFSET(Potencia!G196,0,($L$1-1)*10) -> 2019 | H8: =OFFSET(Potencia!H196,0,($L$1-1)*10) -> 2020 | I8: =OFFSET(Potencia!I196,0,($L$1-1)*10) -> 2021 | J8: =OFFSET(Potencia!J196,0,($L$1-1)*10) -> 2022 | K8: =OFFSET(Potencia!K196,0,($L$1-1)*10) -> 2023 | L8: =OFFSET(Potencia!L196,0,($L$1-1)*10) -> 2024
B10: =Potencia!B85 -> Bombeo puro | C10: =OFFSET(Potencia!C197,0,($L$1-1)*10) -> 439.32 | D10: =OFFSET(Potencia!D197,0,($L$1-1)*10) -> 439.32 | E10: =OFFSET(Potencia!E197,0,($L$1-1)*10) -> 439.32 | F10: =OFFSET(Potencia!F197,0,($L$1-1)*10) -> 439.32 | G10: =OFFSET(Potencia!G197,0,($L$1-1)*10) -> 439.32 | H10: =OFFSET(Potencia!H197,0,($L$1-1)*10) -> 439.32 | I10: =OFFSET(Potencia!I197,0,($L$1-1)*10) -> - | J10: =OFFSET(Potencia!J197,0,($L$1-1)*10) -> - | K10: =OFFSET(Potencia!K197,0,($L$1-1)*10) -> - | L10: =OFFSET(Potencia!L197,0,($L$1-1)*10) -> -
B11: =Potencia!B86 -> Hidráulica convencional y mixta | C11: =OFFSET(Potencia!C198,0,($L$1-1)*10) -> 1913.1278 | D11: =OFFSET(Potencia!D198,0,($L$1-1)*10) -> 1913.1728 | E11: =OFFSET(Potencia!E198,0,($L$1-1)*10) -> 1912.8128 | F11: =OFFSET(Potencia!F198,0,($L$1-1)*10) -> 1912.8128 | G11: =OFFSET(Potencia!G198,0,($L$1-1)*10) -> 1912.8128 | H11: =OFFSET(Potencia!H198,0,($L$1-1)*10) -> 1912.8128 | I11: =OFFSET(Potencia!I198,0,($L$1-1)*10) -> - | J11: =OFFSET(Potencia!J198,0,($L$1-1)*10) -> - | K11: =OFFSET(Potencia!K198,0,($L$1-1)*10) -> - | L11: =OFFSET(Potencia!L198,0,($L$1-1)*10) -> -
B12: =Potencia!B87 -> Nuclear | C12: =OFFSET(Potencia!C199,0,($L$1-1)*10) -> 3032.81 | D12: =OFFSET(Potencia!D199,0,($L$1-1)*10) -> 3032.81 | E12: =OFFSET(Potencia!E199,0,($L$1-1)*10) -> 3032.81 | F12: =OFFSET(Potencia!F199,0,($L$1-1)*10) -> 3032.81 | G12: =OFFSET(Potencia!G199,0,($L$1-1)*10) -> 3032.81 | H12: =OFFSET(Potencia!H199,0,($L$1-1)*10) -> 3032.81 | I12: =OFFSET(Potencia!I199,0,($L$1-1)*10) -> - | J12: =OFFSET(Potencia!J199,0,($L$1-1)*10) -> - | K12: =OFFSET(Potencia!K199,0,($L$1-1)*10) -> - | L12: =OFFSET(Potencia!L199,0,($L$1-1)*10) -> -
B13: =Potencia!B88 -> Carbón | C13: =OFFSET(Potencia!C200,0,($L$1-1)*10) -> - | D13: =OFFSET(Potencia!D200,0,($L$1-1)*10) -> - | E13: =OFFSET(Potencia!E200,0,($L$1-1)*10) -> - | F13: =OFFSET(Potencia!F200,0,($L$1-1)*10) -> - | G13: =OFFSET(Potencia!G200,0,($L$1-1)*10) -> - | H13: =OFFSET(Potencia!H200,0,($L$1-1)*10) -> - | I13: =OFFSET(Potencia!I200,0,($L$1-1)*10) -> - | J13: =OFFSET(Potencia!J200,0,($L$1-1)*10) -> - | K13: =OFFSET(Potencia!K200,0,($L$1-1)*10) -> - | L13: =OFFSET(Potencia!L200,0,($L$1-1)*10) -> -
B14: =Potencia!B89 -> Fuel + Gas | C14: =OFFSET(Potencia!C201,0,($L$1-1)*10) -> - | D14: =OFFSET(Potencia!D201,0,($L$1-1)*10) -> - | E14: =OFFSET(Potencia!E201,0,($L$1-1)*10) -> - | F14: =OFFSET(Potencia!F201,0,($L$1-1)*10) -> - | G14: =OFFSET(Potencia!G201,0,($L$1-1)*10) -> - | H14: =OFFSET(Potencia!H201,0,($L$1-1)*10) -> - | I14: =OFFSET(Potencia!I201,0,($L$1-1)*10) -> - | J14: =OFFSET(Potencia!J201,0,($L$1-1)*10) -> - | K14: =OFFSET(Potencia!K201,0,($L$1-1)*10) -> - | L14: =OFFSET(Potencia!L201,0,($L$1-1)*10) -> -
B15: =Potencia!B90 -> Ciclo combinado | C15: =OFFSET(Potencia!C202,0,($L$1-1)*10) -> 4174.08 | D15: =OFFSET(Potencia!D202,0,($L$1-1)*10) -> 4174.08 | E15: =OFFSET(Potencia!E202,0,($L$1-1)*10) -> 4174.08 | F15: =OFFSET(Potencia!F202,0,($L$1-1)*10) -> 3788.23 | G15: =OFFSET(Potencia!G202,0,($L$1-1)*10) -> 3788.23 | H15: =OFFSET(Potencia!H202,0,($L$1-1)*10) -> 3788.23 | I15: =OFFSET(Potencia!I202,0,($L$1-1)*10) -> - | J15: =OFFSET(Potencia!J202,0,($L$1-1)*10) -> - | K15: =OFFSET(Potencia!K202,0,($L$1-1)*10) -> - | L15: =OFFSET(Potencia!L202,0,($L$1-1)*10) -> -
B16: =Potencia!B91 -> Eólica | C16: =OFFSET(Potencia!C203,0,($L$1-1)*10) -> 1267.01 | D16: =OFFSET(Potencia!D203,0,($L$1-1)*10) -> 1268.81 | E16: =OFFSET(Potencia!E203,0,($L$1-1)*10) -> 1268.81 | F16: =OFFSET(Potencia!F203,0,($L$1-1)*10) -> 1271.16 | G16: =OFFSET(Potencia!G203,0,($L$1-1)*10) -> 1271.16 | H16: =OFFSET(Potencia!H203,0,($L$1-1)*10) -> 1271.16 | I16: =OFFSET(Potencia!I203,0,($L$1-1)*10) -> - | J16: =OFFSET(Potencia!J203,0,($L$1-1)*10) -> - | K16: =OFFSET(Potencia!K203,0,($L$1-1)*10) -> - | L16: =OFFSET(Potencia!L203,0,($L$1-1)*10) -> -
B17: =Potencia!B92 -> Solar fotovoltaica | C17: =OFFSET(Potencia!C204,0,($L$1-1)*10) -> 266.12265 | D17: =OFFSET(Potencia!D204,0,($L$1-1)*10) -> 266.53075 | E17: =OFFSET(Potencia!E204,0,($L$1-1)*10) -> 266.50663 | F17: =OFFSET(Potencia!F204,0,($L$1-1)*10) -> 269.51598 | G17: =OFFSET(Potencia!G204,0,($L$1-1)*10) -> 273.87205 | H17: =OFFSET(Potencia!H204,0,($L$1-1)*10) -> 276.5377 | I17: =OFFSET(Potencia!I204,0,($L$1-1)*10) -> - | J17: =OFFSET(Potencia!J204,0,($L$1-1)*10) -> - | K17: =OFFSET(Potencia!K204,0,($L$1-1)*10) -> - | L17: =OFFSET(Potencia!L204,0,($L$1-1)*10) -> -
B18: =Potencia!B93 -> Solar térmica | C18: =OFFSET(Potencia!C205,0,($L$1-1)*10) -> 24.29 | D18: =OFFSET(Potencia!D205,0,($L$1-1)*10) -> 24.29 | E18: =OFFSET(Potencia!E205,0,($L$1-1)*10) -> 24.29 | F18: =OFFSET(Potencia!F205,0,($L$1-1)*10) -> 24.29 | G18: =OFFSET(Potencia!G205,0,($L$1-1)*10) -> 24.29 | H18: =OFFSET(Potencia!H205,0,($L$1-1)*10) -> 24.29 | I18: =OFFSET(Potencia!I205,0,($L$1-1)*10) -> - | J18: =OFFSET(Potencia!J205,0,($L$1-1)*10) -> - | K18: =OFFSET(Potencia!K205,0,($L$1-1)*10) -> - | L18: =OFFSET(Potencia!L205,0,($L$1-1)*10) -> -
B19: Otras renovables (1) | C19: =OFFSET(Potencia!C206,0,($L$1-1)*10) -> 71.489 | D19: =OFFSET(Potencia!D206,0,($L$1-1)*10) -> 71.814 | E19: =OFFSET(Potencia!E206,0,($L$1-1)*10) -> 72.645 | F19: =OFFSET(Potencia!F206,0,($L$1-1)*10) -> 72.836 | G19: =OFFSET(Potencia!G206,0,($L$1-1)*10) -> 73.096 | H19: =OFFSET(Potencia!H206,0,($L$1-1)*10) -> 73.096 | I19: =OFFSET(Potencia!I206,0,($L$1-1)*10) -> - | J19: =OFFSET(Potencia!J206,0,($L$1-1)*10) -> - | K19: =OFFSET(Potencia!K206,0,($L$1-1)*10) -> - | L19: =OFFSET(Potencia!L206,0,($L$1-1)*10) -> -
B20: Cogeneración | C20: =OFFSET(Potencia!C207,0,($L$1-1)*10) -> 1087.3135 | D20: =OFFSET(Potencia!D207,0,($L$1-1)*10) -> 1043.6515 | E20: =OFFSET(Potencia!E207,0,($L$1-1)*10) -> 1010.3885 | F20: =OFFSET(Potencia!F207,0,($L$1-1)*10) -> 1004.394 | G20: =OFFSET(Potencia!G207,0,($L$1-1)*10) -> 980.76 | H20: =OFFSET(Potencia!H207,0,($L$1-1)*10) -> 980.76 | I20: =OFFSET(Potencia!I207,0,($L$1-1)*10) -> - | J20: =OFFSET(Potencia!J207,0,($L$1-1)*10) -> - | K20: =OFFSET(Potencia!K207,0,($L$1-1)*10) -> - | L20: =OFFSET(Potencia!L207,0,($L$1-1)*10) -> -
B21: Residuos no renovables | C21: =OFFSET(Potencia!C208,0,($L$1-1)*10) -> 32.3745 | D21: =OFFSET(Potencia!D208,0,($L$1-1)*10) -> 32.3745 | E21: =OFFSET(Potencia!E208,0,($L$1-1)*10) -> 32.3745 | F21: =OFFSET(Potencia!F208,0,($L$1-1)*10) -> 32.3745 | G21: =OFFSET(Potencia!G208,0,($L$1-1)*10) -> 32.3745 | H21: =OFFSET(Potencia!H208,0,($L$1-1)*10) -> 32.3745 | I21: =OFFSET(Potencia!I208,0,($L$1-1)*10) -> - | J21: =OFFSET(Potencia!J208,0,($L$1-1)*10) -> - | K21: =OFFSET(Potencia!K208,0,($L$1-1)*10) -> - | L21: =OFFSET(Potencia!L208,0,($L$1-1)*10) -> -
B22: Residuos renovables | C22: =OFFSET(Potencia!C209,0,($L$1-1)*10) -> 27.1745 | D22: =OFFSET(Potencia!D209,0,($L$1-1)*10) -> 27.1745 | E22: =OFFSET(Potencia!E209,0,($L$1-1)*10) -> 27.1745 | F22: =OFFSET(Potencia!F209,0,($L$1-1)*10) -> 27.1745 | G22: =OFFSET(Potencia!G209,0,($L$1-1)*10) -> 27.1745 | H22: =OFFSET(Potencia!H209,0,($L$1-1)*10) -> 27.1745 | I22: =OFFSET(Potencia!I209,0,($L$1-1)*10) -> - | J22: =OFFSET(Potencia!J209,0,($L$1-1)*10) -> - | K22: =OFFSET(Potencia!K209,0,($L$1-1)*10) -> - | L22: =OFFSET(Potencia!L209,0,($L$1-1)*10) -> -
B23: Total | C23: =OFFSET(Potencia!C210,0,($L$1-1)*10) -> 12335.11195 | D23: =OFFSET(Potencia!D210,0,($L$1-1)*10) -> 12294.02805 | E23: =OFFSET(Potencia!E210,0,($L$1-1)*10) -> 12261.21193 | F23: =OFFSET(Potencia!F210,0,($L$1-1)*10) -> 11874.91778 | G23: =OFFSET(Potencia!G210,0,($L$1-1)*10) -> 11855.89985 | H23: =OFFSET(Potencia!H210,0,($L$1-1)*10) -> 11858.5655 | I23: =OFFSET(Potencia!I210,0,($L$1-1)*10) -> - | J23: =OFFSET(Potencia!J210,0,($L$1-1)*10) -> - | K23: =OFFSET(Potencia!K210,0,($L$1-1)*10) -> - | L23: =OFFSET(Potencia!L210,0,($L$1-1)*10) -> -
B24: (1) Otras renovables incluyen biogás, biomasa, hidráulica marina y geotérmica.
B25: Datos a 31 de diciembre.
B26: =IF(L1=1,IF(MONTH(FACT)=1,"",(CONCATENATE("(*) Para el año ",YEAR(FACT), " datos a ",TEXT(FACT-30,"mmmm")," de ",YEAR(FACT),"."))),"") -> (*) Para el año 2020 datos a abril de 2020.
B30: =IF(L1=2,IF(MONTH(FACT)=1,"",(CONCATENATE("(*) Para el año ",YEAR(FACT), " datos a ",TEXT(FACT-30,"mmmm")," de ",YEAR(FACT),"."))),"") -> 

Sheet Potencia Extremadura
L1: 1
J5: Sistema / C.Autónoma
J6: Periodo
C8: =OFFSET(Potencia!C212,0,($L$1-1)*10) -> 2015 | D8: =OFFSET(Potencia!D212,0,($L$1-1)*10) -> 2016 | E8: =OFFSET(Potencia!E212,0,($L$1-1)*10) -> 2017 | F8: =OFFSET(Potencia!F212,0,($L$1-1)*10) -> 2018 | G8: =OFFSET(Potencia!G212,0,($L$1-1)*10) -> 2019 | H8: =OFFSET(Potencia!H212,0,($L$1-1)*10) -> 2020 | I8: =OFFSET(Potencia!I212,0,($L$1-1)*10) -> 2021 | J8: =OFFSET(Potencia!J212,0,($L$1-1)*10) -> 2022 | K8: =OFFSET(Potencia!K212,0,($L$1-1)*10) -> 2023 | L8: =OFFSET(Potencia!L212,0,($L$1-1)*10) -> 2024
B10: =Potencia!B85 -> Bombeo puro | C10: =OFFSET(Potencia!C213,0,($L$1-1)*10) -> - | D10: =OFFSET(Potencia!D213,0,($L$1-1)*10) -> - | E10: =OFFSET(Potencia!E213,0,($L$1-1)*10) -> - | F10: =OFFSET(Potencia!F213,0,($L$1-1)*10) -> - | G10: =OFFSET(Potencia!G213,0,($L$1-1)*10) -> - | H10: =OFFSET(Potencia!H213,0,($L$1-1)*10) -> - | I10: =OFFSET(Potencia!I213,0,($L$1-1)*10) -> - | J10: =OFFSET(Potencia!J213,0,($L$1-1)*10) -> - | K10: =OFFSET(Potencia!K213,0,($L$1-1)*10) -> - | L10: =OFFSET(Potencia!L213,0,($L$1-1)*10) -> -
B11: =Potencia!B86 -> Hidráulica convencional y mixta | C11: =OFFSET(Potencia!C214,0,($L$1-1)*10) -> 2277.8123 | D11: =OFFSET(Potencia!D214,0,($L$1-1)*10) -> 2277.8123 | E11: =OFFSET(Potencia!E214,0,($L$1-1)*10) -> 2277.8123 | F11: =OFFSET(Potencia!F214,0,($L$1-1)*10) -> 2277.8123 | G11: =OFFSET(Potencia!G214,0,($L$1-1)*10) -> 2277.8123 | H11: =OFFSET(Potencia!H214,0,($L$1-1)*10) -> 2277.8123 | I11: =OFFSET(Potencia!I214,0,($L$1-1)*10) -> - | J11: =OFFSET(Potencia!J214,0,($L$1-1)*10) -> - | K11: =OFFSET(Potencia!K214,0,($L$1-1)*10) -> - | L11: =OFFSET(Potencia!L214,0,($L$1-1)*10) -> -
B12: =Potencia!B87 -> Nuclear | C12: =OFFSET(Potencia!C215,0,($L$1-1)*10) -> 2017.13 | D12: =OFFSET(Potencia!D215,0,($L$1-1)*10) -> 2017.13 | E12: =OFFSET(Potencia!E215,0,($L$1-1)*10) -> 2017.13 | F12: =OFFSET(Potencia!F215,0,($L$1-1)*10) -> 2017.13 | G12: =OFFSET(Potencia!G215,0,($L$1-1)*10) -> 2017.13 | H12: =OFFSET(Potencia!H215,0,($L$1-1)*10) -> 2017.13 | I12: =OFFSET(Potencia!I215,0,($L$1-1)*10) -> - | J12: =OFFSET(Potencia!J215,0,($L$1-1)*10) -> - | K12: =OFFSET(Potencia!K215,0,($L$1-1)*10) -> - | L12: =OFFSET(Potencia!L215,0,($L$1-1)*10) -> -
B13: =Potencia!B88 -> Carbón | C13: =OFFSET(Potencia!C216,0,($L$1-1)*10) -> - | D13: =OFFSET(Potencia!D216,0,($L$1-1)*10) -> - | E13: =OFFSET(Potencia!E216,0,($L$1-1)*10) -> - | F13: =OFFSET(Potencia!F216,0,($L$1-1)*10) -> - | G13: =OFFSET(Potencia!G216,0,($L$1-1)*10) -> - | H13: =OFFSET(Potencia!H216,0,($L$1-1)*10) -> - | I13: =OFFSET(Potencia!I216,0,($L$1-1)*10) -> - | J13: =OFFSET(Potencia!J216,0,($L$1-1)*10) -> - | K13: =OFFSET(Potencia!K216,0,($L$1-1)*10) -> - | L13: =OFFSET(Potencia!L216,0,($L$1-1)*10) -> -
B14: =Potencia!B89 -> Fuel + Gas | C14: =OFFSET(Potencia!C217,0,($L$1-1)*10) -> - | D14: =OFFSET(Potencia!D217,0,($L$1-1)*10) -> - | E14: =OFFSET(Potencia!E217,0,($L$1-1)*10) -> - | F14: =OFFSET(Potencia!F217,0,($L$1-1)*10) -> - | G14: =OFFSET(Potencia!G217,0,($L$1-1)*10) -> - | H14: =OFFSET(Potencia!H217,0,($L$1-1)*10) -> - | I14: =OFFSET(Potencia!I217,0,($L$1-1)*10) -> - | J14: =OFFSET(Potencia!J217,0,($L$1-1)*10) -> - | K14: =OFFSET(Potencia!K217,0,($L$1-1)*10) -> - | L14: =OFFSET(Potencia!L217,0,($L$1-1)*10) -> -
B15: =Potencia!B90 -> Ciclo combinado | C15: =OFFSET(Potencia!C218,0,($L$1-1)*10) -> - | D15: =OFFSET(Potencia!D218,0,($L$1-1)*10) -> - | E15: =OFFSET(Potencia!E218,0,($L$1-1)*10) -> - | F15: =OFFSET(Potencia!F218,0,($L$1-1)*10) -> - | G15: =OFFSET(Potencia!G218,0,($L$1-1)*10) -> - | H15: =OFFSET(Potencia!H218,0,($L$1-1)*10) -> - | I15: =OFFSET(Potencia!I218,0,($L$1-1)*10) -> - | J15: =OFFSET(Potencia!J218,0,($L$1-1)*10) -> - | K15: =OFFSET(Potencia!K218,0,($L$1-1)*10) -> - | L15: =OFFSET(Potencia!L218,0,($L$1-1)*10) -> -
B16: =Potencia!B91 -> Eólica | C16: =OFFSET(Potencia!C219,0,($L$1-1)*10) -> - | D16: =OFFSET(Potencia!D219,0,($L$1-1)*10) -> - | E16: =OFFSET(Potencia!E219,0,($L$1-1)*10) -> - | F16: =OFFSET(Potencia!F219,0,($L$1-1)*10) -> - | G16: =OFFSET(Potencia!G219,0,($L$1-1)*10) -> 39.375 | H16: =OFFSET(Potencia!H219,0,($L$1-1)*10) -> 39.375 | I16: =OFFSET(Potencia!I219,0,($L$1-1)*10) -> - | J16: =OFFSET(Potencia!J219,0,($L$1-1)*10) -> - | K16: =OFFSET(Potencia!K219,0,($L$1-1)*10) -> - | L16: =OFFSET(Potencia!L219,0,($L$1-1)*10) -> -
B17: =Potencia!B92 -> Solar fotovoltaica | C17: =OFFSET(Potencia!C220,0,($L$1-1)*10) -> 563.797984 | D17: =OFFSET(Potencia!D220,0,($L$1-1)*10) -> 563.797984 | E17: =OFFSET(Potencia!E220,0,($L$1-1)*10) -> 563.814904 | F17: =OFFSET(Potencia!F220,0,($L$1-1)*10) -> 563.835804 | G17: =OFFSET(Potencia!G220,0,($L$1-1)*10) -> 1247.109764 | H17: =OFFSET(Potencia!H220,0,($L$1-1)*10) -> 1247.109764 | I17: =OFFSET(Potencia!I220,0,($L$1-1)*10) -> - | J17: =OFFSET(Potencia!J220,0,($L$1-1)*10) -> - | K17: =OFFSET(Potencia!K220,0,($L$1-1)*10) -> - | L17: =OFFSET(Potencia!L220,0,($L$1-1)*10) -> -
B18: =Potencia!B93 -> Solar térmica | C18: =OFFSET(Potencia!C221,0,($L$1-1)*10) -> 849 | D18: =OFFSET(Potencia!D221,0,($L$1-1)*10) -> 849 | E18: =OFFSET(Potencia!E221,0,($L$1-1)*10) -> 849 | F18: =OFFSET(Potencia!F221,0,($L$1-1)*10) -> 849 | G18: =OFFSET(Potencia!G221,0,($L$1-1)*10) -> 849 | H18: =OFFSET(Potencia!H221,0,($L$1-1)*10) -> 849 | I18: =OFFSET(Potencia!I221,0,($L$1-1)*10) -> - | J18: =OFFSET(Potencia!J221,0,($L$1-1)*10) -> - | K18: =OFFSET(Potencia!K221,0,($L$1-1)*10) -> - | L18: =OFFSET(Potencia!L221,0,($L$1-1)*10) -> -
B19: Otras renovables (1) | C19: =OFFSET(Potencia!C222,0,($L$1-1)*10) -> 35.8 | D19: =OFFSET(Potencia!D222,0,($L$1-1)*10) -> 35.8 | E19: =OFFSET(Potencia!E222,0,($L$1-1)*10) -> 35.8 | F19: =OFFSET(Potencia!F222,0,($L$1-1)*10) -> 35.8 | G19: =OFFSET(Potencia!G222,0,($L$1-1)*10) -> 35.8 | H19: =OFFSET(Potencia!H222,0,($L$1-1)*10) -> 35.8 | I19: =OFFSET(Potencia!I222,0,($L$1-1)*10) -> - | J19: =OFFSET(Potencia!J222,0,($L$1-1)*10) -> - | K19: =OFFSET(Potencia!K222,0,($L$1-1)*10) -> - | L19: =OFFSET(Potencia!L222,0,($L$1-1)*10) -> -
B20: Cogeneración | C20: =OFFSET(Potencia!C223,0,($L$1-1)*10) -> 18.077 | D20: =OFFSET(Potencia!D223,0,($L$1-1)*10) -> 18.077 | E20: =OFFSET(Potencia!E223,0,($L$1-1)*10) -> 18.077 | F20: =OFFSET(Potencia!F223,0,($L$1-1)*10) -> 18.077 | G20: =OFFSET(Potencia!G223,0,($L$1-1)*10) -> 18.077 | H20: =OFFSET(Potencia!H223,0,($L$1-1)*10) -> 18.077 | I20: =OFFSET(Potencia!I223,0,($L$1-1)*10) -> - | J20: =OFFSET(Potencia!J223,0,($L$1-1)*10) -> - | K20: =OFFSET(Potencia!K223,0,($L$1-1)*10) -> - | L20: =OFFSET(Potencia!L223,0,($L$1-1)*10) -> -
B21: Residuos no renovables | C21: =OFFSET(Potencia!C224,0,($L$1-1)*10) -> - | D21: =OFFSET(Potencia!D224,0,($L$1-1)*10) -> - | E21: =OFFSET(Potencia!E224,0,($L$1-1)*10) -> - | F21: =OFFSET(Potencia!F224,0,($L$1-1)*10) -> - | G21: =OFFSET(Potencia!G224,0,($L$1-1)*10) -> - | H21: =OFFSET(Potencia!H224,0,($L$1-1)*10) -> - | I21: =OFFSET(Potencia!I224,0,($L$1-1)*10) -> - | J21: =OFFSET(Potencia!J224,0,($L$1-1)*10) -> - | K21: =OFFSET(Potencia!K224,0,($L$1-1)*10) -> - | L21: =OFFSET(Potencia!L224,0,($L$1-1)*10) -> -
B22: Residuos renovables | C22: =OFFSET(Potencia!C225,0,($L$1-1)*10) -> - | D22: =OFFSET(Potencia!D225,0,($L$1-1)*10) -> - | E22: =OFFSET(Potencia!E225,0,($L$1-1)*10) -> - | F22: =OFFSET(Potencia!F225,0,($L$1-1)*10) -> - | G22: =OFFSET(Potencia!G225,0,($L$1-1)*10) -> - | H22: =OFFSET(Potencia!H225,0,($L$1-1)*10) -> - | I22: =OFFSET(Potencia!I225,0,($L$1-1)*10) -> - | J22: =OFFSET(Potencia!J225,0,($L$1-1)*10) -> - | K22: =OFFSET(Potencia!K225,0,($L$1-1)*10) -> - | L22: =OFFSET(Potencia!L225,0,($L$1-1)*10) -> -
B23: Total | C23: =OFFSET(Potencia!C226,0,($L$1-1)*10) -> 5761.617284 | D23: =OFFSET(Potencia!D226,0,($L$1-1)*10) -> 5761.617284 | E23: =OFFSET(Potencia!E226,0,($L$1-1)*10) -> 5761.634204 | F23: =OFFSET(Potencia!F226,0,($L$1-1)*10) -> 5761.655104 | G23: =OFFSET(Potencia!G226,0,($L$1-1)*10) -> 6484.304064 | H23: =OFFSET(Potencia!H226,0,($L$1-1)*10) -> 6484.304064 | I23: =OFFSET(Potencia!I226,0,($L$1-1)*10) -> - | J23: =OFFSET(Potencia!J226,0,($L$1-1)*10) -> - | K23: =OFFSET(Potencia!K226,0,($L$1-1)*10) -> - | L23: =OFFSET(Potencia!L226,0,($L$1-1)*10) -> -
B24: (1) Otras renovables incluyen biogás, biomasa, hidráulica marina y geotérmica.
B25: Datos a 31 de diciembre.
B26: =IF(L1=1,IF(MONTH(FACT)=1,"",(CONCATENATE("(*) Para el año ",YEAR(FACT), " datos a ",TEXT(FACT-30,"mmmm")," de ",YEAR(FACT),"."))),"") -> (*) Para el año 2020 datos a abril de 2020.
B30: =IF(L1=2,IF(MONTH(FACT)=1,"",(CONCATENATE("(*) Para el año ",YEAR(FACT), " datos a ",TEXT(FACT-30,"mmmm")," de ",YEAR(FACT),"."))),"") -> 

Sheet Potencia Galicia
L1: 1
J5: Sistema / C.Autónoma
J6: Periodo
C8: =OFFSET(Potencia!C228,0,($L$1-1)*10) -> 2015 | D8: =OFFSET(Potencia!D228,0,($L$1-1)*10) -> 2016 | E8: =OFFSET(Potencia!E228,0,($L$1-1)*10) -> 2017 | F8: =OFFSET(Potencia!F228,0,($L$1-1)*10) -> 2018 | G8: =OFFSET(Potencia!G228,0,($L$1-1)*10) -> 2019 | H8: =OFFSET(Potencia!H228,0,($L$1-1)*10) -> 2020 | I8: =OFFSET(Potencia!I228,0,($L$1-1)*10) -> 2021 | J8: =OFFSET(Potencia!J228,0,($L$1-1)*10) -> 2022 | K8: =OFFSET(Potencia!K228,0,($L$1-1)*10) -> 2023 | L8: =OFFSET(Potencia!L228,0,($L$1-1)*10) -> 2024
B10: =Potencia!B85 -> Bombeo puro | C10: =OFFSET(Potencia!C229,0,($L$1-1)*10) -> - | D10: =OFFSET(Potencia!D229,0,($L$1-1)*10) -> - | E10: =OFFSET(Potencia!E229,0,($L$1-1)*10) -> - | F10: =OFFSET(Potencia!F229,0,($L$1-1)*10) -> - | G10: =OFFSET(Potencia!G229,0,($L$1-1)*10) -> - | H10: =OFFSET(Potencia!H229,0,($L$1-1)*10) -> - | I10: =OFFSET(Potencia!I229,0,($L$1-1)*10) -> - | J10: =OFFSET(Potencia!J229,0,($L$1-1)*10) -> - | K10: =OFFSET(Potencia!K229,0,($L$1-1)*10) -> - | L10: =OFFSET(Potencia!L229,0,($L$1-1)*10) -> -
B11: =Potencia!B86 -> Hidráulica convencional y mixta | C11: =OFFSET(Potencia!C230,0,($L$1-1)*10) -> 3698.79569 | D11: =OFFSET(Potencia!D230,0,($L$1-1)*10) -> 3701.57569 | E11: =OFFSET(Potencia!E230,0,($L$1-1)*10) -> 3701.57569 | F11: =OFFSET(Potencia!F230,0,($L$1-1)*10) -> 3720.24769 | G11: =OFFSET(Potencia!G230,0,($L$1-1)*10) -> 3720.24769 | H11: =OFFSET(Potencia!H230,0,($L$1-1)*10) -> 3720.24769 | I11: =OFFSET(Potencia!I230,0,($L$1-1)*10) -> - | J11: =OFFSET(Potencia!J230,0,($L$1-1)*10) -> - | K11: =OFFSET(Potencia!K230,0,($L$1-1)*10) -> - | L11: =OFFSET(Potencia!L230,0,($L$1-1)*10) -> -
B12: =Potencia!B87 -> Nuclear | C12: =OFFSET(Potencia!C231,0,($L$1-1)*10) -> - | D12: =OFFSET(Potencia!D231,0,($L$1-1)*10) -> - | E12: =OFFSET(Potencia!E231,0,($L$1-1)*10) -> - | F12: =OFFSET(Potencia!F231,0,($L$1-1)*10) -> - | G12: =OFFSET(Potencia!G231,0,($L$1-1)*10) -> - | H12: =OFFSET(Potencia!H231,0,($L$1-1)*10) -> - | I12: =OFFSET(Potencia!I231,0,($L$1-1)*10) -> - | J12: =OFFSET(Potencia!J231,0,($L$1-1)*10) -> - | K12: =OFFSET(Potencia!K231,0,($L$1-1)*10) -> - | L12: =OFFSET(Potencia!L231,0,($L$1-1)*10) -> -
B13: =Potencia!B88 -> Carbón | C13: =OFFSET(Potencia!C232,0,($L$1-1)*10) -> 1960.39 | D13: =OFFSET(Potencia!D232,0,($L$1-1)*10) -> 1960.39 | E13: =OFFSET(Potencia!E232,0,($L$1-1)*10) -> 1960.39 | F13: =OFFSET(Potencia!F232,0,($L$1-1)*10) -> 1960.39 | G13: =OFFSET(Potencia!G232,0,($L$1-1)*10) -> 1960.39 | H13: =OFFSET(Potencia!H232,0,($L$1-1)*10) -> 1960.39 | I13: =OFFSET(Potencia!I232,0,($L$1-1)*10) -> - | J13: =OFFSET(Potencia!J232,0,($L$1-1)*10) -> - | K13: =OFFSET(Potencia!K232,0,($L$1-1)*10) -> - | L13: =OFFSET(Potencia!L232,0,($L$1-1)*10) -> -
B14: =Potencia!B89 -> Fuel + Gas | C14: =OFFSET(Potencia!C233,0,($L$1-1)*10) -> - | D14: =OFFSET(Potencia!D233,0,($L$1-1)*10) -> - | E14: =OFFSET(Potencia!E233,0,($L$1-1)*10) -> - | F14: =OFFSET(Potencia!F233,0,($L$1-1)*10) -> - | G14: =OFFSET(Potencia!G233,0,($L$1-1)*10) -> - | H14: =OFFSET(Potencia!H233,0,($L$1-1)*10) -> - | I14: =OFFSET(Potencia!I233,0,($L$1-1)*10) -> - | J14: =OFFSET(Potencia!J233,0,($L$1-1)*10) -> - | K14: =OFFSET(Potencia!K233,0,($L$1-1)*10) -> - | L14: =OFFSET(Potencia!L233,0,($L$1-1)*10) -> -
B15: =Potencia!B90 -> Ciclo combinado | C15: =OFFSET(Potencia!C234,0,($L$1-1)*10) -> 1246.98 | D15: =OFFSET(Potencia!D234,0,($L$1-1)*10) -> 1246.98 | E15: =OFFSET(Potencia!E234,0,($L$1-1)*10) -> 1246.98 | F15: =OFFSET(Potencia!F234,0,($L$1-1)*10) -> 1246.98 | G15: =OFFSET(Potencia!G234,0,($L$1-1)*10) -> 1246.98 | H15: =OFFSET(Potencia!H234,0,($L$1-1)*10) -> 1246.98 | I15: =OFFSET(Potencia!I234,0,($L$1-1)*10) -> - | J15: =OFFSET(Potencia!J234,0,($L$1-1)*10) -> - | K15: =OFFSET(Potencia!K234,0,($L$1-1)*10) -> - | L15: =OFFSET(Potencia!L234,0,($L$1-1)*10) -> -
B16: =Potencia!B91 -> Eólica | C16: =OFFSET(Potencia!C235,0,($L$1-1)*10) -> 3333.677 | D16: =OFFSET(Potencia!D235,0,($L$1-1)*10) -> 3336.095 | E16: =OFFSET(Potencia!E235,0,($L$1-1)*10) -> 3343.17 | F16: =OFFSET(Potencia!F235,0,($L$1-1)*10) -> 3411.17 | G16: =OFFSET(Potencia!G235,0,($L$1-1)*10) -> 3805.165 | H16: =OFFSET(Potencia!H235,0,($L$1-1)*10) -> 3805.165 | I16: =OFFSET(Potencia!I235,0,($L$1-1)*10) -> - | J16: =OFFSET(Potencia!J235,0,($L$1-1)*10) -> - | K16: =OFFSET(Potencia!K235,0,($L$1-1)*10) -> - | L16: =OFFSET(Potencia!L235,0,($L$1-1)*10) -> -
B17: =Potencia!B92 -> Solar fotovoltaica | C17: =OFFSET(Potencia!C236,0,($L$1-1)*10) -> 16.40279 | D17: =OFFSET(Potencia!D236,0,($L$1-1)*10) -> 16.60519 | E17: =OFFSET(Potencia!E236,0,($L$1-1)*10) -> 16.609825 | F17: =OFFSET(Potencia!F236,0,($L$1-1)*10) -> 16.596105 | G17: =OFFSET(Potencia!G236,0,($L$1-1)*10) -> 18.096105 | H17: =OFFSET(Potencia!H236,0,($L$1-1)*10) -> 18.099005 | I17: =OFFSET(Potencia!I236,0,($L$1-1)*10) -> - | J17: =OFFSET(Potencia!J236,0,($L$1-1)*10) -> - | K17: =OFFSET(Potencia!K236,0,($L$1-1)*10) -> - | L17: =OFFSET(Potencia!L236,0,($L$1-1)*10) -> -
B18: =Potencia!B93 -> Solar térmica | C18: =OFFSET(Potencia!C237,0,($L$1-1)*10) -> - | D18: =OFFSET(Potencia!D237,0,($L$1-1)*10) -> - | E18: =OFFSET(Potencia!E237,0,($L$1-1)*10) -> - | F18: =OFFSET(Potencia!F237,0,($L$1-1)*10) -> - | G18: =OFFSET(Potencia!G237,0,($L$1-1)*10) -> - | H18: =OFFSET(Potencia!H237,0,($L$1-1)*10) -> - | I18: =OFFSET(Potencia!I237,0,($L$1-1)*10) -> - | J18: =OFFSET(Potencia!J237,0,($L$1-1)*10) -> - | K18: =OFFSET(Potencia!K237,0,($L$1-1)*10) -> - | L18: =OFFSET(Potencia!L237,0,($L$1-1)*10) -> -
B19: Otras renovables (1) | C19: =OFFSET(Potencia!C238,0,($L$1-1)*10) -> 64.221 | D19: =OFFSET(Potencia!D238,0,($L$1-1)*10) -> 64.221 | E19: =OFFSET(Potencia!E238,0,($L$1-1)*10) -> 65.821 | F19: =OFFSET(Potencia!F238,0,($L$1-1)*10) -> 65.821 | G19: =OFFSET(Potencia!G238,0,($L$1-1)*10) -> 115.734 | H19: =OFFSET(Potencia!H238,0,($L$1-1)*10) -> 115.734 | I19: =OFFSET(Potencia!I238,0,($L$1-1)*10) -> - | J19: =OFFSET(Potencia!J238,0,($L$1-1)*10) -> - | K19: =OFFSET(Potencia!K238,0,($L$1-1)*10) -> - | L19: =OFFSET(Potencia!L238,0,($L$1-1)*10) -> -
B20: Cogeneración | C20: =OFFSET(Potencia!C239,0,($L$1-1)*10) -> 537.4156 | D20: =OFFSET(Potencia!D239,0,($L$1-1)*10) -> 509.5686 | E20: =OFFSET(Potencia!E239,0,($L$1-1)*10) -> 493.9456 | F20: =OFFSET(Potencia!F239,0,($L$1-1)*10) -> 493.9456 | G20: =OFFSET(Potencia!G239,0,($L$1-1)*10) -> 483.6506 | H20: =OFFSET(Potencia!H239,0,($L$1-1)*10) -> 483.6506 | I20: =OFFSET(Potencia!I239,0,($L$1-1)*10) -> - | J20: =OFFSET(Potencia!J239,0,($L$1-1)*10) -> - | K20: =OFFSET(Potencia!K239,0,($L$1-1)*10) -> - | L20: =OFFSET(Potencia!L239,0,($L$1-1)*10) -> -
B21: Residuos no renovables | C21: =OFFSET(Potencia!C240,0,($L$1-1)*10) -> 40.68 | D21: =OFFSET(Potencia!D240,0,($L$1-1)*10) -> 40.68 | E21: =OFFSET(Potencia!E240,0,($L$1-1)*10) -> 40.68 | F21: =OFFSET(Potencia!F240,0,($L$1-1)*10) -> 40.68 | G21: =OFFSET(Potencia!G240,0,($L$1-1)*10) -> 40.68 | H21: =OFFSET(Potencia!H240,0,($L$1-1)*10) -> 40.68 | I21: =OFFSET(Potencia!I240,0,($L$1-1)*10) -> - | J21: =OFFSET(Potencia!J240,0,($L$1-1)*10) -> - | K21: =OFFSET(Potencia!K240,0,($L$1-1)*10) -> - | L21: =OFFSET(Potencia!L240,0,($L$1-1)*10) -> -
B22: Residuos renovables | C22: =OFFSET(Potencia!C241,0,($L$1-1)*10) -> 25 | D22: =OFFSET(Potencia!D241,0,($L$1-1)*10) -> 25 | E22: =OFFSET(Potencia!E241,0,($L$1-1)*10) -> 25 | F22: =OFFSET(Potencia!F241,0,($L$1-1)*10) -> 25 | G22: =OFFSET(Potencia!G241,0,($L$1-1)*10) -> 25 | H22: =OFFSET(Potencia!H241,0,($L$1-1)*10) -> 25 | I22: =OFFSET(Potencia!I241,0,($L$1-1)*10) -> - | J22: =OFFSET(Potencia!J241,0,($L$1-1)*10) -> - | K22: =OFFSET(Potencia!K241,0,($L$1-1)*10) -> - | L22: =OFFSET(Potencia!L241,0,($L$1-1)*10) -> -
B23: Total | C23: =OFFSET(Potencia!C242,0,($L$1-1)*10) -> 10923.56208 | D23: =OFFSET(Potencia!D242,0,($L$1-1)*10) -> 10901.11548 | E23: =OFFSET(Potencia!E242,0,($L$1-1)*10) -> 10894.17212 | F23: =OFFSET(Potencia!F242,0,($L$1-1)*10) -> 10980.8304 | G23: =OFFSET(Potencia!G242,0,($L$1-1)*10) -> 11415.9434 | H23: =OFFSET(Potencia!H242,0,($L$1-1)*10) -> 11415.9463 | I23: =OFFSET(Potencia!I242,0,($L$1-1)*10) -> - | J23: =OFFSET(Potencia!J242,0,($L$1-1)*10) -> - | K23: =OFFSET(Potencia!K242,0,($L$1-1)*10) -> - | L23: =OFFSET(Potencia!L242,0,($L$1-1)*10) -> -
B24: (1) Otras renovables incluyen biogás, biomasa, hidráulica marina y geotérmica.
B25: Datos a 31 de diciembre.
B26: =IF(L1=1,IF(MONTH(FACT)=1,"",(CONCATENATE("(*) Para el año ",YEAR(FACT), " datos a ",TEXT(FACT-30,"mmmm")," de ",YEAR(FACT),"."))),"") -> (*) Para el año 2020 datos a abril de 2020.
B30: =IF(L1=2,IF(MONTH(FACT)=1,"",(CONCATENATE("(*) Para el año ",YEAR(FACT), " datos a ",TEXT(FACT-30,"mmmm")," de ",YEAR(FACT),"."))),"") -> 

Sheet Potencia La Rioja
L1: 1
J5: Sistema / C.Autónoma
J6: Periodo
C8: =OFFSET(Potencia!C244,0,($L$1-1)*10) -> 2015 | D8: =OFFSET(Potencia!D244,0,($L$1-1)*10) -> 2016 | E8: =OFFSET(Potencia!E244,0,($L$1-1)*10) -> 2017 | F8: =OFFSET(Potencia!F244,0,($L$1-1)*10) -> 2018 | G8: =OFFSET(Potencia!G244,0,($L$1-1)*10) -> 2019 | H8: =OFFSET(Potencia!H244,0,($L$1-1)*10) -> 2020 | I8: =OFFSET(Potencia!I244,0,($L$1-1)*10) -> 2021 | J8: =OFFSET(Potencia!J244,0,($L$1-1)*10) -> 2022 | K8: =OFFSET(Potencia!K244,0,($L$1-1)*10) -> 2023 | L8: =OFFSET(Potencia!L244,0,($L$1-1)*10) -> 2024
B10: =Potencia!B85 -> Bombeo puro | C10: =OFFSET(Potencia!C245,0,($L$1-1)*10) -> - | D10: =OFFSET(Potencia!D245,0,($L$1-1)*10) -> - | E10: =OFFSET(Potencia!E245,0,($L$1-1)*10) -> - | F10: =OFFSET(Potencia!F245,0,($L$1-1)*10) -> - | G10: =OFFSET(Potencia!G245,0,($L$1-1)*10) -> - | H10: =OFFSET(Potencia!H245,0,($L$1-1)*10) -> - | I10: =OFFSET(Potencia!I245,0,($L$1-1)*10) -> - | J10: =OFFSET(Potencia!J245,0,($L$1-1)*10) -> - | K10: =OFFSET(Potencia!K245,0,($L$1-1)*10) -> - | L10: =OFFSET(Potencia!L245,0,($L$1-1)*10) -> -
B11: =Potencia!B86 -> Hidráulica convencional y mixta | C11: =OFFSET(Potencia!C246,0,($L$1-1)*10) -> 52.20554 | D11: =OFFSET(Potencia!D246,0,($L$1-1)*10) -> 52.20554 | E11: =OFFSET(Potencia!E246,0,($L$1-1)*10) -> 52.20554 | F11: =OFFSET(Potencia!F246,0,($L$1-1)*10) -> 52.20554 | G11: =OFFSET(Potencia!G246,0,($L$1-1)*10) -> 52.20554 | H11: =OFFSET(Potencia!H246,0,($L$1-1)*10) -> 52.20554 | I11: =OFFSET(Potencia!I246,0,($L$1-1)*10) -> - | J11: =OFFSET(Potencia!J246,0,($L$1-1)*10) -> - | K11: =OFFSET(Potencia!K246,0,($L$1-1)*10) -> - | L11: =OFFSET(Potencia!L246,0,($L$1-1)*10) -> -
B12: =Potencia!B87 -> Nuclear | C12: =OFFSET(Potencia!C247,0,($L$1-1)*10) -> - | D12: =OFFSET(Potencia!D247,0,($L$1-1)*10) -> - | E12: =OFFSET(Potencia!E247,0,($L$1-1)*10) -> - | F12: =OFFSET(Potencia!F247,0,($L$1-1)*10) -> - | G12: =OFFSET(Potencia!G247,0,($L$1-1)*10) -> - | H12: =OFFSET(Potencia!H247,0,($L$1-1)*10) -> - | I12: =OFFSET(Potencia!I247,0,($L$1-1)*10) -> - | J12: =OFFSET(Potencia!J247,0,($L$1-1)*10) -> - | K12: =OFFSET(Potencia!K247,0,($L$1-1)*10) -> - | L12: =OFFSET(Potencia!L247,0,($L$1-1)*10) -> -
B13: =Potencia!B88 -> Carbón | C13: =OFFSET(Potencia!C248,0,($L$1-1)*10) -> - | D13: =OFFSET(Potencia!D248,0,($L$1-1)*10) -> - | E13: =OFFSET(Potencia!E248,0,($L$1-1)*10) -> - | F13: =OFFSET(Potencia!F248,0,($L$1-1)*10) -> - | G13: =OFFSET(Potencia!G248,0,($L$1-1)*10) -> - | H13: =OFFSET(Potencia!H248,0,($L$1-1)*10) -> - | I13: =OFFSET(Potencia!I248,0,($L$1-1)*10) -> - | J13: =OFFSET(Potencia!J248,0,($L$1-1)*10) -> - | K13: =OFFSET(Potencia!K248,0,($L$1-1)*10) -> - | L13: =OFFSET(Potencia!L248,0,($L$1-1)*10) -> -
B14: =Potencia!B89 -> Fuel + Gas | C14: =OFFSET(Potencia!C249,0,($L$1-1)*10) -> - | D14: =OFFSET(Potencia!D249,0,($L$1-1)*10) -> - | E14: =OFFSET(Potencia!E249,0,($L$1-1)*10) -> - | F14: =OFFSET(Potencia!F249,0,($L$1-1)*10) -> - | G14: =OFFSET(Potencia!G249,0,($L$1-1)*10) -> - | H14: =OFFSET(Potencia!H249,0,($L$1-1)*10) -> - | I14: =OFFSET(Potencia!I249,0,($L$1-1)*10) -> - | J14: =OFFSET(Potencia!J249,0,($L$1-1)*10) -> - | K14: =OFFSET(Potencia!K249,0,($L$1-1)*10) -> - | L14: =OFFSET(Potencia!L249,0,($L$1-1)*10) -> -
B15: =Potencia!B90 -> Ciclo combinado | C15: =OFFSET(Potencia!C250,0,($L$1-1)*10) -> 784.7 | D15: =OFFSET(Potencia!D250,0,($L$1-1)*10) -> 784.7 | E15: =OFFSET(Potencia!E250,0,($L$1-1)*10) -> 784.7 | F15: =OFFSET(Potencia!F250,0,($L$1-1)*10) -> 784.7 | G15: =OFFSET(Potencia!G250,0,($L$1-1)*10) -> 784.7 | H15: =OFFSET(Potencia!H250,0,($L$1-1)*10) -> 784.7 | I15: =OFFSET(Potencia!I250,0,($L$1-1)*10) -> - | J15: =OFFSET(Potencia!J250,0,($L$1-1)*10) -> - | K15: =OFFSET(Potencia!K250,0,($L$1-1)*10) -> - | L15: =OFFSET(Potencia!L250,0,($L$1-1)*10) -> -
B16: =Potencia!B91 -> Eólica | C16: =OFFSET(Potencia!C251,0,($L$1-1)*10) -> 448.12 | D16: =OFFSET(Potencia!D251,0,($L$1-1)*10) -> 448.12 | E16: =OFFSET(Potencia!E251,0,($L$1-1)*10) -> 448.12 | F16: =OFFSET(Potencia!F251,0,($L$1-1)*10) -> 448.12 | G16: =OFFSET(Potencia!G251,0,($L$1-1)*10) -> 448.12 | H16: =OFFSET(Potencia!H251,0,($L$1-1)*10) -> 448.12 | I16: =OFFSET(Potencia!I251,0,($L$1-1)*10) -> - | J16: =OFFSET(Potencia!J251,0,($L$1-1)*10) -> - | K16: =OFFSET(Potencia!K251,0,($L$1-1)*10) -> - | L16: =OFFSET(Potencia!L251,0,($L$1-1)*10) -> -
B17: =Potencia!B92 -> Solar fotovoltaica | C17: =OFFSET(Potencia!C252,0,($L$1-1)*10) -> 85.60418 | D17: =OFFSET(Potencia!D252,0,($L$1-1)*10) -> 85.60418 | E17: =OFFSET(Potencia!E252,0,($L$1-1)*10) -> 85.60298 | F17: =OFFSET(Potencia!F252,0,($L$1-1)*10) -> 85.60298 | G17: =OFFSET(Potencia!G252,0,($L$1-1)*10) -> 96.60298 | H17: =OFFSET(Potencia!H252,0,($L$1-1)*10) -> 98.80078 | I17: =OFFSET(Potencia!I252,0,($L$1-1)*10) -> - | J17: =OFFSET(Potencia!J252,0,($L$1-1)*10) -> - | K17: =OFFSET(Potencia!K252,0,($L$1-1)*10) -> - | L17: =OFFSET(Potencia!L252,0,($L$1-1)*10) -> -
B18: =Potencia!B93 -> Solar térmica | C18: =OFFSET(Potencia!C253,0,($L$1-1)*10) -> - | D18: =OFFSET(Potencia!D253,0,($L$1-1)*10) -> - | E18: =OFFSET(Potencia!E253,0,($L$1-1)*10) -> - | F18: =OFFSET(Potencia!F253,0,($L$1-1)*10) -> - | G18: =OFFSET(Potencia!G253,0,($L$1-1)*10) -> - | H18: =OFFSET(Potencia!H253,0,($L$1-1)*10) -> - | I18: =OFFSET(Potencia!I253,0,($L$1-1)*10) -> - | J18: =OFFSET(Potencia!J253,0,($L$1-1)*10) -> - | K18: =OFFSET(Potencia!K253,0,($L$1-1)*10) -> - | L18: =OFFSET(Potencia!L253,0,($L$1-1)*10) -> -
B19: Otras renovables (1) | C19: =OFFSET(Potencia!C254,0,($L$1-1)*10) -> 4.295 | D19: =OFFSET(Potencia!D254,0,($L$1-1)*10) -> 3.78 | E19: =OFFSET(Potencia!E254,0,($L$1-1)*10) -> 4.127 | F19: =OFFSET(Potencia!F254,0,($L$1-1)*10) -> 4.127 | G19: =OFFSET(Potencia!G254,0,($L$1-1)*10) -> 4.127 | H19: =OFFSET(Potencia!H254,0,($L$1-1)*10) -> 3.627 | I19: =OFFSET(Potencia!I254,0,($L$1-1)*10) -> - | J19: =OFFSET(Potencia!J254,0,($L$1-1)*10) -> - | K19: =OFFSET(Potencia!K254,0,($L$1-1)*10) -> - | L19: =OFFSET(Potencia!L254,0,($L$1-1)*10) -> -
B20: Cogeneración | C20: =OFFSET(Potencia!C255,0,($L$1-1)*10) -> 43.103 | D20: =OFFSET(Potencia!D255,0,($L$1-1)*10) -> 41.713 | E20: =OFFSET(Potencia!E255,0,($L$1-1)*10) -> 40.737 | F20: =OFFSET(Potencia!F255,0,($L$1-1)*10) -> 22.917 | G20: =OFFSET(Potencia!G255,0,($L$1-1)*10) -> 22.917 | H20: =OFFSET(Potencia!H255,0,($L$1-1)*10) -> 22.917 | I20: =OFFSET(Potencia!I255,0,($L$1-1)*10) -> - | J20: =OFFSET(Potencia!J255,0,($L$1-1)*10) -> - | K20: =OFFSET(Potencia!K255,0,($L$1-1)*10) -> - | L20: =OFFSET(Potencia!L255,0,($L$1-1)*10) -> -
B21: Residuos no renovables | C21: =OFFSET(Potencia!C256,0,($L$1-1)*10) -> - | D21: =OFFSET(Potencia!D256,0,($L$1-1)*10) -> - | E21: =OFFSET(Potencia!E256,0,($L$1-1)*10) -> - | F21: =OFFSET(Potencia!F256,0,($L$1-1)*10) -> - | G21: =OFFSET(Potencia!G256,0,($L$1-1)*10) -> - | H21: =OFFSET(Potencia!H256,0,($L$1-1)*10) -> - | I21: =OFFSET(Potencia!I256,0,($L$1-1)*10) -> - | J21: =OFFSET(Potencia!J256,0,($L$1-1)*10) -> - | K21: =OFFSET(Potencia!K256,0,($L$1-1)*10) -> - | L21: =OFFSET(Potencia!L256,0,($L$1-1)*10) -> -
B22: Residuos renovables | C22: =OFFSET(Potencia!C257,0,($L$1-1)*10) -> - | D22: =OFFSET(Potencia!D257,0,($L$1-1)*10) -> - | E22: =OFFSET(Potencia!E257,0,($L$1-1)*10) -> - | F22: =OFFSET(Potencia!F257,0,($L$1-1)*10) -> - | G22: =OFFSET(Potencia!G257,0,($L$1-1)*10) -> - | H22: =OFFSET(Potencia!H257,0,($L$1-1)*10) -> - | I22: =OFFSET(Potencia!I257,0,($L$1-1)*10) -> - | J22: =OFFSET(Potencia!J257,0,($L$1-1)*10) -> - | K22: =OFFSET(Potencia!K257,0,($L$1-1)*10) -> - | L22: =OFFSET(Potencia!L257,0,($L$1-1)*10) -> -
B23: Total | C23: =OFFSET(Potencia!C258,0,($L$1-1)*10) -> 1418.02772 | D23: =OFFSET(Potencia!D258,0,($L$1-1)*10) -> 1416.12272 | E23: =OFFSET(Potencia!E258,0,($L$1-1)*10) -> 1415.49252 | F23: =OFFSET(Potencia!F258,0,($L$1-1)*10) -> 1397.67252 | G23: =OFFSET(Potencia!G258,0,($L$1-1)*10) -> 1408.67252 | H23: =OFFSET(Potencia!H258,0,($L$1-1)*10) -> 1410.37032 | I23: =OFFSET(Potencia!I258,0,($L$1-1)*10) -> - | J23: =OFFSET(Potencia!J258,0,($L$1-1)*10) -> - | K23: =OFFSET(Potencia!K258,0,($L$1-1)*10) -> - | L23: =OFFSET(Potencia!L258,0,($L$1-1)*10) -> -
B24: (1) Otras renovables incluyen biogás, biomasa, hidráulica marina y geotérmica.
B25: Datos a 31 de diciembre.
B26: =IF(L1=1,IF(MONTH(FACT)=1,"",(CONCATENATE("(*) Para el año ",YEAR(FACT), " datos a ",TEXT(FACT-30,"mmmm")," de ",YEAR(FACT),"."))),"") -> (*) Para el año 2020 datos a abril de 2020.
B30: =IF(L1=2,IF(MONTH(FACT)=1,"",(CONCATENATE("(*) Para el año ",YEAR(FACT), " datos a ",TEXT(FACT-30,"mmmm")," de ",YEAR(FACT),"."))),"") -> 

Sheet Potencia Madrid
L1: 1
J5: Sistema / C.Autónoma
J6: Periodo
C8: =OFFSET(Potencia!C260,0,($L$1-1)*10) -> 2015 | D8: =OFFSET(Potencia!D260,0,($L$1-1)*10) -> 2016 | E8: =OFFSET(Potencia!E260,0,($L$1-1)*10) -> 2017 | F8: =OFFSET(Potencia!F260,0,($L$1-1)*10) -> 2018 | G8: =OFFSET(Potencia!G260,0,($L$1-1)*10) -> 2019 | H8: =OFFSET(Potencia!H260,0,($L$1-1)*10) -> 2020 | I8: =OFFSET(Potencia!I260,0,($L$1-1)*10) -> 2021 | J8: =OFFSET(Potencia!J260,0,($L$1-1)*10) -> 2022 | K8: =OFFSET(Potencia!K260,0,($L$1-1)*10) -> 2023 | L8: =OFFSET(Potencia!L260,0,($L$1-1)*10) -> 2024
B10: =Potencia!B85 -> Bombeo puro | C10: =OFFSET(Potencia!C261,0,($L$1-1)*10) -> - | D10: =OFFSET(Potencia!D261,0,($L$1-1)*10) -> - | E10: =OFFSET(Potencia!E261,0,($L$1-1)*10) -> - | F10: =OFFSET(Potencia!F261,0,($L$1-1)*10) -> - | G10: =OFFSET(Potencia!G261,0,($L$1-1)*10) -> - | H10: =OFFSET(Potencia!H261,0,($L$1-1)*10) -> - | I10: =OFFSET(Potencia!I261,0,($L$1-1)*10) -> - | J10: =OFFSET(Potencia!J261,0,($L$1-1)*10) -> - | K10: =OFFSET(Potencia!K261,0,($L$1-1)*10) -> - | L10: =OFFSET(Potencia!L261,0,($L$1-1)*10) -> -
B11: =Potencia!B86 -> Hidráulica convencional y mixta | C11: =OFFSET(Potencia!C262,0,($L$1-1)*10) -> 108.5166 | D11: =OFFSET(Potencia!D262,0,($L$1-1)*10) -> 108.5166 | E11: =OFFSET(Potencia!E262,0,($L$1-1)*10) -> 108.5166 | F11: =OFFSET(Potencia!F262,0,($L$1-1)*10) -> 108.5166 | G11: =OFFSET(Potencia!G262,0,($L$1-1)*10) -> 108.5166 | H11: =OFFSET(Potencia!H262,0,($L$1-1)*10) -> 108.5166 | I11: =OFFSET(Potencia!I262,0,($L$1-1)*10) -> - | J11: =OFFSET(Potencia!J262,0,($L$1-1)*10) -> - | K11: =OFFSET(Potencia!K262,0,($L$1-1)*10) -> - | L11: =OFFSET(Potencia!L262,0,($L$1-1)*10) -> -
B12: =Potencia!B87 -> Nuclear | C12: =OFFSET(Potencia!C263,0,($L$1-1)*10) -> - | D12: =OFFSET(Potencia!D263,0,($L$1-1)*10) -> - | E12: =OFFSET(Potencia!E263,0,($L$1-1)*10) -> - | F12: =OFFSET(Potencia!F263,0,($L$1-1)*10) -> - | G12: =OFFSET(Potencia!G263,0,($L$1-1)*10) -> - | H12: =OFFSET(Potencia!H263,0,($L$1-1)*10) -> - | I12: =OFFSET(Potencia!I263,0,($L$1-1)*10) -> - | J12: =OFFSET(Potencia!J263,0,($L$1-1)*10) -> - | K12: =OFFSET(Potencia!K263,0,($L$1-1)*10) -> - | L12: =OFFSET(Potencia!L263,0,($L$1-1)*10) -> -
B13: =Potencia!B88 -> Carbón | C13: =OFFSET(Potencia!C264,0,($L$1-1)*10) -> - | D13: =OFFSET(Potencia!D264,0,($L$1-1)*10) -> - | E13: =OFFSET(Potencia!E264,0,($L$1-1)*10) -> - | F13: =OFFSET(Potencia!F264,0,($L$1-1)*10) -> - | G13: =OFFSET(Potencia!G264,0,($L$1-1)*10) -> - | H13: =OFFSET(Potencia!H264,0,($L$1-1)*10) -> - | I13: =OFFSET(Potencia!I264,0,($L$1-1)*10) -> - | J13: =OFFSET(Potencia!J264,0,($L$1-1)*10) -> - | K13: =OFFSET(Potencia!K264,0,($L$1-1)*10) -> - | L13: =OFFSET(Potencia!L264,0,($L$1-1)*10) -> -
B14: =Potencia!B89 -> Fuel + Gas | C14: =OFFSET(Potencia!C265,0,($L$1-1)*10) -> - | D14: =OFFSET(Potencia!D265,0,($L$1-1)*10) -> - | E14: =OFFSET(Potencia!E265,0,($L$1-1)*10) -> - | F14: =OFFSET(Potencia!F265,0,($L$1-1)*10) -> - | G14: =OFFSET(Potencia!G265,0,($L$1-1)*10) -> - | H14: =OFFSET(Potencia!H265,0,($L$1-1)*10) -> - | I14: =OFFSET(Potencia!I265,0,($L$1-1)*10) -> - | J14: =OFFSET(Potencia!J265,0,($L$1-1)*10) -> - | K14: =OFFSET(Potencia!K265,0,($L$1-1)*10) -> - | L14: =OFFSET(Potencia!L265,0,($L$1-1)*10) -> -
B15: =Potencia!B90 -> Ciclo combinado | C15: =OFFSET(Potencia!C266,0,($L$1-1)*10) -> - | D15: =OFFSET(Potencia!D266,0,($L$1-1)*10) -> - | E15: =OFFSET(Potencia!E266,0,($L$1-1)*10) -> - | F15: =OFFSET(Potencia!F266,0,($L$1-1)*10) -> - | G15: =OFFSET(Potencia!G266,0,($L$1-1)*10) -> - | H15: =OFFSET(Potencia!H266,0,($L$1-1)*10) -> - | I15: =OFFSET(Potencia!I266,0,($L$1-1)*10) -> - | J15: =OFFSET(Potencia!J266,0,($L$1-1)*10) -> - | K15: =OFFSET(Potencia!K266,0,($L$1-1)*10) -> - | L15: =OFFSET(Potencia!L266,0,($L$1-1)*10) -> -
B16: =Potencia!B91 -> Eólica | C16: =OFFSET(Potencia!C267,0,($L$1-1)*10) -> - | D16: =OFFSET(Potencia!D267,0,($L$1-1)*10) -> - | E16: =OFFSET(Potencia!E267,0,($L$1-1)*10) -> - | F16: =OFFSET(Potencia!F267,0,($L$1-1)*10) -> - | G16: =OFFSET(Potencia!G267,0,($L$1-1)*10) -> - | H16: =OFFSET(Potencia!H267,0,($L$1-1)*10) -> - | I16: =OFFSET(Potencia!I267,0,($L$1-1)*10) -> - | J16: =OFFSET(Potencia!J267,0,($L$1-1)*10) -> - | K16: =OFFSET(Potencia!K267,0,($L$1-1)*10) -> - | L16: =OFFSET(Potencia!L267,0,($L$1-1)*10) -> -
B17: =Potencia!B92 -> Solar fotovoltaica | C17: =OFFSET(Potencia!C268,0,($L$1-1)*10) -> 63.170492 | D17: =OFFSET(Potencia!D268,0,($L$1-1)*10) -> 63.409282 | E17: =OFFSET(Potencia!E268,0,($L$1-1)*10) -> 63.439681 | F17: =OFFSET(Potencia!F268,0,($L$1-1)*10) -> 63.517586 | G17: =OFFSET(Potencia!G268,0,($L$1-1)*10) -> 63.470686 | H17: =OFFSET(Potencia!H268,0,($L$1-1)*10) -> 63.470686 | I17: =OFFSET(Potencia!I268,0,($L$1-1)*10) -> - | J17: =OFFSET(Potencia!J268,0,($L$1-1)*10) -> - | K17: =OFFSET(Potencia!K268,0,($L$1-1)*10) -> - | L17: =OFFSET(Potencia!L268,0,($L$1-1)*10) -> -
B18: =Potencia!B93 -> Solar térmica | C18: =OFFSET(Potencia!C269,0,($L$1-1)*10) -> - | D18: =OFFSET(Potencia!D269,0,($L$1-1)*10) -> - | E18: =OFFSET(Potencia!E269,0,($L$1-1)*10) -> - | F18: =OFFSET(Potencia!F269,0,($L$1-1)*10) -> - | G18: =OFFSET(Potencia!G269,0,($L$1-1)*10) -> - | H18: =OFFSET(Potencia!H269,0,($L$1-1)*10) -> - | I18: =OFFSET(Potencia!I269,0,($L$1-1)*10) -> - | J18: =OFFSET(Potencia!J269,0,($L$1-1)*10) -> - | K18: =OFFSET(Potencia!K269,0,($L$1-1)*10) -> - | L18: =OFFSET(Potencia!L269,0,($L$1-1)*10) -> -
B19: Otras renovables (1) | C19: =OFFSET(Potencia!C270,0,($L$1-1)*10) -> 42.584 | D19: =OFFSET(Potencia!D270,0,($L$1-1)*10) -> 45.084 | E19: =OFFSET(Potencia!E270,0,($L$1-1)*10) -> 45.084 | F19: =OFFSET(Potencia!F270,0,($L$1-1)*10) -> 45.084 | G19: =OFFSET(Potencia!G270,0,($L$1-1)*10) -> 45.084 | H19: =OFFSET(Potencia!H270,0,($L$1-1)*10) -> 45.084 | I19: =OFFSET(Potencia!I270,0,($L$1-1)*10) -> - | J19: =OFFSET(Potencia!J270,0,($L$1-1)*10) -> - | K19: =OFFSET(Potencia!K270,0,($L$1-1)*10) -> - | L19: =OFFSET(Potencia!L270,0,($L$1-1)*10) -> -
B20: Cogeneración | C20: =OFFSET(Potencia!C271,0,($L$1-1)*10) -> 244.6449 | D20: =OFFSET(Potencia!D271,0,($L$1-1)*10) -> 212.0169 | E20: =OFFSET(Potencia!E271,0,($L$1-1)*10) -> 212.0519 | F20: =OFFSET(Potencia!F271,0,($L$1-1)*10) -> 211.0619 | G20: =OFFSET(Potencia!G271,0,($L$1-1)*10) -> 211.0219 | H20: =OFFSET(Potencia!H271,0,($L$1-1)*10) -> 211.0219 | I20: =OFFSET(Potencia!I271,0,($L$1-1)*10) -> - | J20: =OFFSET(Potencia!J271,0,($L$1-1)*10) -> - | K20: =OFFSET(Potencia!K271,0,($L$1-1)*10) -> - | L20: =OFFSET(Potencia!L271,0,($L$1-1)*10) -> -
B21: Residuos no renovables | C21: =OFFSET(Potencia!C272,0,($L$1-1)*10) -> 14.9 | D21: =OFFSET(Potencia!D272,0,($L$1-1)*10) -> 14.9 | E21: =OFFSET(Potencia!E272,0,($L$1-1)*10) -> 14.9 | F21: =OFFSET(Potencia!F272,0,($L$1-1)*10) -> 14.9 | G21: =OFFSET(Potencia!G272,0,($L$1-1)*10) -> 14.9 | H21: =OFFSET(Potencia!H272,0,($L$1-1)*10) -> 14.9 | I21: =OFFSET(Potencia!I272,0,($L$1-1)*10) -> - | J21: =OFFSET(Potencia!J272,0,($L$1-1)*10) -> - | K21: =OFFSET(Potencia!K272,0,($L$1-1)*10) -> - | L21: =OFFSET(Potencia!L272,0,($L$1-1)*10) -> -
B22: Residuos renovables | C22: =OFFSET(Potencia!C273,0,($L$1-1)*10) -> 14.9 | D22: =OFFSET(Potencia!D273,0,($L$1-1)*10) -> 14.9 | E22: =OFFSET(Potencia!E273,0,($L$1-1)*10) -> 14.9 | F22: =OFFSET(Potencia!F273,0,($L$1-1)*10) -> 14.9 | G22: =OFFSET(Potencia!G273,0,($L$1-1)*10) -> 14.9 | H22: =OFFSET(Potencia!H273,0,($L$1-1)*10) -> 14.9 | I22: =OFFSET(Potencia!I273,0,($L$1-1)*10) -> - | J22: =OFFSET(Potencia!J273,0,($L$1-1)*10) -> - | K22: =OFFSET(Potencia!K273,0,($L$1-1)*10) -> - | L22: =OFFSET(Potencia!L273,0,($L$1-1)*10) -> -
B23: Total | C23: =OFFSET(Potencia!C274,0,($L$1-1)*10) -> 488.715992 | D23: =OFFSET(Potencia!D274,0,($L$1-1)*10) -> 458.826782 | E23: =OFFSET(Potencia!E274,0,($L$1-1)*10) -> 458.892181 | F23: =OFFSET(Potencia!F274,0,($L$1-1)*10) -> 457.980086 | G23: =OFFSET(Potencia!G274,0,($L$1-1)*10) -> 457.893186 | H23: =OFFSET(Potencia!H274,0,($L$1-1)*10) -> 457.893186 | I23: =OFFSET(Potencia!I274,0,($L$1-1)*10) -> - | J23: =OFFSET(Potencia!J274,0,($L$1-1)*10) -> - | K23: =OFFSET(Potencia!K274,0,($L$1-1)*10) -> - | L23: =OFFSET(Potencia!L274,0,($L$1-1)*10) -> -
B24: (1) Otras renovables incluyen biogás, biomasa, hidráulica marina y geotérmica.
B25: Datos a 31 de diciembre.
B26: =IF(L1=1,IF(MONTH(FACT)=1,"",(CONCATENATE("(*) Para el año ",YEAR(FACT), " datos a ",TEXT(FACT-30,"mmmm")," de ",YEAR(FACT),"."))),"") -> (*) Para el año 2020 datos a abril de 2020.
B30: =IF(L1=2,IF(MONTH(FACT)=1,"",(CONCATENATE("(*) Para el año ",YEAR(FACT), " datos a ",TEXT(FACT-30,"mmmm")," de ",YEAR(FACT),"."))),"") -> 

Sheet Potencia Murcia
L1: 1
J5: Sistema / C.Autónoma
J6: Periodo
C8: =OFFSET(Potencia!C276,0,($L$1-1)*10) -> 2015 | D8: =OFFSET(Potencia!D276,0,($L$1-1)*10) -> 2016 | E8: =OFFSET(Potencia!E276,0,($L$1-1)*10) -> 2017 | F8: =OFFSET(Potencia!F276,0,($L$1-1)*10) -> 2018 | G8: =OFFSET(Potencia!G276,0,($L$1-1)*10) -> 2019 | H8: =OFFSET(Potencia!H276,0,($L$1-1)*10) -> 2020 | I8: =OFFSET(Potencia!I276,0,($L$1-1)*10) -> 2021 | J8: =OFFSET(Potencia!J276,0,($L$1-1)*10) -> 2022 | K8: =OFFSET(Potencia!K276,0,($L$1-1)*10) -> 2023 | L8: =OFFSET(Potencia!L276,0,($L$1-1)*10) -> 2024
B10: =Potencia!B85 -> Bombeo puro | C10: =OFFSET(Potencia!C277,0,($L$1-1)*10) -> - | D10: =OFFSET(Potencia!D277,0,($L$1-1)*10) -> - | E10: =OFFSET(Potencia!E277,0,($L$1-1)*10) -> - | F10: =OFFSET(Potencia!F277,0,($L$1-1)*10) -> - | G10: =OFFSET(Potencia!G277,0,($L$1-1)*10) -> - | H10: =OFFSET(Potencia!H277,0,($L$1-1)*10) -> - | I10: =OFFSET(Potencia!I277,0,($L$1-1)*10) -> - | J10: =OFFSET(Potencia!J277,0,($L$1-1)*10) -> - | K10: =OFFSET(Potencia!K277,0,($L$1-1)*10) -> - | L10: =OFFSET(Potencia!L277,0,($L$1-1)*10) -> -
B11: =Potencia!B86 -> Hidráulica convencional y mixta | C11: =OFFSET(Potencia!C278,0,($L$1-1)*10) -> 33.158 | D11: =OFFSET(Potencia!D278,0,($L$1-1)*10) -> 33.203 | E11: =OFFSET(Potencia!E278,0,($L$1-1)*10) -> 33.593 | F11: =OFFSET(Potencia!F278,0,($L$1-1)*10) -> 33.593 | G11: =OFFSET(Potencia!G278,0,($L$1-1)*10) -> 33.593 | H11: =OFFSET(Potencia!H278,0,($L$1-1)*10) -> 33.593 | I11: =OFFSET(Potencia!I278,0,($L$1-1)*10) -> - | J11: =OFFSET(Potencia!J278,0,($L$1-1)*10) -> - | K11: =OFFSET(Potencia!K278,0,($L$1-1)*10) -> - | L11: =OFFSET(Potencia!L278,0,($L$1-1)*10) -> -
B12: =Potencia!B87 -> Nuclear | C12: =OFFSET(Potencia!C279,0,($L$1-1)*10) -> - | D12: =OFFSET(Potencia!D279,0,($L$1-1)*10) -> - | E12: =OFFSET(Potencia!E279,0,($L$1-1)*10) -> - | F12: =OFFSET(Potencia!F279,0,($L$1-1)*10) -> - | G12: =OFFSET(Potencia!G279,0,($L$1-1)*10) -> - | H12: =OFFSET(Potencia!H279,0,($L$1-1)*10) -> - | I12: =OFFSET(Potencia!I279,0,($L$1-1)*10) -> - | J12: =OFFSET(Potencia!J279,0,($L$1-1)*10) -> - | K12: =OFFSET(Potencia!K279,0,($L$1-1)*10) -> - | L12: =OFFSET(Potencia!L279,0,($L$1-1)*10) -> -
B13: =Potencia!B88 -> Carbón | C13: =OFFSET(Potencia!C280,0,($L$1-1)*10) -> - | D13: =OFFSET(Potencia!D280,0,($L$1-1)*10) -> - | E13: =OFFSET(Potencia!E280,0,($L$1-1)*10) -> - | F13: =OFFSET(Potencia!F280,0,($L$1-1)*10) -> - | G13: =OFFSET(Potencia!G280,0,($L$1-1)*10) -> - | H13: =OFFSET(Potencia!H280,0,($L$1-1)*10) -> - | I13: =OFFSET(Potencia!I280,0,($L$1-1)*10) -> - | J13: =OFFSET(Potencia!J280,0,($L$1-1)*10) -> - | K13: =OFFSET(Potencia!K280,0,($L$1-1)*10) -> - | L13: =OFFSET(Potencia!L280,0,($L$1-1)*10) -> -
B14: =Potencia!B89 -> Fuel + Gas | C14: =OFFSET(Potencia!C281,0,($L$1-1)*10) -> - | D14: =OFFSET(Potencia!D281,0,($L$1-1)*10) -> - | E14: =OFFSET(Potencia!E281,0,($L$1-1)*10) -> - | F14: =OFFSET(Potencia!F281,0,($L$1-1)*10) -> - | G14: =OFFSET(Potencia!G281,0,($L$1-1)*10) -> - | H14: =OFFSET(Potencia!H281,0,($L$1-1)*10) -> - | I14: =OFFSET(Potencia!I281,0,($L$1-1)*10) -> - | J14: =OFFSET(Potencia!J281,0,($L$1-1)*10) -> - | K14: =OFFSET(Potencia!K281,0,($L$1-1)*10) -> - | L14: =OFFSET(Potencia!L281,0,($L$1-1)*10) -> -
B15: =Potencia!B90 -> Ciclo combinado | C15: =OFFSET(Potencia!C282,0,($L$1-1)*10) -> 3263.71 | D15: =OFFSET(Potencia!D282,0,($L$1-1)*10) -> 3263.71 | E15: =OFFSET(Potencia!E282,0,($L$1-1)*10) -> 3263.71 | F15: =OFFSET(Potencia!F282,0,($L$1-1)*10) -> 3263.71 | G15: =OFFSET(Potencia!G282,0,($L$1-1)*10) -> 3263.71 | H15: =OFFSET(Potencia!H282,0,($L$1-1)*10) -> 3263.71 | I15: =OFFSET(Potencia!I282,0,($L$1-1)*10) -> - | J15: =OFFSET(Potencia!J282,0,($L$1-1)*10) -> - | K15: =OFFSET(Potencia!K282,0,($L$1-1)*10) -> - | L15: =OFFSET(Potencia!L282,0,($L$1-1)*10) -> -
B16: =Potencia!B91 -> Eólica | C16: =OFFSET(Potencia!C283,0,($L$1-1)*10) -> 262.776 | D16: =OFFSET(Potencia!D283,0,($L$1-1)*10) -> 262.776 | E16: =OFFSET(Potencia!E283,0,($L$1-1)*10) -> 262.77 | F16: =OFFSET(Potencia!F283,0,($L$1-1)*10) -> 262.77 | G16: =OFFSET(Potencia!G283,0,($L$1-1)*10) -> 262.77 | H16: =OFFSET(Potencia!H283,0,($L$1-1)*10) -> 262.77 | I16: =OFFSET(Potencia!I283,0,($L$1-1)*10) -> - | J16: =OFFSET(Potencia!J283,0,($L$1-1)*10) -> - | K16: =OFFSET(Potencia!K283,0,($L$1-1)*10) -> - | L16: =OFFSET(Potencia!L283,0,($L$1-1)*10) -> -
B17: =Potencia!B92 -> Solar fotovoltaica | C17: =OFFSET(Potencia!C284,0,($L$1-1)*10) -> 437.846586 | D17: =OFFSET(Potencia!D284,0,($L$1-1)*10) -> 437.846586 | E17: =OFFSET(Potencia!E284,0,($L$1-1)*10) -> 436.500296 | F17: =OFFSET(Potencia!F284,0,($L$1-1)*10) -> 441.192546 | G17: =OFFSET(Potencia!G284,0,($L$1-1)*10) -> 1114.006701 | H17: =OFFSET(Potencia!H284,0,($L$1-1)*10) -> 1114.006701 | I17: =OFFSET(Potencia!I284,0,($L$1-1)*10) -> - | J17: =OFFSET(Potencia!J284,0,($L$1-1)*10) -> - | K17: =OFFSET(Potencia!K284,0,($L$1-1)*10) -> - | L17: =OFFSET(Potencia!L284,0,($L$1-1)*10) -> -
B18: =Potencia!B93 -> Solar térmica | C18: =OFFSET(Potencia!C285,0,($L$1-1)*10) -> 31.4 | D18: =OFFSET(Potencia!D285,0,($L$1-1)*10) -> 31.4 | E18: =OFFSET(Potencia!E285,0,($L$1-1)*10) -> 31.4 | F18: =OFFSET(Potencia!F285,0,($L$1-1)*10) -> 31.4 | G18: =OFFSET(Potencia!G285,0,($L$1-1)*10) -> 31.4 | H18: =OFFSET(Potencia!H285,0,($L$1-1)*10) -> 31.4 | I18: =OFFSET(Potencia!I285,0,($L$1-1)*10) -> - | J18: =OFFSET(Potencia!J285,0,($L$1-1)*10) -> - | K18: =OFFSET(Potencia!K285,0,($L$1-1)*10) -> - | L18: =OFFSET(Potencia!L285,0,($L$1-1)*10) -> -
B19: Otras renovables (1) | C19: =OFFSET(Potencia!C286,0,($L$1-1)*10) -> 15.524 | D19: =OFFSET(Potencia!D286,0,($L$1-1)*10) -> 15.472 | E19: =OFFSET(Potencia!E286,0,($L$1-1)*10) -> 15.472 | F19: =OFFSET(Potencia!F286,0,($L$1-1)*10) -> 15.472 | G19: =OFFSET(Potencia!G286,0,($L$1-1)*10) -> 15.472 | H19: =OFFSET(Potencia!H286,0,($L$1-1)*10) -> 15.472 | I19: =OFFSET(Potencia!I286,0,($L$1-1)*10) -> - | J19: =OFFSET(Potencia!J286,0,($L$1-1)*10) -> - | K19: =OFFSET(Potencia!K286,0,($L$1-1)*10) -> - | L19: =OFFSET(Potencia!L286,0,($L$1-1)*10) -> -
B20: Cogeneración | C20: =OFFSET(Potencia!C287,0,($L$1-1)*10) -> 326.806 | D20: =OFFSET(Potencia!D287,0,($L$1-1)*10) -> 314.102 | E20: =OFFSET(Potencia!E287,0,($L$1-1)*10) -> 314.102 | F20: =OFFSET(Potencia!F287,0,($L$1-1)*10) -> 314.102 | G20: =OFFSET(Potencia!G287,0,($L$1-1)*10) -> 314.102 | H20: =OFFSET(Potencia!H287,0,($L$1-1)*10) -> 314.102 | I20: =OFFSET(Potencia!I287,0,($L$1-1)*10) -> - | J20: =OFFSET(Potencia!J287,0,($L$1-1)*10) -> - | K20: =OFFSET(Potencia!K287,0,($L$1-1)*10) -> - | L20: =OFFSET(Potencia!L287,0,($L$1-1)*10) -> -
B21: Residuos no renovables | C21: =OFFSET(Potencia!C288,0,($L$1-1)*10) -> 9.68 | D21: =OFFSET(Potencia!D288,0,($L$1-1)*10) -> 9.68 | E21: =OFFSET(Potencia!E288,0,($L$1-1)*10) -> 9.68 | F21: =OFFSET(Potencia!F288,0,($L$1-1)*10) -> 9.68 | G21: =OFFSET(Potencia!G288,0,($L$1-1)*10) -> 9.68 | H21: =OFFSET(Potencia!H288,0,($L$1-1)*10) -> 9.68 | I21: =OFFSET(Potencia!I288,0,($L$1-1)*10) -> - | J21: =OFFSET(Potencia!J288,0,($L$1-1)*10) -> - | K21: =OFFSET(Potencia!K288,0,($L$1-1)*10) -> - | L21: =OFFSET(Potencia!L288,0,($L$1-1)*10) -> -
B22: Residuos renovables | C22: =OFFSET(Potencia!C289,0,($L$1-1)*10) -> - | D22: =OFFSET(Potencia!D289,0,($L$1-1)*10) -> - | E22: =OFFSET(Potencia!E289,0,($L$1-1)*10) -> - | F22: =OFFSET(Potencia!F289,0,($L$1-1)*10) -> - | G22: =OFFSET(Potencia!G289,0,($L$1-1)*10) -> - | H22: =OFFSET(Potencia!H289,0,($L$1-1)*10) -> - | I22: =OFFSET(Potencia!I289,0,($L$1-1)*10) -> - | J22: =OFFSET(Potencia!J289,0,($L$1-1)*10) -> - | K22: =OFFSET(Potencia!K289,0,($L$1-1)*10) -> - | L22: =OFFSET(Potencia!L289,0,($L$1-1)*10) -> -
B23: Total | C23: =OFFSET(Potencia!C290,0,($L$1-1)*10) -> 4380.900586 | D23: =OFFSET(Potencia!D290,0,($L$1-1)*10) -> 4368.189586 | E23: =OFFSET(Potencia!E290,0,($L$1-1)*10) -> 4367.227296 | F23: =OFFSET(Potencia!F290,0,($L$1-1)*10) -> 4371.919546 | G23: =OFFSET(Potencia!G290,0,($L$1-1)*10) -> 5044.733701 | H23: =OFFSET(Potencia!H290,0,($L$1-1)*10) -> 5044.733701 | I23: =OFFSET(Potencia!I290,0,($L$1-1)*10) -> - | J23: =OFFSET(Potencia!J290,0,($L$1-1)*10) -> - | K23: =OFFSET(Potencia!K290,0,($L$1-1)*10) -> - | L23: =OFFSET(Potencia!L290,0,($L$1-1)*10) -> -
B24: (1) Otras renovables incluyen biogás, biomasa, hidráulica marina y geotérmica.
B25: Datos a 31 de diciembre.
B26: =IF(L1=1,IF(MONTH(FACT)=1,"",(CONCATENATE("(*) Para el año ",YEAR(FACT), " datos a ",TEXT(FACT-30,"mmmm")," de ",YEAR(FACT),"."))),"") -> (*) Para el año 2020 datos a abril de 2020.
B30: =IF(L1=2,IF(MONTH(FACT)=1,"",(CONCATENATE("(*) Para el año ",YEAR(FACT), " datos a ",TEXT(FACT-30,"mmmm")," de ",YEAR(FACT),"."))),"") -> 

Sheet Potencia Navarra
L1: 1
J5: Sistema / C.Autónoma
J6: Periodo
C8: =OFFSET(Potencia!C292,0,($L$1-1)*10) -> 2015 | D8: =OFFSET(Potencia!D292,0,($L$1-1)*10) -> 2016 | E8: =OFFSET(Potencia!E292,0,($L$1-1)*10) -> 2017 | F8: =OFFSET(Potencia!F292,0,($L$1-1)*10) -> 2018 | G8: =OFFSET(Potencia!G292,0,($L$1-1)*10) -> 2019 | H8: =OFFSET(Potencia!H292,0,($L$1-1)*10) -> 2020 | I8: =OFFSET(Potencia!I292,0,($L$1-1)*10) -> 2021 | J8: =OFFSET(Potencia!J292,0,($L$1-1)*10) -> 2022 | K8: =OFFSET(Potencia!K292,0,($L$1-1)*10) -> 2023 | L8: =OFFSET(Potencia!L292,0,($L$1-1)*10) -> 2024
B10: =Potencia!B85 -> Bombeo puro | C10: =OFFSET(Potencia!C293,0,($L$1-1)*10) -> - | D10: =OFFSET(Potencia!D293,0,($L$1-1)*10) -> - | E10: =OFFSET(Potencia!E293,0,($L$1-1)*10) -> - | F10: =OFFSET(Potencia!F293,0,($L$1-1)*10) -> - | G10: =OFFSET(Potencia!G293,0,($L$1-1)*10) -> - | H10: =OFFSET(Potencia!H293,0,($L$1-1)*10) -> - | I10: =OFFSET(Potencia!I293,0,($L$1-1)*10) -> - | J10: =OFFSET(Potencia!J293,0,($L$1-1)*10) -> - | K10: =OFFSET(Potencia!K293,0,($L$1-1)*10) -> - | L10: =OFFSET(Potencia!L293,0,($L$1-1)*10) -> -
B11: =Potencia!B86 -> Hidráulica convencional y mixta | C11: =OFFSET(Potencia!C294,0,($L$1-1)*10) -> 254.763 | D11: =OFFSET(Potencia!D294,0,($L$1-1)*10) -> 254.763 | E11: =OFFSET(Potencia!E294,0,($L$1-1)*10) -> 254.763 | F11: =OFFSET(Potencia!F294,0,($L$1-1)*10) -> 254.775 | G11: =OFFSET(Potencia!G294,0,($L$1-1)*10) -> 254.775 | H11: =OFFSET(Potencia!H294,0,($L$1-1)*10) -> 254.775 | I11: =OFFSET(Potencia!I294,0,($L$1-1)*10) -> - | J11: =OFFSET(Potencia!J294,0,($L$1-1)*10) -> - | K11: =OFFSET(Potencia!K294,0,($L$1-1)*10) -> - | L11: =OFFSET(Potencia!L294,0,($L$1-1)*10) -> -
B12: =Potencia!B87 -> Nuclear | C12: =OFFSET(Potencia!C295,0,($L$1-1)*10) -> - | D12: =OFFSET(Potencia!D295,0,($L$1-1)*10) -> - | E12: =OFFSET(Potencia!E295,0,($L$1-1)*10) -> - | F12: =OFFSET(Potencia!F295,0,($L$1-1)*10) -> - | G12: =OFFSET(Potencia!G295,0,($L$1-1)*10) -> - | H12: =OFFSET(Potencia!H295,0,($L$1-1)*10) -> - | I12: =OFFSET(Potencia!I295,0,($L$1-1)*10) -> - | J12: =OFFSET(Potencia!J295,0,($L$1-1)*10) -> - | K12: =OFFSET(Potencia!K295,0,($L$1-1)*10) -> - | L12: =OFFSET(Potencia!L295,0,($L$1-1)*10) -> -
B13: =Potencia!B88 -> Carbón | C13: =OFFSET(Potencia!C296,0,($L$1-1)*10) -> - | D13: =OFFSET(Potencia!D296,0,($L$1-1)*10) -> - | E13: =OFFSET(Potencia!E296,0,($L$1-1)*10) -> - | F13: =OFFSET(Potencia!F296,0,($L$1-1)*10) -> - | G13: =OFFSET(Potencia!G296,0,($L$1-1)*10) -> - | H13: =OFFSET(Potencia!H296,0,($L$1-1)*10) -> - | I13: =OFFSET(Potencia!I296,0,($L$1-1)*10) -> - | J13: =OFFSET(Potencia!J296,0,($L$1-1)*10) -> - | K13: =OFFSET(Potencia!K296,0,($L$1-1)*10) -> - | L13: =OFFSET(Potencia!L296,0,($L$1-1)*10) -> -
B14: =Potencia!B89 -> Fuel + Gas | C14: =OFFSET(Potencia!C297,0,($L$1-1)*10) -> - | D14: =OFFSET(Potencia!D297,0,($L$1-1)*10) -> - | E14: =OFFSET(Potencia!E297,0,($L$1-1)*10) -> - | F14: =OFFSET(Potencia!F297,0,($L$1-1)*10) -> - | G14: =OFFSET(Potencia!G297,0,($L$1-1)*10) -> - | H14: =OFFSET(Potencia!H297,0,($L$1-1)*10) -> - | I14: =OFFSET(Potencia!I297,0,($L$1-1)*10) -> - | J14: =OFFSET(Potencia!J297,0,($L$1-1)*10) -> - | K14: =OFFSET(Potencia!K297,0,($L$1-1)*10) -> - | L14: =OFFSET(Potencia!L297,0,($L$1-1)*10) -> -
B15: =Potencia!B90 -> Ciclo combinado | C15: =OFFSET(Potencia!C298,0,($L$1-1)*10) -> 1222.32 | D15: =OFFSET(Potencia!D298,0,($L$1-1)*10) -> 1222.32 | E15: =OFFSET(Potencia!E298,0,($L$1-1)*10) -> 1222.32 | F15: =OFFSET(Potencia!F298,0,($L$1-1)*10) -> 1222.32 | G15: =OFFSET(Potencia!G298,0,($L$1-1)*10) -> 1222.32 | H15: =OFFSET(Potencia!H298,0,($L$1-1)*10) -> 1222.32 | I15: =OFFSET(Potencia!I298,0,($L$1-1)*10) -> - | J15: =OFFSET(Potencia!J298,0,($L$1-1)*10) -> - | K15: =OFFSET(Potencia!K298,0,($L$1-1)*10) -> - | L15: =OFFSET(Potencia!L298,0,($L$1-1)*10) -> -
B16: =Potencia!B91 -> Eólica | C16: =OFFSET(Potencia!C299,0,($L$1-1)*10) -> 985.52375 | D16: =OFFSET(Potencia!D299,0,($L$1-1)*10) -> 995.15875 | E16: =OFFSET(Potencia!E299,0,($L$1-1)*10) -> 995.42875 | F16: =OFFSET(Potencia!F299,0,($L$1-1)*10) -> 995.427 | G16: =OFFSET(Potencia!G299,0,($L$1-1)*10) -> 1098.437 | H16: =OFFSET(Potencia!H299,0,($L$1-1)*10) -> 1098.437 | I16: =OFFSET(Potencia!I299,0,($L$1-1)*10) -> - | J16: =OFFSET(Potencia!J299,0,($L$1-1)*10) -> - | K16: =OFFSET(Potencia!K299,0,($L$1-1)*10) -> - | L16: =OFFSET(Potencia!L299,0,($L$1-1)*10) -> -
B17: =Potencia!B92 -> Solar fotovoltaica | C17: =OFFSET(Potencia!C300,0,($L$1-1)*10) -> 160.61975 | D17: =OFFSET(Potencia!D300,0,($L$1-1)*10) -> 160.85659 | E17: =OFFSET(Potencia!E300,0,($L$1-1)*10) -> 160.84151 | F17: =OFFSET(Potencia!F300,0,($L$1-1)*10) -> 161.99472 | G17: =OFFSET(Potencia!G300,0,($L$1-1)*10) -> 161.99222 | H17: =OFFSET(Potencia!H300,0,($L$1-1)*10) -> 161.99222 | I17: =OFFSET(Potencia!I300,0,($L$1-1)*10) -> - | J17: =OFFSET(Potencia!J300,0,($L$1-1)*10) -> - | K17: =OFFSET(Potencia!K300,0,($L$1-1)*10) -> - | L17: =OFFSET(Potencia!L300,0,($L$1-1)*10) -> -
B18: =Potencia!B93 -> Solar térmica | C18: =OFFSET(Potencia!C301,0,($L$1-1)*10) -> - | D18: =OFFSET(Potencia!D301,0,($L$1-1)*10) -> - | E18: =OFFSET(Potencia!E301,0,($L$1-1)*10) -> - | F18: =OFFSET(Potencia!F301,0,($L$1-1)*10) -> - | G18: =OFFSET(Potencia!G301,0,($L$1-1)*10) -> - | H18: =OFFSET(Potencia!H301,0,($L$1-1)*10) -> - | I18: =OFFSET(Potencia!I301,0,($L$1-1)*10) -> - | J18: =OFFSET(Potencia!J301,0,($L$1-1)*10) -> - | K18: =OFFSET(Potencia!K301,0,($L$1-1)*10) -> - | L18: =OFFSET(Potencia!L301,0,($L$1-1)*10) -> -
B19: Otras renovables (1) | C19: =OFFSET(Potencia!C302,0,($L$1-1)*10) -> 49.011 | D19: =OFFSET(Potencia!D302,0,($L$1-1)*10) -> 49.011 | E19: =OFFSET(Potencia!E302,0,($L$1-1)*10) -> 50.111 | F19: =OFFSET(Potencia!F302,0,($L$1-1)*10) -> 50.111 | G19: =OFFSET(Potencia!G302,0,($L$1-1)*10) -> 52.111 | H19: =OFFSET(Potencia!H302,0,($L$1-1)*10) -> 52.111 | I19: =OFFSET(Potencia!I302,0,($L$1-1)*10) -> - | J19: =OFFSET(Potencia!J302,0,($L$1-1)*10) -> - | K19: =OFFSET(Potencia!K302,0,($L$1-1)*10) -> - | L19: =OFFSET(Potencia!L302,0,($L$1-1)*10) -> -
B20: Cogeneración | C20: =OFFSET(Potencia!C303,0,($L$1-1)*10) -> 166.5035 | D20: =OFFSET(Potencia!D303,0,($L$1-1)*10) -> 159.4395 | E20: =OFFSET(Potencia!E303,0,($L$1-1)*10) -> 156.5965 | F20: =OFFSET(Potencia!F303,0,($L$1-1)*10) -> 147.5315 | G20: =OFFSET(Potencia!G303,0,($L$1-1)*10) -> 141.4715 | H20: =OFFSET(Potencia!H303,0,($L$1-1)*10) -> 141.4715 | I20: =OFFSET(Potencia!I303,0,($L$1-1)*10) -> - | J20: =OFFSET(Potencia!J303,0,($L$1-1)*10) -> - | K20: =OFFSET(Potencia!K303,0,($L$1-1)*10) -> - | L20: =OFFSET(Potencia!L303,0,($L$1-1)*10) -> -
B21: Residuos no renovables | C21: =OFFSET(Potencia!C304,0,($L$1-1)*10) -> - | D21: =OFFSET(Potencia!D304,0,($L$1-1)*10) -> - | E21: =OFFSET(Potencia!E304,0,($L$1-1)*10) -> - | F21: =OFFSET(Potencia!F304,0,($L$1-1)*10) -> - | G21: =OFFSET(Potencia!G304,0,($L$1-1)*10) -> - | H21: =OFFSET(Potencia!H304,0,($L$1-1)*10) -> - | I21: =OFFSET(Potencia!I304,0,($L$1-1)*10) -> - | J21: =OFFSET(Potencia!J304,0,($L$1-1)*10) -> - | K21: =OFFSET(Potencia!K304,0,($L$1-1)*10) -> - | L21: =OFFSET(Potencia!L304,0,($L$1-1)*10) -> -
B22: Residuos renovables | C22: =OFFSET(Potencia!C305,0,($L$1-1)*10) -> - | D22: =OFFSET(Potencia!D305,0,($L$1-1)*10) -> - | E22: =OFFSET(Potencia!E305,0,($L$1-1)*10) -> - | F22: =OFFSET(Potencia!F305,0,($L$1-1)*10) -> - | G22: =OFFSET(Potencia!G305,0,($L$1-1)*10) -> - | H22: =OFFSET(Potencia!H305,0,($L$1-1)*10) -> - | I22: =OFFSET(Potencia!I305,0,($L$1-1)*10) -> - | J22: =OFFSET(Potencia!J305,0,($L$1-1)*10) -> - | K22: =OFFSET(Potencia!K305,0,($L$1-1)*10) -> - | L22: =OFFSET(Potencia!L305,0,($L$1-1)*10) -> -
B23: Total | C23: =OFFSET(Potencia!C306,0,($L$1-1)*10) -> 2838.741 | D23: =OFFSET(Potencia!D306,0,($L$1-1)*10) -> 2841.54884 | E23: =OFFSET(Potencia!E306,0,($L$1-1)*10) -> 2840.06076 | F23: =OFFSET(Potencia!F306,0,($L$1-1)*10) -> 2832.15922 | G23: =OFFSET(Potencia!G306,0,($L$1-1)*10) -> 2931.10672 | H23: =OFFSET(Potencia!H306,0,($L$1-1)*10) -> 2931.10672 | I23: =OFFSET(Potencia!I306,0,($L$1-1)*10) -> - | J23: =OFFSET(Potencia!J306,0,($L$1-1)*10) -> - | K23: =OFFSET(Potencia!K306,0,($L$1-1)*10) -> - | L23: =OFFSET(Potencia!L306,0,($L$1-1)*10) -> -
B24: (1) Otras renovables incluyen biogás, biomasa, hidráulica marina y geotérmica.
B25: Datos a 31 de diciembre.
B26: =IF(L1=1,IF(MONTH(FACT)=1,"",(CONCATENATE("(*) Para el año ",YEAR(FACT), " datos a ",TEXT(FACT-30,"mmmm")," de ",YEAR(FACT),"."))),"") -> (*) Para el año 2020 datos a abril de 2020.
B30: =IF(L1=2,IF(MONTH(FACT)=1,"",(CONCATENATE("(*) Para el año ",YEAR(FACT), " datos a ",TEXT(FACT-30,"mmmm")," de ",YEAR(FACT),"."))),"") -> 

Sheet Potencia País Vasco
L1: 1
J5: Sistema / C.Autónoma
J6: Periodo
C8: =OFFSET(Potencia!C308,0,($L$1-1)*10) -> 2015 | D8: =OFFSET(Potencia!D308,0,($L$1-1)*10) -> 2016 | E8: =OFFSET(Potencia!E308,0,($L$1-1)*10) -> 2017 | F8: =OFFSET(Potencia!F308,0,($L$1-1)*10) -> 2018 | G8: =OFFSET(Potencia!G308,0,($L$1-1)*10) -> 2019 | H8: =OFFSET(Potencia!H308,0,($L$1-1)*10) -> 2020 | I8: =OFFSET(Potencia!I308,0,($L$1-1)*10) -> 2021 | J8: =OFFSET(Potencia!J308,0,($L$1-1)*10) -> 2022 | K8: =OFFSET(Potencia!K308,0,($L$1-1)*10) -> 2023 | L8: =OFFSET(Potencia!L308,0,($L$1-1)*10) -> 2024
B10: =Potencia!B85 -> Bombeo puro | C10: =OFFSET(Potencia!C309,0,($L$1-1)*10) -> - | D10: =OFFSET(Potencia!D309,0,($L$1-1)*10) -> - | E10: =OFFSET(Potencia!E309,0,($L$1-1)*10) -> - | F10: =OFFSET(Potencia!F309,0,($L$1-1)*10) -> - | G10: =OFFSET(Potencia!G309,0,($L$1-1)*10) -> - | H10: =OFFSET(Potencia!H309,0,($L$1-1)*10) -> - | I10: =OFFSET(Potencia!I309,0,($L$1-1)*10) -> - | J10: =OFFSET(Potencia!J309,0,($L$1-1)*10) -> - | K10: =OFFSET(Potencia!K309,0,($L$1-1)*10) -> - | L10: =OFFSET(Potencia!L309,0,($L$1-1)*10) -> -
B11: =Potencia!B86 -> Hidráulica convencional y mixta | C11: =OFFSET(Potencia!C310,0,($L$1-1)*10) -> 170.1365 | D11: =OFFSET(Potencia!D310,0,($L$1-1)*10) -> 170.1365 | E11: =OFFSET(Potencia!E310,0,($L$1-1)*10) -> 170.1365 | F11: =OFFSET(Potencia!F310,0,($L$1-1)*10) -> 170.1365 | G11: =OFFSET(Potencia!G310,0,($L$1-1)*10) -> 174.3515 | H11: =OFFSET(Potencia!H310,0,($L$1-1)*10) -> 174.3515 | I11: =OFFSET(Potencia!I310,0,($L$1-1)*10) -> - | J11: =OFFSET(Potencia!J310,0,($L$1-1)*10) -> - | K11: =OFFSET(Potencia!K310,0,($L$1-1)*10) -> - | L11: =OFFSET(Potencia!L310,0,($L$1-1)*10) -> -
B12: =Potencia!B87 -> Nuclear | C12: =OFFSET(Potencia!C311,0,($L$1-1)*10) -> - | D12: =OFFSET(Potencia!D311,0,($L$1-1)*10) -> - | E12: =OFFSET(Potencia!E311,0,($L$1-1)*10) -> - | F12: =OFFSET(Potencia!F311,0,($L$1-1)*10) -> - | G12: =OFFSET(Potencia!G311,0,($L$1-1)*10) -> - | H12: =OFFSET(Potencia!H311,0,($L$1-1)*10) -> - | I12: =OFFSET(Potencia!I311,0,($L$1-1)*10) -> - | J12: =OFFSET(Potencia!J311,0,($L$1-1)*10) -> - | K12: =OFFSET(Potencia!K311,0,($L$1-1)*10) -> - | L12: =OFFSET(Potencia!L311,0,($L$1-1)*10) -> -
B13: =Potencia!B88 -> Carbón | C13: =OFFSET(Potencia!C312,0,($L$1-1)*10) -> - | D13: =OFFSET(Potencia!D312,0,($L$1-1)*10) -> - | E13: =OFFSET(Potencia!E312,0,($L$1-1)*10) -> - | F13: =OFFSET(Potencia!F312,0,($L$1-1)*10) -> - | G13: =OFFSET(Potencia!G312,0,($L$1-1)*10) -> - | H13: =OFFSET(Potencia!H312,0,($L$1-1)*10) -> - | I13: =OFFSET(Potencia!I312,0,($L$1-1)*10) -> - | J13: =OFFSET(Potencia!J312,0,($L$1-1)*10) -> - | K13: =OFFSET(Potencia!K312,0,($L$1-1)*10) -> - | L13: =OFFSET(Potencia!L312,0,($L$1-1)*10) -> -
B14: =Potencia!B89 -> Fuel + Gas | C14: =OFFSET(Potencia!C313,0,($L$1-1)*10) -> - | D14: =OFFSET(Potencia!D313,0,($L$1-1)*10) -> - | E14: =OFFSET(Potencia!E313,0,($L$1-1)*10) -> - | F14: =OFFSET(Potencia!F313,0,($L$1-1)*10) -> - | G14: =OFFSET(Potencia!G313,0,($L$1-1)*10) -> - | H14: =OFFSET(Potencia!H313,0,($L$1-1)*10) -> - | I14: =OFFSET(Potencia!I313,0,($L$1-1)*10) -> - | J14: =OFFSET(Potencia!J313,0,($L$1-1)*10) -> - | K14: =OFFSET(Potencia!K313,0,($L$1-1)*10) -> - | L14: =OFFSET(Potencia!L313,0,($L$1-1)*10) -> -
B15: =Potencia!B90 -> Ciclo combinado | C15: =OFFSET(Potencia!C314,0,($L$1-1)*10) -> 1968.07 | D15: =OFFSET(Potencia!D314,0,($L$1-1)*10) -> 1968.07 | E15: =OFFSET(Potencia!E314,0,($L$1-1)*10) -> 1968.07 | F15: =OFFSET(Potencia!F314,0,($L$1-1)*10) -> 1968.07 | G15: =OFFSET(Potencia!G314,0,($L$1-1)*10) -> 1968.07 | H15: =OFFSET(Potencia!H314,0,($L$1-1)*10) -> 1968.07 | I15: =OFFSET(Potencia!I314,0,($L$1-1)*10) -> - | J15: =OFFSET(Potencia!J314,0,($L$1-1)*10) -> - | K15: =OFFSET(Potencia!K314,0,($L$1-1)*10) -> - | L15: =OFFSET(Potencia!L314,0,($L$1-1)*10) -> -
B16: =Potencia!B91 -> Eólica | C16: =OFFSET(Potencia!C315,0,($L$1-1)*10) -> 153.2852 | D16: =OFFSET(Potencia!D315,0,($L$1-1)*10) -> 153.3852 | E16: =OFFSET(Potencia!E315,0,($L$1-1)*10) -> 153.3838 | F16: =OFFSET(Potencia!F315,0,($L$1-1)*10) -> 153.3838 | G16: =OFFSET(Potencia!G315,0,($L$1-1)*10) -> 153.3838 | H16: =OFFSET(Potencia!H315,0,($L$1-1)*10) -> 153.3838 | I16: =OFFSET(Potencia!I315,0,($L$1-1)*10) -> - | J16: =OFFSET(Potencia!J315,0,($L$1-1)*10) -> - | K16: =OFFSET(Potencia!K315,0,($L$1-1)*10) -> - | L16: =OFFSET(Potencia!L315,0,($L$1-1)*10) -> -
B17: =Potencia!B92 -> Solar fotovoltaica | C17: =OFFSET(Potencia!C316,0,($L$1-1)*10) -> 26.70289 | D17: =OFFSET(Potencia!D316,0,($L$1-1)*10) -> 26.72889 | E17: =OFFSET(Potencia!E316,0,($L$1-1)*10) -> 26.69395 | F17: =OFFSET(Potencia!F316,0,($L$1-1)*10) -> 26.828555 | G17: =OFFSET(Potencia!G316,0,($L$1-1)*10) -> 50.898415 | H17: =OFFSET(Potencia!H316,0,($L$1-1)*10) -> 50.878415 | I17: =OFFSET(Potencia!I316,0,($L$1-1)*10) -> - | J17: =OFFSET(Potencia!J316,0,($L$1-1)*10) -> - | K17: =OFFSET(Potencia!K316,0,($L$1-1)*10) -> - | L17: =OFFSET(Potencia!L316,0,($L$1-1)*10) -> -
B18: =Potencia!B93 -> Solar térmica | C18: =OFFSET(Potencia!C317,0,($L$1-1)*10) -> - | D18: =OFFSET(Potencia!D317,0,($L$1-1)*10) -> - | E18: =OFFSET(Potencia!E317,0,($L$1-1)*10) -> - | F18: =OFFSET(Potencia!F317,0,($L$1-1)*10) -> - | G18: =OFFSET(Potencia!G317,0,($L$1-1)*10) -> - | H18: =OFFSET(Potencia!H317,0,($L$1-1)*10) -> - | I18: =OFFSET(Potencia!I317,0,($L$1-1)*10) -> - | J18: =OFFSET(Potencia!J317,0,($L$1-1)*10) -> - | K18: =OFFSET(Potencia!K317,0,($L$1-1)*10) -> - | L18: =OFFSET(Potencia!L317,0,($L$1-1)*10) -> -
B19: Otras renovables (1) | C19: =OFFSET(Potencia!C318,0,($L$1-1)*10) -> 56.277 | D19: =OFFSET(Potencia!D318,0,($L$1-1)*10) -> 56.277 | E19: =OFFSET(Potencia!E318,0,($L$1-1)*10) -> 56.277 | F19: =OFFSET(Potencia!F318,0,($L$1-1)*10) -> 56.277 | G19: =OFFSET(Potencia!G318,0,($L$1-1)*10) -> 56.277 | H19: =OFFSET(Potencia!H318,0,($L$1-1)*10) -> 56.277 | I19: =OFFSET(Potencia!I318,0,($L$1-1)*10) -> - | J19: =OFFSET(Potencia!J318,0,($L$1-1)*10) -> - | K19: =OFFSET(Potencia!K318,0,($L$1-1)*10) -> - | L19: =OFFSET(Potencia!L318,0,($L$1-1)*10) -> -
B20: Cogeneración | C20: =OFFSET(Potencia!C319,0,($L$1-1)*10) -> 419.6965 | D20: =OFFSET(Potencia!D319,0,($L$1-1)*10) -> 417.8675 | E20: =OFFSET(Potencia!E319,0,($L$1-1)*10) -> 405.9125 | F20: =OFFSET(Potencia!F319,0,($L$1-1)*10) -> 404.3675 | G20: =OFFSET(Potencia!G319,0,($L$1-1)*10) -> 398.9375 | H20: =OFFSET(Potencia!H319,0,($L$1-1)*10) -> 398.9375 | I20: =OFFSET(Potencia!I319,0,($L$1-1)*10) -> - | J20: =OFFSET(Potencia!J319,0,($L$1-1)*10) -> - | K20: =OFFSET(Potencia!K319,0,($L$1-1)*10) -> - | L20: =OFFSET(Potencia!L319,0,($L$1-1)*10) -> -
B21: Residuos no renovables | C21: =OFFSET(Potencia!C320,0,($L$1-1)*10) -> 83.458 | D21: =OFFSET(Potencia!D320,0,($L$1-1)*10) -> 83.458 | E21: =OFFSET(Potencia!E320,0,($L$1-1)*10) -> 83.458 | F21: =OFFSET(Potencia!F320,0,($L$1-1)*10) -> 76.93 | G21: =OFFSET(Potencia!G320,0,($L$1-1)*10) -> 76.93 | H21: =OFFSET(Potencia!H320,0,($L$1-1)*10) -> 76.93 | I21: =OFFSET(Potencia!I320,0,($L$1-1)*10) -> - | J21: =OFFSET(Potencia!J320,0,($L$1-1)*10) -> - | K21: =OFFSET(Potencia!K320,0,($L$1-1)*10) -> - | L21: =OFFSET(Potencia!L320,0,($L$1-1)*10) -> -
B22: Residuos renovables | C22: =OFFSET(Potencia!C321,0,($L$1-1)*10) -> 49.75 | D22: =OFFSET(Potencia!D321,0,($L$1-1)*10) -> 49.75 | E22: =OFFSET(Potencia!E321,0,($L$1-1)*10) -> 49.75 | F22: =OFFSET(Potencia!F321,0,($L$1-1)*10) -> 49.75 | G22: =OFFSET(Potencia!G321,0,($L$1-1)*10) -> 49.75 | H22: =OFFSET(Potencia!H321,0,($L$1-1)*10) -> 49.75 | I22: =OFFSET(Potencia!I321,0,($L$1-1)*10) -> - | J22: =OFFSET(Potencia!J321,0,($L$1-1)*10) -> - | K22: =OFFSET(Potencia!K321,0,($L$1-1)*10) -> - | L22: =OFFSET(Potencia!L321,0,($L$1-1)*10) -> -
B23: Total | C23: =OFFSET(Potencia!C322,0,($L$1-1)*10) -> 2927.37609 | D23: =OFFSET(Potencia!D322,0,($L$1-1)*10) -> 2925.67309 | E23: =OFFSET(Potencia!E322,0,($L$1-1)*10) -> 2913.68175 | F23: =OFFSET(Potencia!F322,0,($L$1-1)*10) -> 2905.743355 | G23: =OFFSET(Potencia!G322,0,($L$1-1)*10) -> 2928.598215 | H23: =OFFSET(Potencia!H322,0,($L$1-1)*10) -> 2928.578215 | I23: =OFFSET(Potencia!I322,0,($L$1-1)*10) -> - | J23: =OFFSET(Potencia!J322,0,($L$1-1)*10) -> - | K23: =OFFSET(Potencia!K322,0,($L$1-1)*10) -> - | L23: =OFFSET(Potencia!L322,0,($L$1-1)*10) -> -
B24: (1) Otras renovables incluyen biogás, biomasa, hidráulica marina y geotérmica.
B25: Datos a 31 de diciembre.
B26: =IF(L1=1,IF(MONTH(FACT)=1,"",(CONCATENATE("(*) Para el año ",YEAR(FACT), " datos a ",TEXT(FACT-30,"mmmm")," de ",YEAR(FACT),"."))),"") -> (*) Para el año 2020 datos a abril de 2020.
B30: =IF(L1=2,IF(MONTH(FACT)=1,"",(CONCATENATE("(*) Para el año ",YEAR(FACT), " datos a ",TEXT(FACT-30,"mmmm")," de ",YEAR(FACT),"."))),"") -> 

Sheet Potencia (hidden)
B2: Potencia instalada peninsular (MW) | C2: 1990 | D2: 1991 | E2: 1992 | F2: 1993 | G2: 1994 | H2: 1995 | I2: 1996 | J2: 1997 | K2: 1998 | L2: 1999 | M2: 2000 | N2: 2001 | O2: 2002 | P2: 2003 | Q2: 2004 | R2: 2005 | S2: 2006 | T2: 2007 | U2: 2008 | V2: 2009 | W2: 2010 | X2: 2011 | Y2: 2012 | Z2: 2013 | AA2: 2014 | AB2: 2015 | AC2: 2016 | AD2: 2017 | AE2: 2018 | AF2: 2019 | AG2: 2020 | AH2: 2021 | AI2: 2022 | AJ2: 2023 | AK2: 2024 | AL2: 2025 | AM2: 2026 | AN2: 2027 | AO2: 2028 | AP2: 2029
B3: Hidráulica convencional y mixta | C3: 13792.61 | D3: 13795.26 | E3: 13848.85 | F3: 13848.85 | G3: 14063.97 | H3: 14088.07 | I3: 14143.08 | J3: 14143.08 | K3: 14143.08 | L3: 14299.34 | M3: 14299.34 | N3: 14301.27 | O3: 14304.68 | P3: 14462.1 | Q3: 14492.17 | R3: 14534.06 | S3: 14566.41 | T3: 14579.41 | U3: 14635.51 | V3: 14635.51 | W3: 14655.31 | X3: 14667.21 | Y3: 14886.65 | Z3: 14889.69 | AA3: 14895.92 | AB3: 17024.27663 | AC3: 17028.37663 | AD3: 17025.53963 | AE3: 17044.35123 | AF3: 17082.75323 | AG3: 17082.75323 | AH3: - | AI3: - | AJ3: - | AK3: - | AL3: - | AM3: - | AN3: - | AO3: - | AP3: -
B4: Bombeo puro | C4: 2428.44 | D4: 2428.44 | E4: 2428.44 | F4: 2428.44 | G4: 2428.44 | H4: 2428.44 | I4: 2428.44 | J4: 2428.44 | K4: 2428.44 | L4: 2428.44 | M4: 2428.44 | N4: 2428.44 | O4: 2428.44 | P4: 2428.44 | Q4: 2428.44 | R4: 2428.44 | S4: 2450.94 | T4: 2450.94 | U4: 2450.94 | V4: 2450.94 | W4: 2450.94 | X4: 2450.94 | Y4: 2450.94 | Z4: 2450.94 | AA4: 2450.94 | AB4: 3328.89 | AC4: 3328.89 | AD4: 3328.89 | AE4: 3328.89 | AF4: 3328.89 | AG4: 3328.89 | AH4: - | AI4: - | AJ4: - | AK4: - | AL4: - | AM4: - | AN4: - | AO4: - | AP4: -
B5: Nuclear | C5: 7329.28 | D5: 7343.28 | E5: 7391 | F5: 7391 | G5: 7391 | H5: 7391 | I5: 7391 | J5: 7559.1 | K5: 7606.09 | L5: 7650.09 | M5: 7677.39 | N5: 7694.1 | O5: 7694.1 | P5: 7614.31 | Q5: 7590.15 | R5: 7597.28 | S5: 7455.58 | T5: 7455.58 | U5: 7455.58 | V5: 7455.58 | W5: 7515.37 | X5: 7572.58 | Y5: 7572.58 | Z5: 7572.58 | AA5: 7572.58 | AB5: 7572.58 | AC5: 7572.58 | AD5: 7117.29 | AE5: 7117.29 | AF5: 7117.29 | AG5: 7117.29 | AH5: - | AI5: - | AJ5: - | AK5: - | AL5: - | AM5: - | AN5: - | AO5: - | AP5: -
B6: Carbón | C6: 10243 | D6: 10310 | E6: 10310 | F6: 10310 | G6: 10310 | H6: 10310 | I6: 10310 | J6: 10859.9 | K6: 10859.9 | L6: 10859.9 | M6: 11048.67 | N6: 11058.88 | O6: 11051.18 | P6: 11053.22 | Q6: 11036.69 | R6: 10909.96 | S6: 10924.3 | T6: 10857.65 | U6: 10856.4 | V6: 10856.4 | W6: 10873.95 | X6: 11103.39 | Y6: 10595.47 | Z6: 10610.37 | AA6: 10468.02 | AB6: 10468.02 | AC6: 9535.87 | AD6: 9535.87 | AE6: 9561.885 | AF6: =9561.885-346.84 -> 9215.045 | AG6: =9561.885-346.84 -> 9215.045 | AH6: - | AI6: - | AJ6: - | AK6: - | AL6: - | AM6: - | AN6: - | AO6: - | AP6: -
B7: Fuel + Gas | C7: 7259.35 | D7: 7247.22 | E7: 7247.22 | F7: 7247.22 | G7: 7247.22 | H7: 7247.22 | I7: 7521.22 | J7: 7521.22 | K7: 7521.22 | L7: 7521.22 | M7: 7521.22 | N7: 7521.22 | O7: 7220.05 | P7: 6655.28 | Q7: 6663.92 | R7: 6369.92 | S7: 6369.92 | T7: 4521.99 | U7: 4179.99 | V7: 2826.07 | W7: 2144.79 | X7: 806.52 | Y7: 505.52 | Z7: 505.52 | AA7: 505.52 | AB7: - | AC7: - | AD7: - | AE7: - | AF7: - | AG7: - | AH7: - | AI7: - | AJ7: - | AK7: - | AL7: - | AM7: - | AN7: - | AO7: - | AP7: -
B8: Ciclo combinado | C8: - | D8: - | E8: - | F8: - | G8: - | H8: - | I8: - | J8: - | K8: - | L8: - | M8: - | N8: - | O8: 2619.47 | P8: 4123.13 | Q8: 8062.08 | R8: 11992.37 | S8: 15304.92 | T8: 20672.21 | U8: 21374.12 | V8: 22750.11 | W8: 24844.38 | X8: 24911.73 | Y8: 24947.71 | Z8: 24947.71 | AA8: 24947.71 | AB8: 24947.71 | AC8: 24947.71 | AD8: 24947.71 | AE8: 24561.86 | AF8: =24947.71-385.85 -> 24561.86 | AG8: =24947.71-385.85 -> 24561.86 | AH8: - | AI8: - | AJ8: - | AK8: - | AL8: - | AM8: - | AN8: - | AO8: - | AP8: -
B9: Resto hidráulica | C9: 594.219 | D9: 644.233 | E9: 727.772 | F9: 793.655 | G9: 897.169 | H9: 1123.8878 | I9: 1186.0118 | J9: 1233.37395 | K9: 1279.30795 | L9: 1331.88595 | M9: 1390.68045 | N9: 1473.16295 | O9: 1512.33135 | P9: 1567.29655 | Q9: 1629.90555 | R9: 1694.91855 | S9: 1796.36505 | T9: 1869.61065 | U9: 1977.27565 | V9: 2020.30665 | W9: 2030.95898 | X9: 2036.42078 | Y9: 2039.92878 | Z9: 2094.92178 | AA9: 2094.92178 | AB9: - | AC9: - | AD9: - | AE9: - | AF9: - | AG9: - | AH9: - | AI9: - | AJ9: - | AK9: - | AL9: - | AM9: - | AN9: - | AO9: - | AP9: -
B10: Eólica | C10: 0.54 | D10: 0.54 | E10: 30.44 | F10: 33.63 | G10: 38.91 | H10: 96.56 | I10: 146.36 | J10: 375.445 | K10: 633.775 | L10: 1021.942 | M10: 1828.922 | N10: 2816.932 | O10: 4390.9845 | P10: 5816.0565 | Q10: 7777.1265 | R10: 9654.0225 | S10: 11285.7097 | T10: 13525.7897 | U10: 15992.8267 | V10: 18714.4417 | W10: 19561.05345 | X10: 21018.08745 | Y10: 22608.70205 | Z10: 22852.97405 | AA10: 22871.44455 | AB10: 22798.20415 | AC10: 22845.65715 | AD10: 22871.21975 | AE10: 23124.038 | AF10: 25365.247 | AG10: 25467.93236 | AH10: - | AI10: - | AJ10: - | AK10: - | AL10: - | AM10: - | AN10: - | AO10: - | AP10: -
B11: Solar fotovoltaica | C11: 0.1 | D11: 0.1 | E11: 0.1 | F11: 0.1 | G11: 1.1 | H11: 1.1 | I11: 1.1 | J11: 1.137 | K11: 1.159 | L11: 1.22016 | M11: 1.71574 | N11: 2.17681 | O11: 4.8429 | P11: 11.37563 | Q11: 20.92546 | R11: 42.9462 | S11: 118.85114 | T11: 594.27135 | U11: 3205.19975 | V11: 3243.20763 | W11: 3645.21391 | X11: 4032.05946 | Y11: 4293.59123 | Z11: 4396.50017 | AA11: 4402.66461 | AB11: 4432.202721 | AC11: 4436.188661 | AD11: 4438.075035 | AE11: 4463.78114 | AF11: 8664.56498 | AG11: 8897.73687 | AH11: - | AI11: - | AJ11: - | AK11: - | AL11: - | AM11: - | AN11: - | AO11: - | AP11: -
B12: Solar térmica | C12: - | D12: - | E12: - | F12: - | G12: - | H12: - | I12: - | J12: - | K12: - | L12: - | M12: - | N12: - | O12: - | P12: - | Q12: - | R12: - | S12: 11.02 | T12: 11.02 | U12: 60.92 | V12: 232.22 | W12: 531.92 | X12: 998.52 | Y12: 1949.92 | Z12: 2299.4275 | AA12: 2299.4275 | AB12: 2304.013 | AC12: 2304.013 | AD12: 2304.013 | AE12: 2304.013 | AF12: 2304.013 | AG12: 2304.013 | AH12: - | AI12: - | AJ12: - | AK12: - | AL12: - | AM12: - | AN12: - | AO12: - | AP12: -
B13: Térmica renovable/Otras renovables | C13: - | D13: - | E13: 15.46 | F13: 20.96 | G13: 20.96 | H13: 62.135 | I13: 80.031 | J13: 101.988 | K13: 114.73 | L13: 128.546 | M13: 181.302 | N13: 229.338 | O13: 341.2925 | P13: 433.4435 | Q13: 451.0785 | R13: 478.6745 | S13: 554.4285 | T13: 572.66891 | U13: 612.49491 | V13: 740.10491 | W13: 778.78391 | X13: 882.91991 | Y13: 968.43241 | Z13: 944.44241 | AA13: 981.96541 | AB13: 876.268 | AC13: 864.575 | AD13: 866.301 | AE13: 870.972 | AF13: 1070.641 | AG13: 1070.141 | AH13: - | AI13: - | AJ13: - | AK13: - | AL13: - | AM13: - | AN13: - | AO13: - | AP13: -
B14: Térmica no renovable/Cogeneración y resto/Cogeneración | C14: 159.155 | D14: 225.507 | E14: 334.254 | F14: 534.612 | G14: 682.436 | H14: 1162.9033 | I14: 1834.3803 | J14: 2336.5797 | K14: 2956.4977 | L14: 3610.6447 | M14: 4216.4217 | N14: 4969.2517 | O14: 5377.3337 | P14: 5731.7867 | Q14: 5987.4317 | R14: 6162.5017 | S14: 6370.5047 | T14: 6482.9881 | U14: 6736.6391 | V14: 6968.122 | W14: 7098.0842 | X14: 7179.0717 | Y14: 7117.1502 | Z14: 7057.8807 | AA14: 7047.8022 | AB14: 6135.83061 | AC14: 5954.55761 | AD14: 5790.47261 | AE14: 5716.6395 | AF14: 5666.4455 | AG14: 5661.7895 | AH14: - | AI14: - | AJ14: - | AK14: - | AL14: - | AM14: - | AN14: - | AO14: - | AP14: -
B15: Residuos no renovables | C15: - | D15: - | E15: - | F15: - | G15: - | H15: - | I15: - | J15: - | K15: - | L15: - | M15: - | N15: - | O15: - | P15: - | Q15: - | R15: - | S15: - | T15: - | U15: - | V15: - | W15: - | X15: - | Y15: - | Z15: - | AA15: - | AB15: 469.5875 | AC15: 457.6555 | AD15: 457.6555 | AE15: 451.1275 | AF15: 451.1275 | AG15: 451.1275 | AH15: - | AI15: - | AJ15: - | AK15: - | AL15: - | AM15: - | AN15: - | AO15: - | AP15: -
B16: Residuos renovables | C16: - | D16: - | E16: - | F16: - | G16: - | H16: - | I16: - | J16: - | K16: - | L16: - | M16: - | N16: - | O16: - | P16: - | Q16: - | R16: - | S16: - | T16: - | U16: - | V16: - | W16: - | X16: - | Y16: - | Z16: - | AA16: - | AB16: 121.7915 | AC16: 121.7915 | AD16: 121.7915 | AE16: 121.7915 | AF16: 121.7915 | AG16: 121.7915 | AH16: - | AI16: - | AJ16: - | AK16: - | AL16: - | AM16: - | AN16: - | AO16: - | AP16: -
B17: Total | C17: =SUM(C3:C16) -> 41806.694 | D17: 41994.58 | E17: 42333.536 | F17: 42608.467 | G17: 43081.205 | H17: 43911.3161 | I17: 45041.6231 | J17: 46560.26365 | K17: 47544.19965 | L17: 48853.22881 | M17: 50594.10189 | N17: 52494.77146 | O17: 56944.70495 | P17: 59896.43888 | Q17: 66139.91771 | R17: 71865.09345 | S17: 77208.94909 | T17: 83594.12871 | U17: 89537.89611 | V17: 92893.01289 | W17: 96130.75445 | X17: 97659.4493 | Y17: 99936.59467 | Z17: 100622.9566 | AA17: 100538.9161 | AB17: 100479.3741 | AC17: 99397.86505 | AD17: 98804.82803 | AE17: 98666.63887 | AF17: =SUM(AF3:AF16) -> 104949.6687 | AG17: =SUM(AG3:AG16) -> 105280.37 | AH17: - | AI17: - | AJ17: - | AK17: - | AL17: - | AM17: - | AN17: - | AO17: - | AP17: -
B19: Potencia instalada Islas Baleares (MW) | C19: 2006 | D19: 2007 | E19: 2008 | F19: 2009 | G19: 2010 | H19: 2011 | I19: 2012 | J19: 2013 | K19: 2014 | L19: 2015 | M19: 2016 | N19: 2017 | O19: 2018 | P19: 2019 | Q19: 2020 | R19: 2021 | S19: 2022 | T19: 2023 | U19: 2024 | V19: 2025
B20: Carbón | C20: 468.4 | D20: 468.4 | E20: 468.4 | F20: 468.4 | G20: 468.4 | H20: 468.4 | I20: 468.4 | J20: 468.4 | K20: 468.4 | L20: 468.4 | M20: 468.4 | N20: 468.4 | O20: 468.4 | P20: 468.4 | Q20: 241.2 | R20: - | S20: - | T20: - | U20: - | V20: -
B21: Motores diesel | C21: 175.6 | D21: 210.4 | E21: 203.3 | F21: 196.2 | G21: 196.2 | H21: 182 | I21: 182 | J21: 182 | K21: 182 | L21: 182 | M21: 182 | N21: 182 | O21: 182 | P21: =182-14.2*3 -> 139.4 | Q21: =182-14.2*3 -> 139.4 | R21: - | S21: - | T21: - | U21: - | V21: -
B22: Turbina de gas | C22: 541.9 | D22: 387.9 | E22: 460.8 | F22: 531.8 | G22: 533.4 | H22: 533.4 | I22: 557.4 | J22: 605.4 | K22: 605.4 | L22: 605.4 | M22: 605.4 | N22: 605.4 | O22: 605.4 | P22: 605.4 | Q22: 605.4 | R22: - | S22: - | T22: - | U22: - | V22: -
B23: Fuel + Gas | C23: =SUM(C21:C22) -> 717.5 | D23: 598.3 | E23: 664.1 | F23: 728 | G23: 729.6 | H23: 715.4 | I23: 739.4 | J23: 787.4 | K23: 787.4 | L23: =SUM(L21:L22) -> 787.4 | M23: =SUM(M21:M22) -> 787.4 | N23: 787.4 | O23: 787.4 | P23: =+P21+P22 -> 744.8 | Q23: =+Q21+Q22 -> 744.8 | R23: - | S23: - | T23: - | U23: - | V23: -
B24: Ciclo combinado | C24: 418.15 | D24: 643.45 | E24: 643.45 | F24: 793.65 | G24: 857.95 | H24: 857.95 | I24: 857.95 | J24: 857.95 | K24: 857.95 | L24: 857.95 | M24: 857.95 | N24: 857.95 | O24: 857.95 | P24: 857.95 | Q24: 857.95 | R24: - | S24: - | T24: - | U24: - | V24: -
B25: Generación auxiliar | C25: - | D25: - | E25: - | F25: - | G25: - | H25: - | I25: - | J25: - | K25: - | L25: - | M25: - | N25: - | O25: - | P25: - | Q25: - | R25: - | S25: - | T25: - | U25: - | V25: -
B26: Eólica | C26: 3.6763 | D26: 3.6763 | E26: 3.6763 | F26: 3.6763 | G26: 3.6763 | H26: 3.6763 | I26: 3.6763 | J26: 3.6763 | K26: 3.6763 | L26: 3.6475 | M26: 3.6475 | N26: 3.6475 | O26: 3.6375 | P26: 3.6375 | Q26: 3.6375 | R26: - | S26: - | T26: - | U26: - | V26: -
B27: Solar fotovoltaica | C27: 1.11289 | D27: 1.47669 | E27: 51.53754 | F27: 52.58454 | G27: 59.01353 | H27: 63.13208 | I27: 77.50613 | J27: 77.67493 | K27: 77.73383 | L27: 78.83146 | M27: 79.428215 | N27: 79.997085 | O27: 80.442745 | P27: 80.871015 | Q27: 80.871015 | R27: - | S27: - | T27: - | U27: - | V27: -
B28: Térmica renovable/Otras renovables | C28: - | D28: - | E28: - | F28: - | G28: - | H28: - | I28: 2.13 | J28: 2.13 | K28: 2.13 | L28: 2.13 | M28: 2.13 | N28: 2.13 | O28: 2.13 | P28: 2.13 | Q28: 2.13 | R28: - | S28: - | T28: - | U28: - | V28: -
B29: Térmica no renovable/Cogeneración y resto/Cogeneración | C29: 38.31 | D29: 39.168 | E29: 38.188 | F29: 40.402 | G29: 81.171 | H29: 82.171 | I29: 85.625 | J29: 85.625 | K29: 85.625 | L29: 10.487 | M29: 10.487 | N29: 10.487 | O29: 10.487 | P29: 10.487 | Q29: 10.487 | R29: - | S29: - | T29: - | U29: - | V29: -
B30: Residuos no renovables | C30: - | D30: - | E30: - | F30: - | G30: - | H30: - | I30: - | J30: - | K30: - | L30: 37.4 | M30: 37.4 | N30: 37.4 | O30: 37.4 | P30: 37.4 | Q30: 37.4 | R30: - | S30: - | T30: - | U30: - | V30: -
B31: Residuos renovables | C31: - | D31: - | E31: - | F31: - | G31: - | H31: - | I31: - | J31: - | K31: - | L31: 37.4 | M31: 37.4 | N31: 37.4 | O31: 37.4 | P31: 37.4 | Q31: 37.4 | R31: - | S31: - | T31: - | U31: - | V31: -
B32: Total | C32: =SUM(C20,C23:C30) -> 1647.14919 | D32: =SUM(D20,D23:D30) -> 1754.47099 | E32: 1869.35184 | F32: 2086.71284 | G32: 2199.81083 | H32: 2190.72938 | I32: 2234.68743 | J32: 2282.85623 | K32: 2282.91513 | L32: =SUM(L20,L23:L31) -> 2283.64596 | M32: =SUM(M20,M23:M31) -> 2284.242715 | N32: =SUM(N20,N23:N31) -> 2284.811585 | O32: =SUM(O20,O23:O31) -> 2285.247245 | P32: =SUM(P20,P23:P31) -> 2243.075515 | Q32: =SUM(Q20,Q23:Q31) -> 2015.875515 | R32: - | S32: - | T32: - | U32: - | V32: -
B34: Potencia instalada Islas Canarias (MW) | C34: 2006 | D34: 2007 | E34: 2008 | F34: 2009 | G34: 2010 | H34: 2011 | I34: 2012 | J34: 2013 | K34: 2014 | L34: 2015 | M34: 2016 | N34: 2017 | O34: 2018 | P34: 2019 | Q34: 2020 | R34: 2021 | S34: 2022 | T34: 2023 | U34: 2024 | V34: 2025
B35: Hidráulica | C35: 0.8 | D35: 0.8 | E35: 0.8 | F35: 0.8 | G35: 0.8 | H35: 0.8 | I35: 0.8 | J35: 0.8 | K35: 0.8 | L35: 2.02 | M35: 2.02 | N35: 2.02 | O35: 2.02 | P35: 2.02 | Q35: 2.02 | R35: - | S35: - | T35: - | U35: - | V35: -
B36: Motores diesel | C36: 476.73 | D36: 476.73 | E36: 476.73 | F36: 476.73 | G36: 476.73 | H36: 476.73 | I36: 476.73 | J36: 496.2 | K36: 495.92 | L36: 495.92 | M36: 495.92 | N36: 495.92 | O36: 495.92 | P36: 495.92 | Q36: 495.92 | R36: - | S36: - | T36: - | U36: - | V36: -
B37: Turbina de gas | C37: 520.17 | D37: 520.17 | E37: 520.17 | F37: 520.17 | G37: 520.17 | H37: 557.16 | I37: 557.16 | J37: 557.16 | K37: 557.16 | L37: 557.14 | M37: 557.14 | N37: 557.14 | O37: 557.14 | P37: 557.14 | Q37: 557.14 | R37: - | S37: - | T37: - | U37: - | V37: -
B38: Turbina de vapor | C38: 659.78 | D38: 659.78 | E38: 659.78 | F38: 659.78 | G38: 659.78 | H38: 659.78 | I38: 659.78 | J38: 482.64 | K38: 482.64 | L38: 482.64 | M38: 482.64 | N38: 482.64 | O38: 482.64 | P38: 482.64 | Q38: 482.64 | R38: - | S38: - | T38: - | U38: - | V38: -
B39: Fuel + Gas | C39: =SUM(C36:C38) -> 1656.68 | D39: =SUM(D36:D38) -> 1656.68 | E39: =SUM(E36:E38) -> 1656.68 | F39: 1656.68 | G39: 1656.68 | H39: 1693.67 | I39: 1693.67 | J39: 1536 | K39: 1535.72 | L39: 1535.7 | M39: 1535.7 | N39: =SUM(N36:N38) -> 1535.7 | O39: 1535.7 | P39: =SUM(P36:P38) -> 1535.7 | Q39: =SUM(Q36:Q38) -> 1535.7 | R39: - | S39: - | T39: - | U39: - | V39: -
B40: Ciclo combinado | C40: 635.2 | D40: 635.2 | E40: 635.2 | F40: 640.2 | G40: 870.6 | H40: 864.2 | I40: 864.2 | J40: 864.2 | K40: 864.2 | L40: 864.2 | M40: 864.2 | N40: 864.2 | O40: 864.2 | P40: 864.2 | Q40: 864.2 | R40: - | S40: - | T40: - | U40: - | V40: -
B41: Generación auxiliar | C41: 41.27 | D41: 41.35 | E41: 16.18 | F41: 16.1 | G41: - | H41: - | I41: - | J41: - | K41: - | L41: - | M41: - | N41: - | O41: - | P41: - | Q41: - | R41: - | S41: - | T41: - | U41: - | V41: -
B42: Hidroéolica | C42: - | D42: - | E42: - | F42: - | G42: - | H42: - | I42: - | J42: - | K42: 11.39 | L42: 11.39 | M42: 11.39 | N42: 11.39 | O42: 11.39 | P42: 11.39 | Q42: 11.39 | R42: - | S42: - | T42: - | U42: - | V42: -
B43: Resto hidráulica | C43: 0.463 | D43: 0.463 | E43: 0.463 | F43: 0.463 | G43: 0.463 | H43: 0.463 | I43: 0.463 | J43: 0.463 | K43: 0.463 | L43: - | M43: - | N43: - | O43: - | P43: - | Q43: - | R43: - | S43: - | T43: - | U43: - | V43: -
B44: Eólica | C44: 126.645 | D44: 134.955 | E44: 136.985 | F44: 142.585 | G44: 142.585 | H44: 145.135 | I44: 145.475 | J44: 152.59 | K44: 152.59 | L44: 152.055 | M44: 152.055 | N44: 206.9 | O44: 417.715 | P44: 430.315 | Q44: 430.315 | R44: - | S44: - | T44: - | U44: - | V44: -
B45: Solar fotovoltaica | C45: 5.40378 | D45: 22.22271 | E45: 93.75416 | F45: 95.70661 | G45: 125.09781 | H45: 138.04026 | I45: 161.15558 | J45: 164.19108 | K45: 165.24328 | L45: 167.18667 | M45: 167.19167 | N45: 167.25117 | O45: 167.34817 | P45: 167.107145 | Q45: 167.107145 | R45: - | S45: - | T45: - | U45: - | V45: -
B46: Térmica renovable/Otras renovables | C46: 38.2 | D46: 40.296 | E46: 41.568 | F46: 41.568 | G46: 41.568 | H46: 3.368 | I46: 3.368 | J46: 3.368 | K46: 3.368 | L46: 3.696 | M46: 3.696 | N46: 3.696 | O46: 3.696 | P46: 3.696 | Q46: 3.696 | R46: - | S46: - | T46: - | U46: - | V46: -
B47: Térmica no renovable/Cogeneración y resto/Cogeneración | C47: 33.268 | D47: 33.268 | E47: 33.268 | F47: 33.268 | G47: 33.268 | H47: 33.268 | I47: 33.268 | J47: 33.268 | K47: 33.268 | L47: - | M47: - | N47: - | O47: - | P47: - | Q47: - | R47: - | S47: - | T47: - | U47: - | V47: -
B48: Total | C48: =SUM(C35,C39:C47) -> 2537.92978 | D48: 2565.23471 | E48: 2614.89816 | F48: 2627.37061 | G48: 2871.06181 | H48: 2878.94426 | I48: 2902.39958 | J48: 2754.88008 | K48: 2767.04228 | L48: 2736.24767 | M48: 2736.25267 | N48: =SUM(N35,N39:N47) -> 2791.15717 | O48: =SUM(O35,O39:O47) -> 3002.06917 | P48: =SUM(P35,P39:P47) -> 3014.428145 | Q48: =SUM(Q35,Q39:Q47) -> 3014.428145 | R48: - | S48: - | T48: - | U48: - | V48: -
B50: Potencia instalada Ceuta (MW) | C50: 2006 | D50: 2007 | E50: 2008 | F50: 2009 | G50: 2010 | H50: 2011 | I50: 2012 | J50: 2013 | K50: 2014 | L50: 2015 | M50: 2016 | N50: 2017 | O50: 2018 | P50: 2019 | Q50: 2020 | R50: 2021 | S50: 2022 | T50: 2023 | U50: 2024 | V50: 2025
B51: Motores diesel | C51: 53.3 | D51: 64.48 | E51: 65.72 | F51: 65.72 | G51: 77.52 | H51: 77.52 | I51: 77.52 | J51: 77.52 | K51: 77.52 | L51: 77.52 | M51: 77.52 | N51: 77.52 | O51: 77.52 | P51: 77.52 | Q51: 77.52 | R51: - | S51: - | T51: - | U51: - | V51: -
B52: Turbina de gas | C52: - | D52: - | E52: - | F52: - | G52: 13.3 | H52: 13.3 | I52: 13.3 | J52: 13.3 | K52: 13.3 | L52: 13.3 | M52: 13.3 | N52: 13.3 | O52: 13.3 | P52: 13.3 | Q52: 13.3 | R52: - | S52: - | T52: - | U52: - | V52: -
B53: Fuel + Gas | C53: =SUM(C51:C52) -> 53.3 | D53: =SUM(D51:D52) -> 64.48 | E53: 65.72 | F53: 65.72 | G53: 90.82 | H53: 90.82 | I53: 90.82 | J53: 90.82 | K53: 90.82 | L53: 90.82 | M53: 90.82 | N53: =SUM(N51:N52) -> 90.82 | O53: 90.82 | P53: =SUM(P51:P52) -> 90.82 | Q53: 90.82 | R53: - | S53: - | T53: - | U53: - | V53: -
B54: Total | C54: =C53 -> 53.3 | D54: =D53 -> 64.48 | E54: 65.72 | F54: 65.72 | G54: 90.82 | H54: 90.82 | I54: 90.82 | J54: 90.82 | K54: 90.82 | L54: 90.82 | M54: 90.82 | N54: =N53 -> 90.82 | O54: 90.82 | P54: =P53 -> 90.82 | Q54: =Q53 -> 90.82 | R54: =R53 -> - | S54: - | T54: - | U54: - | V54: -
B56: Potencia instalada Melilla (MW) | C56: 2006 | D56: 2007 | E56: 2008 | F56: 2009 | G56: 2010 | H56: 2011 | I56: 2012 | J56: 2013 | K56: 2014 | L56: 2015 | M56: 2016 | N56: 2017 | O56: 2018 | P56: 2019 | Q56: 2020 | R56: 2021 | S56: 2022 | T56: 2023 | U56: 2024 | V56: 2025
B57: Motores diesel | C57: 49.81 | D57: 64.51 | E57: 64.64 | F57: 64.64 | G57: 64.64 | H57: 64.64 | I57: 64.64 | J57: 64.64 | K57: 64.64 | L57: 64.64 | M57: 64.64 | N57: 64.64 | O57: 64.64 | P57: 64.64 | Q57: 64.64 | R57: - | S57: - | T57: - | U57: - | V57: -
B58: Turbina de gas | C58: 11.5 | D58: 11.5 | E58: 11.5 | F58: 11.5 | G58: 11.5 | H58: 11.5 | I58: 11.5 | J58: 11.5 | K58: 11.5 | L58: 11.5 | M58: 11.5 | N58: 11.5 | O58: 11.5 | P58: 11.5 | Q58: 11.5 | R58: - | S58: - | T58: - | U58: - | V58: -
B59: Fuel + Gas | C59: =SUM(C57:C58) -> 61.31 | D59: =SUM(D57:D58) -> 76.01 | E59: 76.14 | F59: 76.14 | G59: 76.14 | H59: 76.14 | I59: 76.14 | J59: 76.14 | K59: 76.14 | L59: 76.14 | M59: 76.14 | N59: =SUM(N57:N58) -> 76.14 | O59: 76.14 | P59: =SUM(P57:P58) -> 76.14 | Q59: 76.14 | R59: - | S59: - | T59: - | U59: - | V59: -
B60: Solar fotovoltaica | C60: 0.0075 | D60: 0.0084 | E60: 0.0579 | F60: 0.0579 | G60: 0.0579 | H60: 0.0579 | I60: 0.0579 | J60: 0.0579 | K60: 0.0579 | L60: 0.0597 | M60: 0.0597 | N60: 0.0597 | O60: 0.0597 | P60: 0.0597 | Q60: 0.0597 | R60: - | S60: - | T60: - | U60: - | V60: -
B61: Térmica no renovable/Cogeneración y resto/Cogeneración | C61: 0 | D61: 2.168 | E61: 2.168 | F61: 2.168 | G61: 2.168 | H61: 2.168 | I61: 2.168 | J61: 2.168 | K61: 2.168 | L61: - | M61: - | N61: - | O61: - | P61: - | Q61: - | R61: - | S61: - | T61: - | U61: - | V61: -
B62: Residuos no renovables | C62: - | D62: - | E62: - | F62: - | G62: - | H62: - | I62: - | J62: - | K62: - | L62: 1.084 | M62: 1.084 | N62: 1.084 | O62: 1.084 | P62: 1.084 | Q62: 1.084 | R62: - | S62: - | T62: - | U62: - | V62: -
B63: Residuos renovables | C63: - | D63: - | E63: - | F63: - | G63: - | H63: - | I63: - | J63: - | K63: - | L63: 1.084 | M63: 1.084 | N63: 1.084 | O63: 1.084 | P63: 1.084 | Q63: 1.084 | R63: - | S63: - | T63: - | U63: - | V63: -
B64: Total | C64: =SUM(C59:C62) -> 61.3175 | D64: =SUM(D59:D62) -> 78.1864 | E64: 78.3659 | F64: 78.3659 | G64: 78.3659 | H64: 78.3659 | I64: 78.3659 | J64: 78.3659 | K64: 78.3659 | L64: =SUM(L59:L63) -> 78.3677 | M64: =SUM(M59:M63) -> 78.3677 | N64: 78.3677 | O64: =SUM(O59:O63) -> 78.3677 | P64: 78.3677 | Q64: =SUM(Q59:Q63) -> 78.3677 | R64: - | S64: - | T64: - | U64: - | V64: -
B66: Potencia instalada nacional (MW) | C66: 2006 | D66: 2007 | E66: 2008 | F66: 2009 | G66: 2010 | H66: 2011 | I66: 2012 | J66: 2013 | K66: 2014 | L66: 2015 | M66: 2016 | N66: 2017 | O66: 2018 | P66: 2019 | Q66: 2020 | R66: 2021 | S66: 2022 | T66: 2023 | U66: 2024 | V66: 2025
B67: Hidráulica convencional y mixta | C67: =SUM(S3,C35) -> 14567.21 | D67: 14580.21 | E67: 14636.31 | F67: 14636.31 | G67: 14656.11 | H67: 14668.01 | I67: 14887.45 | J67: 14890.49 | K67: 14896.72 | L67: 17026.29663 | M67: =SUM(AC3,M35) -> 17030.39663 | N67: =SUM(AD3,N35) -> 17027.55963 | O67: =SUM(AE3,O35) -> 17046.37123 | P67: =SUM(AF3,P35) -> 17084.77323 | Q67: =SUM(AG3,Q35) -> 17084.77323 | R67: - | S67: - | T67: - | U67: - | V67: -
B68: Bombeo puro | C68: =S4 -> 2450.94 | D68: =T4 -> 2450.94 | E68: 2450.94 | F68: 2450.94 | G68: 2450.94 | H68: 2450.94 | I68: 2450.94 | J68: 2450.94 | K68: 2450.94 | L68: 3328.89 | M68: =AC4 -> 3328.89 | N68: =AD4 -> 3328.89 | O68: =AE4 -> 3328.89 | P68: =AF4 -> 3328.89 | Q68: =AG4 -> 3328.89 | R68: - | S68: - | T68: - | U68: - | V68: -
B69: Nuclear | C69: =S5 -> 7455.58 | D69: =T5 -> 7455.58 | E69: 7455.58 | F69: 7455.58 | G69: 7515.37 | H69: 7572.58 | I69: 7572.58 | J69: 7572.58 | K69: 7572.58 | L69: 7572.58 | M69: 7572.58 | N69: 7117.29 | O69: 7117.29 | P69: 7117.29 | Q69: 7117.29 | R69: - | S69: - | T69: - | U69: - | V69: -
B70: Carbón | C70: =SUM(S6,C20) -> 11392.7 | D70: 11326.05 | E70: 11324.8 | F70: 11324.8 | G70: 11342.35 | H70: 11571.79 | I70: 11063.87 | J70: 11078.77 | K70: 10936.42 | L70: 10936.42 | M70: =SUM(AC6,M20) -> 10004.27 | N70: =SUM(AD6,N20) -> 10004.27 | O70: =SUM(AE6,O20) -> 10030.285 | P70: =SUM(AF6,P20) -> 9683.445 | Q70: =SUM(AG6,Q20) -> 9456.245 | R70: - | S70: - | T70: - | U70: - | V70: -
B71: Fuel + Gas | C71: =SUM(S7,C23,C25,C41,C39,C53,C59) -> 8899.98 | D71: 6958.81 | E71: 6658.81 | F71: 5368.71 | G71: 4698.03 | H71: 3382.55 | I71: 3105.55 | J71: 2995.88 | K71: 2995.6 | L71: 2490.06 | M71: =SUM(AC7,M23,M25,M41,M39,M53,M59) -> 2490.06 | N71: =SUM(AD7,N23,N25,N41,N39,N53,N59) -> 2490.06 | O71: =SUM(AE7,O23,O25,O41,O39,O53,O59) -> 2490.06 | P71: =SUM(AF7,P23,P25,P41,P39,P53,P59) -> 2447.46 | Q71: =SUM(AG7,Q23,Q25,Q41,Q39,Q53,Q59) -> 2447.46 | R71: - | S71: - | T71: - | U71: - | V71: -
B72: Ciclo combinado | C72: =SUM(S8,C24,C40) -> 16358.27 | D72: 21950.86 | E72: 22652.77 | F72: 24183.96 | G72: 26572.93 | H72: 26633.88 | I72: 26669.86 | J72: 26669.86 | K72: 26669.86 | L72: 26669.86 | M72: =SUM(AC8,M24,M40) -> 26669.86 | N72: =SUM(AD8,N24,N40) -> 26669.86 | O72: =SUM(AE8,O24,O40) -> 26284.01 | P72: =SUM(AF8,P24,P40) -> 26284.01 | Q72: =SUM(AG8,Q24,Q40) -> 26284.01 | R72: - | S72: - | T72: - | U72: - | V72: -
B73: Hidroeólica | C73: =C42 -> - | D73: - | E73: - | F73: - | G73: - | H73: - | I73: - | J73: - | K73: 11.39 | L73: 11.39 | M73: =M42 -> 11.39 | N73: 11.39 | O73: 11.39 | P73: 11.39 | Q73: 11.39 | R73: - | S73: - | T73: - | U73: - | V73: -
B74: Resto hidráulica | C74: =SUM(S9,C43) -> 1796.82805 | D74: 1870.07365 | E74: 1977.73865 | F74: 2020.76965 | G74: 2031.42198 | H74: 2036.88378 | I74: 2040.39178 | J74: 2095.38478 | K74: 2095.38478 | L74: - | M74: - | N74: - | O74: - | P74: - | Q74: - | R74: - | S74: - | T74: - | U74: - | V74: -
B75: Eólica | C75: =SUM(S10,C26,C44) -> 11416.031 | D75: 13664.421 | E75: 16133.488 | F75: 18860.703 | G75: 19707.31475 | H75: 21166.89875 | I75: 22757.85335 | J75: 23009.24035 | K75: 23027.71085 | L75: 22953.90665 | M75: =SUM(AC10,M26,M44) -> 23001.35965 | N75: =SUM(AD10,N26,N44) -> 23081.76725 | O75: =SUM(AE10,O26,O44) -> 23545.3905 | P75: =SUM(AF10,P26,P44) -> 25799.1995 | Q75: =SUM(AG10,Q26,Q44) -> 25901.88486 | R75: - | S75: - | T75: - | U75: - | V75: -
B76: Solar fotovoltaica | C76: =SUM(S11,C27,C45,C60) -> 125.37531 | D76: 617.97915 | E76: 3350.54935 | F76: 3391.55668 | G76: 3829.38315 | H76: 4233.2897 | I76: 4532.31084 | J76: 4638.42408 | K76: 4645.69962 | L76: =SUM(AB11,L27,L45,L60) -> 4678.280551 | M76: =SUM(AC11,M27,M45,M60) -> 4682.868246 | N76: =SUM(AD11,N27,N45,N60) -> 4685.38299 | O76: =SUM(AE11,O27,O45,O60) -> 4711.631755 | P76: =SUM(AF11,P27,P45,P60) -> 8912.60284 | Q76: =SUM(AG11,Q27,Q45,Q60) -> 9145.77473 | R76: - | S76: - | T76: - | U76: - | V76: -
B77: Solar térmica | C77: =S12 -> 11.02 | D77: 11.02 | E77: 60.92 | F77: 232.22 | G77: 531.92 | H77: 998.52 | I77: 1949.92 | J77: 2299.4275 | K77: 2299.4275 | L77: 2304.013 | M77: =AC12 -> 2304.013 | N77: =AD12 -> 2304.013 | O77: =AE12 -> 2304.013 | P77: =AF12 -> 2304.013 | Q77: =AG12 -> 2304.013 | R77: - | S77: - | T77: - | U77: - | V77: -
B78: Térmica renovable/Otras renovables | C78: =SUM(S13,C28,C46) -> 592.6285 | D78: 612.96491 | E78: 654.06291 | F78: 781.67291 | G78: 820.35191 | H78: 886.28791 | I78: 973.93041 | J78: 949.94041 | K78: 987.46341 | L78: 882.094 | M78: =SUM(AC13,M28,M46) -> 870.401 | N78: =SUM(AD13,N28,N46) -> 872.127 | O78: =SUM(AE13,O28,O46) -> 876.798 | P78: =SUM(AF13,P28,P46) -> 1076.467 | Q78: =SUM(AG13,Q28,Q46) -> 1075.967 | R78: - | S78: - | T78: - | U78: - | V78: -
B79: Térmica no renovable/Cogeneración y resto/Cogeneración | C79: =SUM(S14,C29,C47,C61) -> 6442.0827 | D79: 6557.5921 | E79: 6810.2631 | F79: 7043.96 | G79: 7214.6912 | H79: 7296.6787 | I79: 7238.2112 | J79: 7178.9417 | K79: 7168.8632 | L79: 6146.31761 | M79: =SUM(AC14,M29,M47,M61) -> 5965.04461 | N79: =SUM(AD14,N29,N47,N61) -> 5800.95961 | O79: =SUM(AE14,O29,O47,O61) -> 5727.1265 | P79: =SUM(AF14,P29,P47,P61) -> 5676.9325 | Q79: =SUM(AG14,Q29,Q47,Q61) -> 5672.2765 | R79: - | S79: - | T79: - | U79: - | V79: -
B80: Residuos no renovables | C80: - | D80: - | E80: - | F80: - | G80: - | H80: - | I80: - | J80: - | K80: - | L80: =SUM(AB15,L30,L62) -> 508.0715 | M80: =SUM(AC15,M30,M62) -> 496.1395 | N80: =SUM(AD15,N30,N62) -> 496.1395 | O80: =SUM(AE15,O30,O62) -> 489.6115 | P80: =SUM(AF15,P30,P62) -> 489.6115 | Q80: =SUM(AG15,Q30,Q62) -> 489.6115 | R80: - | S80: - | T80: - | U80: - | V80: -
B81: Residuos renovables | C81: - | D81: - | E81: - | F81: - | G81: - | H81: - | I81: - | J81: - | K81: - | L81: 160.2755 | M81: 160.2755 | N81: 160.2755 | O81: 160.2755 | P81: 160.2755 | Q81: 160.2755 | R81: - | S81: - | T81: - | U81: - | V81: -
B82: Total | C82: =SUM(C67:C81) -> 81508.64556 | D82: =SUM(D67:D81) -> 88056.50081 | E82: 94166.23201 | F82: 97751.18224 | G82: 101370.813 | H82: 102898.3088 | I82: 105242.8676 | J82: 105829.8788 | K82: =SUM(K67:K81) -> 105758.0594 | L82: 105668.4554 | M82: 104587.5481 | N82: 104049.9845 | O82: 104123.143 | P82: 110376.3601 | Q82: =SUM(Q67:Q81) -> 110479.8613 | R82: - | S82: - | T82: - | U82: - | V82: -
B84: Potencia instalada Andalucía (MW) | C84: 2015 | D84: 2016 | E84: 2017 | F84: 2018 | G84: 2019 | H84: 2020 | I84: 2021 | J84: 2022 | K84: 2023 | L84: 2024
B85: Bombeo puro | C85: 582.88 | D85: 582.88 | E85: 582.88 | F85: 582.88 | G85: 582.88 | H85: 582.88 | I85: - | J85: - | K85: - | L85: -
B86: Hidráulica convencional y mixta | C86: 590.023 | D86: 590.553 | E86: 587.444 | F86: 587.484 | G86: 621.579 | H86: 621.579 | I86: - | J86: - | K86: - | L86: -
B87: Nuclear | C87: - | D87: - | E87: - | F87: - | G87: - | H87: - | I87: - | J87: - | K87: - | L87: -
B88: Carbón | C88: 1989.4 | D88: 1989.4 | E88: 1989.4 | F88: 1989.4 | G88: 1989.4 | H88: 1989.4 | I88: - | J88: - | K88: - | L88: -
B89: Fuel + Gas | C89: - | D89: - | E89: - | F89: - | G89: - | H89: - | I89: - | J89: - | K89: - | L89: -
B90: Ciclo combinado | C90: 5951.72 | D90: 5951.72 | E90: 5951.72 | F90: 5951.72 | G90: 5951.72 | H90: 5951.72 | I90: - | J90: - | K90: - | L90: -
B91: Eólica | C91: 3327.1805 | D91: 3327.1805 | E91: 3327.1805 | F91: 3327.1805 | G91: 3450.9055 | H91: 3450.9055 | I91: - | J91: - | K91: - | L91: -
B92: Solar fotovoltaica | C92: 874.983159 | D92: 877.647779 | E92: 878.469509 | F92: 881.891959 | G92: 1783.841539 | H92: 1954.894799 | I92: - | J92: - | K92: - | L92: -
B93: Solar térmica | C93: 1000.023 | D93: 1000.023 | E93: 1000.023 | F93: 1000.023 | G93: 1000.023 | H93: 1000.023 | I93: - | J93: - | K93: - | L93: -
B94: Térmica renovable/Otras renovables | C94: 232.26 | D94: 233.644 | E94: 229.929 | F94: 229.929 | G94: 276.862 | H94: 276.862 | I94: - | J94: - | K94: - | L94: -
B95: Térmica no renovable/Cogeneración y resto/Cogeneración | C95: 903.4805 | D95: 897.6805 | E95: 849.9585 | F95: 848.9595 | G95: 848.9595 | H95: 848.9595 | I95: - | J95: - | K95: - | L95: -
B96: Residuos no renovables | C96: 95.473 | D96: 83.541 | E96: 83.541 | F96: 83.541 | G96: 83.541 | H96: 83.541 | I96: - | J96: - | K96: - | L96: -
B97: Residuos renovables | C97: - | D97: - | E97: - | F97: - | G97: - | H97: - | I97: - | J97: - | K97: - | L97: -
B98: Total | C98: =SUM(C85:C97) -> 15547.42316 | D98: 15534.26978 | E98: 15480.54551 | F98: 15483.00896 | G98: 16589.71154 | H98: 16760.7648 | I98: - | J98: - | K98: - | L98: -
B100: Potencia instalada Aragón (MW) | C100: 2015 | D100: 2016 | E100: 2017 | F100: 2018 | G100: 2019 | H100: 2020 | I100: 2021 | J100: 2022 | K100: 2023 | L100: 2024
B101: Bombeo puro | C101: 219.14 | D101: 219.14 | E101: 219.14 | F101: 219.14 | G101: 219.14 | H101: 219.14 | I101: - | J101: - | K101: - | L101: -
B102: Hidráulica convencional y mixta | C102: 1333.8325 | D102: 1333.8325 | E102: 1333.8325 | F102: 1333.8325 | G102: 1333.8545 | H102: 1333.8545 | I102: - | J102: - | K102: - | L102: -
B103: Nuclear | C103: - | D103: - | E103: - | F103: - | G103: - | H103: - | I103: - | J103: - | K103: - | L103: -
B104: Carbón | C104: 1055.77 | D104: 1055.77 | E104: 1055.77 | F104: 1055.77 | G104: 1055.77 | H104: 1055.77 | I104: - | J104: - | K104: - | L104: -
B105: Fuel + Gas | C105: - | D105: - | E105: - | F105: - | G105: - | H105: - | I105: - | J105: - | K105: - | L105: -
B106: Ciclo combinado | C106: 1869.68 | D106: 1869.68 | E106: 1869.68 | F106: 1869.68 | G106: 1869.68 | H106: 1869.68 | I106: - | J106: - | K106: - | L106: -
B107: Eólica | C107: 1906.32 | D107: 1906.32 | E107: 1924.32 | F107: 2096.42 | G107: 3213.189 | H107: 3266.08436 | I107: - | J107: - | K107: - | L107: -
B108: Solar fotovoltaica | C108: 168.48274 | D108: 168.50274 | E108: 168.74614 | F108: 168.97914 | G108: 938.44109 | H108: 950.77901 | I108: - | J108: - | K108: - | L108: -
B109: Solar térmica | C109: - | D109: - | E109: - | F109: - | G109: - | H109: - | I109: - | J109: - | K109: - | L109: -
B110: Térmica renovable/Otras renovables | C110: 42.335 | D110: 42.335 | E110: 42.335 | F110: 42.335 | G110: 42.335 | H110: 42.335 | I110: - | J110: - | K110: - | L110: -
B111: Térmica no renovable/Cogeneración y resto/Cogeneración | C111: 493.732 | D111: 490.937 | E111: 478.227 | F111: 478.259 | G111: 478.259 | H111: 478.259 | I111: - | J111: - | K111: - | L111: -
B112: Residuos no renovables | C112: 49.9 | D112: 49.9 | E112: 49.9 | F112: 49.9 | G112: 49.9 | H112: 49.9 | I112: - | J112: - | K112: - | L112: -
B113: Residuos renovables | C113: - | D113: - | E113: - | F113: - | G113: - | H113: - | I113: - | J113: - | K113: - | L113: -
B114: Total | C114: =SUM(C101:C113) -> 7139.19224 | D114: 7136.41724 | E114: 7141.95064 | F114: 7314.31564 | G114: 9200.56859 | H114: 9265.80187 | I114: - | J114: - | K114: - | L114: -
B116: Potencia instalada Asturias (MW) | C116: 2015 | D116: 2016 | E116: 2017 | F116: 2018 | G116: 2019 | H116: 2020 | I116: 2021 | J116: 2022 | K116: 2023 | L116: 2024
B117: Bombeo puro | C117: - | D117: - | E117: - | F117: - | G117: - | H117: - | I117: - | J117: - | K117: - | L117: -
B118: Hidráulica convencional y mixta | C118: 804.7518 | D118: 804.7518 | E118: 804.7518 | F118: 804.7518 | G118: 804.7518 | H118: 804.7518 | I118: - | J118: - | K118: - | L118: -
B119: Nuclear | C119: - | D119: - | E119: - | F119: - | G119: - | H119: - | I119: - | J119: - | K119: - | L119: -
B120: Carbón | C120: 2364.59 | D120: 2073.42 | E120: 2073.42 | F120: 2099.435 | G120: 2099.435 | H120: 2099.435 | I120: - | J120: - | K120: - | L120: -
B121: Fuel + Gas | C121: - | D121: - | E121: - | F121: - | G121: - | H121: - | I121: - | J121: - | K121: - | L121: -
B122: Ciclo combinado | C122: 854.17 | D122: 854.17 | E122: 854.17 | F122: 854.17 | G122: 854.17 | H122: 854.17 | I122: - | J122: - | K122: - | L122: -
B123: Eólica | C123: 518.45 | D123: 518.45 | E123: 518.45 | F123: 518.45 | G123: 518.45 | H123: 518.45 | I123: - | J123: - | K123: - | L123: -
B124: Solar fotovoltaica | C124: 0.79043 | D124: 0.79043 | E124: 0.73653 | F124: 0.828955 | G124: 0.796485 | H124: 0.796485 | I124: - | J124: - | K124: - | L124: -
B125: Solar térmica | C125: - | D125: - | E125: - | F125: - | G125: - | H125: - | I125: - | J125: - | K125: - | L125: -
B126: Térmica renovable/Otras renovables | C126: 86.71 | D126: 86.71 | E126: 86.71 | F126: 90.86 | G126: 90.86 | H126: 90.86 | I126: - | J126: - | K126: - | L126: -
B127: Térmica no renovable/Cogeneración y resto/Cogeneración | C127: 81.517 | D127: 74.906 | E127: 68.924 | F127: 68.924 | G127: 68.924 | H127: 68.924 | I127: - | J127: - | K127: - | L127: -
B128: Residuos no renovables | C128: 74.387 | D128: 74.387 | E128: 74.387 | F128: 74.387 | G128: 74.387 | H128: 74.387 | I128: - | J128: - | K128: - | L128: -
B129: Residuos renovables | C129: - | D129: - | E129: - | F129: - | G129: - | H129: - | I129: - | J129: - | K129: - | L129: -
B130: Total | C130: =SUM(C117:C129) -> 4785.36623 | D130: 4487.58523 | E130: 4481.54933 | F130: 4511.806755 | G130: 4511.774285 | H130: 4511.774285 | I130: - | J130: - | K130: - | L130: -
B132: Potencia instalada C.Valenciana (MW) | C132: 2015 | D132: 2016 | E132: 2017 | F132: 2018 | G132: 2019 | H132: 2020 | I132: 2021 | J132: 2022 | K132: 2023 | L132: 2024
B133: Bombeo puro | C133: 1511.95 | D133: 1511.95 | E133: 1511.95 | F133: 1511.95 | G133: 1511.95 | H133: 1511.95 | I133: - | J133: - | K133: - | L133: -
B134: Hidráulica convencional y mixta | C134: 639.784 | D134: 639.784 | E134: 639.784 | F134: 639.784 | G134: 639.784 | H134: 639.784 | I134: - | J134: - | K134: - | L134: -
B135: Nuclear | C135: 1063.94 | D135: 1063.94 | E135: 1063.94 | F135: 1063.94 | G135: 1063.94 | H135: 1063.94 | I135: - | J135: - | K135: - | L135: -
B136: Carbón | C136: - | D136: - | E136: - | F136: - | G136: - | H136: - | I136: - | J136: - | K136: - | L136: -
B137: Fuel + Gas | C137: - | D137: - | E137: - | F137: - | G137: - | H137: - | I137: - | J137: - | K137: - | L137: -
B138: Ciclo combinado | C138: 2853.54 | D138: 2853.54 | E138: 2853.54 | F138: 2853.54 | G138: 2853.54 | H138: 2853.54 | I138: - | J138: - | K138: - | L138: -
B139: Eólica | C139: 1205.24 | D139: 1205.24 | E139: 1205.24 | F139: 1205.24 | G139: 1205.24 | H139: 1255.03 | I139: - | J139: - | K139: - | L139: -
B140: Solar fotovoltaica | C140: 348.085955 | D140: 348.10864 | E140: 348.255125 | F140: 360.357725 | G140: 364.315115 | H140: 364.315115 | I140: - | J140: - | K140: - | L140: -
B141: Solar térmica | C141: 49.9 | D141: 49.9 | E141: 49.9 | F141: 49.9 | G141: 49.9 | H141: 49.9 | I141: - | J141: - | K141: - | L141: -
B142: Térmica renovable/Otras renovables | C142: 14.043 | D142: 12.393 | E142: 12.893 | F142: 13.223 | G142: 13.223 | H142: 13.223 | I142: - | J142: - | K142: - | L142: -
B143: Térmica no renovable/Cogeneración y resto/Cogeneración | C143: 522.76261 | D143: 503.37061 | E143: 500.92061 | F143: 462.52 | G143: 457.785 | H143: 453.129 | I143: - | J143: - | K143: - | L143: -
B144: Residuos no renovables | C144: 63.088 | D144: 63.088 | E144: 63.088 | F144: 63.088 | G144: 63.088 | H144: 63.088 | I144: - | J144: - | K144: - | L144: -
B145: Residuos renovables | C145: - | D145: - | E145: - | F145: - | G145: - | H145: - | I145: - | J145: - | K145: - | L145: -
B146: Total | C146: =SUM(C133:C145) -> 8272.333565 | D146: 8251.31425 | E146: 8249.510735 | F146: 8223.542725 | G146: 8222.765115 | H146: 8267.899115 | I146: - | J146: - | K146: - | L146: -
B148: Potencia instalada Cantabria (MW) | C148: 2015 | D148: 2016 | E148: 2017 | F148: 2018 | G148: 2019 | H148: 2020 | I148: 2021 | J148: 2022 | K148: 2023 | L148: 2024
B149: Bombeo puro | C149: 360.6 | D149: 360.6 | E149: 360.6 | F149: 360.6 | G149: 360.6 | H149: 360.6 | I149: - | J149: - | K149: - | L149: -
B150: Hidráulica convencional y mixta | C150: 98.417 | D150: 98.842 | E150: 98.842 | F150: 98.842 | G150: 98.912 | H150: 98.912 | I150: - | J150: - | K150: - | L150: -
B151: Nuclear | C151: - | D151: - | E151: - | F151: - | G151: - | H151: - | I151: - | J151: - | K151: - | L151: -
B152: Carbón | C152: - | D152: - | E152: - | F152: - | G152: - | H152: - | I152: - | J152: - | K152: - | L152: -
B153: Fuel + Gas | C153: - | D153: - | E153: - | F153: - | G153: - | H153: - | I153: - | J153: - | K153: - | L153: -
B154: Ciclo combinado | C154: - | D154: - | E154: - | F154: - | G154: - | H154: - | I154: - | J154: - | K154: - | L154: -
B155: Eólica | C155: 35.3105 | D155: 35.3105 | E155: 35.3105 | F155: 35.3105 | G155: 35.3105 | H155: 35.3105 | I155: - | J155: - | K155: - | L155: -
B156: Solar fotovoltaica | C156: 2.099535 | D156: 2.099535 | E156: 2.173055 | F156: 2.173055 | G156: 2.173055 | H156: 2.173055 | I156: - | J156: - | K156: - | L156: -
B157: Solar térmica | C157: - | D157: - | E157: - | F157: - | G157: - | H157: - | I157: - | J157: - | K157: - | L157: -
B158: Térmica renovable/Otras renovables | C158: 12.862 | D158: 12.862 | E158: 12.862 | F158: 12.862 | G158: 12.862 | H158: 12.862 | I158: - | J158: - | K158: - | L158: -
B159: Térmica no renovable/Cogeneración y resto/Cogeneración | C159: 295.5995 | D159: 295.5995 | E159: 295.5995 | F159: 295.5995 | G159: 295.5995 | H159: 295.5995 | I159: - | J159: - | K159: - | L159: -
B160: Residuos no renovables | C160: 4.967 | D160: 4.967 | E160: 4.967 | F160: 4.967 | G160: 4.967 | H160: 4.967 | I160: - | J160: - | K160: - | L160: -
B161: Residuos renovables | C161: 4.967 | D161: 4.967 | E161: 4.967 | F161: 4.967 | G161: 4.967 | H161: 4.967 | I161: - | J161: - | K161: - | L161: -
B162: Total | C162: =SUM(C149:C161) -> 814.822535 | D162: 815.247535 | E162: 815.321055 | F162: 815.321055 | G162: 815.391055 | H162: 815.391055 | I162: - | J162: - | K162: - | L162: -
B164: Potencia instalada Castilla-La Mancha (MW) | C164: 2015 | D164: 2016 | E164: 2017 | F164: 2018 | G164: 2019 | H164: 2020 | I164: 2021 | J164: 2022 | K164: 2023 | L164: 2024
B165: Bombeo puro | C165: 215 | D165: 215 | E165: 215 | F165: 215 | G165: 215 | H165: 215 | I165: - | J165: - | K165: - | L165: -
B166: Hidráulica convencional y mixta | C166: 649.967 | D166: 650.242 | E166: 650.242 | F166: 650.242 | G166: 650.242 | H166: 650.242 | I166: - | J166: - | K166: - | L166: -
B167: Nuclear | C167: 1003.41 | D167: 1003.41 | E167: 1003.41 | F167: 1003.41 | G167: 1003.41 | H167: 1003.41 | I167: - | J167: - | K167: - | L167: -
B168: Carbón | C168: 502.64 | D168: - | E168: - | F168: - | G168: - | H168: - | I168: - | J168: - | K168: - | L168: -
B169: Fuel + Gas | C169: - | D169: - | E169: - | F169: - | G169: - | H169: - | I169: - | J169: - | K169: - | L169: -
B170: Ciclo combinado | C170: 758.74 | D170: 758.74 | E170: 758.74 | F170: 758.74 | G170: 758.74 | H170: 758.74 | I170: - | J170: - | K170: - | L170: -
B171: Eólica | C171: 3798.9292 | D171: 3798.9292 | E171: 3799.1542 | F171: 3809.5242 | G171: 3812.5242 | H171: 3812.5242 | I171: - | J171: - | K171: - | L171: -
B172: Solar fotovoltaica | C172: 923.21464 | D172: 923.2315 | E172: 924.65074 | F172: 924.8334 | G172: 1746.22667 | H172: 1791.16603 | I172: - | J172: - | K172: - | L172: -
B173: Solar térmica | C173: 349.4 | D173: 349.4 | E173: 349.4 | F173: 349.4 | G173: 349.4 | H173: 349.4 | I173: - | J173: - | K173: - | L173: -
B174: Térmica renovable/Otras renovables | C174: 88.277 | D174: 88.277 | E174: 89.34 | F174: 89.34 | G174: 140.403 | H174: 140.403 | I174: - | J174: - | K174: - | L174: -
B175: Térmica no renovable/Cogeneración y resto/Cogeneración | C175: 389.781 | D175: 379.789 | E175: 352.523 | F175: 353.472 | G175: 353.472 | H175: 353.472 | I175: - | J175: - | K175: - | L175: -
B176: Residuos no renovables | C176: 0.68 | D176: 0.68 | E176: 0.68 | F176: 0.68 | G176: 0.68 | H176: 0.68 | I176: - | J176: - | K176: - | L176: -
B177: Residuos renovables | C177: - | D177: - | E177: - | F177: - | G177: - | H177: - | I177: - | J177: - | K177: - | L177: -
B178: Total | C178: =SUM(C165:C177) -> 8680.03884 | D178: 8167.6987 | E178: 8143.13994 | F178: 8154.6416 | G178: 9030.09787 | H178: 9075.03723 | I178: - | J178: - | K178: - | L178: -
B180: Potencia instalada Castilla y León (MW) | C180: 2015 | D180: 2016 | E180: 2017 | F180: 2018 | G180: 2019 | H180: 2020 | I180: 2021 | J180: 2022 | K180: 2023 | L180: 2024
B181: Bombeo puro | C181: - | D181: - | E181: - | F181: - | G181: - | H181: - | I181: - | J181: - | K181: - | L181: -
B182: Hidráulica convencional y mixta | C182: 4398.9859 | D182: 4398.9859 | E182: 4399.2279 | F182: 4399.3155 | G182: 4399.3155 | H182: 4399.3155 | I182: - | J182: - | K182: - | L182: -
B183: Nuclear | C183: 455.29 | D183: 455.29 | E183: - | F183: - | G183: - | H183: - | I183: - | J183: - | K183: - | L183: -
B184: Carbón | C184: 2595.23 | D184: 2456.89 | E184: 2456.89 | F184: 2456.89 | G184: 2110.05 | H184: 2110.05 | I184: - | J184: - | K184: - | L184: -
B185: Fuel + Gas | C185: - | D185: - | E185: - | F185: - | G185: - | H185: - | I185: - | J185: - | K185: - | L185: -
B186: Ciclo combinado | C186: - | D186: - | E186: - | F186: - | G186: - | H186: - | I186: - | J186: - | K186: - | L186: -
B187: Eólica | C187: 5556.382 | D187: 5589.882 | E187: 5589.882 | F187: 5589.882 | G187: 6051.217 | H187: 6051.217 | I187: - | J187: - | K187: - | L187: -
B188: Solar fotovoltaica | C188: 494.27894 | D188: 494.428585 | E188: 495.03416 | F188: 495.63263 | G188: 802.722105 | H188: 802.717105 | I188: - | J188: - | K188: - | L188: -
B189: Solar térmica | C189: - | D189: - | E189: - | F189: - | G189: - | H189: - | I189: - | J189: - | K189: - | L189: -
B190: Térmica renovable/Otras renovables | C190: 60.58 | D190: 46.895 | E190: 46.895 | F190: 46.895 | G190: 96.395 | H190: 96.395 | I190: - | J190: - | K190: - | L190: -
B191: Térmica no renovable/Cogeneración y resto/Cogeneración | C191: 605.398 | D191: 595.839 | E191: 592.509 | F191: 592.509 | G191: 592.509 | H191: 592.509 | I191: - | J191: - | K191: - | L191: -
B192: Residuos no renovables | C192: - | D192: - | E192: - | F192: - | G192: - | H192: - | I192: - | J192: - | K192: - | L192: -
B193: Residuos renovables | C193: - | D193: - | E193: - | F193: - | G193: - | H193: - | I193: - | J193: - | K193: - | L193: -
B194: Total | C194: =SUM(C181:C193) -> 14166.14484 | D194: 14038.21049 | E194: 13580.43806 | F194: 13581.12413 | G194: 14052.20861 | H194: 14052.20361 | I194: - | J194: - | K194: - | L194: -
B196: Potencia instalada Cataluña (MW) | C196: 2015 | D196: 2016 | E196: 2017 | F196: 2018 | G196: 2019 | H196: 2020 | I196: 2021 | J196: 2022 | K196: 2023 | L196: 2024
B197: Bombeo puro | C197: 439.32 | D197: 439.32 | E197: 439.32 | F197: 439.32 | G197: 439.32 | H197: 439.32 | I197: - | J197: - | K197: - | L197: -
B198: Hidráulica convencional y mixta | C198: 1913.1278 | D198: 1913.1728 | E198: 1912.8128 | F198: 1912.8128 | G198: 1912.8128 | H198: 1912.8128 | I198: - | J198: - | K198: - | L198: -
B199: Nuclear | C199: 3032.81 | D199: 3032.81 | E199: 3032.81 | F199: 3032.81 | G199: 3032.81 | H199: 3032.81 | I199: - | J199: - | K199: - | L199: -
B200: Carbón | C200: - | D200: - | E200: - | F200: - | G200: - | H200: - | I200: - | J200: - | K200: - | L200: -
B201: Fuel + Gas | C201: - | D201: - | E201: - | F201: - | G201: - | H201: - | I201: - | J201: - | K201: - | L201: -
B202: Ciclo combinado | C202: 4174.08 | D202: 4174.08 | E202: 4174.08 | F202: 3788.23 | G202: 3788.23 | H202: 3788.23 | I202: - | J202: - | K202: - | L202: -
B203: Eólica | C203: 1267.01 | D203: 1268.81 | E203: 1268.81 | F203: 1271.16 | G203: 1271.16 | H203: 1271.16 | I203: - | J203: - | K203: - | L203: -
B204: Solar fotovoltaica | C204: 266.12265 | D204: 266.53075 | E204: 266.50663 | F204: 269.51598 | G204: 273.87205 | H204: 276.5377 | I204: - | J204: - | K204: - | L204: -
B205: Solar térmica | C205: 24.29 | D205: 24.29 | E205: 24.29 | F205: 24.29 | G205: 24.29 | H205: 24.29 | I205: - | J205: - | K205: - | L205: -
B206: Térmica renovable/Otras renovables | C206: 71.489 | D206: 71.814 | E206: 72.645 | F206: 72.836 | G206: 73.096 | H206: 73.096 | I206: - | J206: - | K206: - | L206: -
B207: Térmica no renovable/Cogeneración y resto/Cogeneración | C207: 1087.3135 | D207: 1043.6515 | E207: 1010.3885 | F207: 1004.394 | G207: 980.76 | H207: 980.76 | I207: - | J207: - | K207: - | L207: -
B208: Residuos no renovables | C208: 32.3745 | D208: 32.3745 | E208: 32.3745 | F208: 32.3745 | G208: 32.3745 | H208: 32.3745 | I208: - | J208: - | K208: - | L208: -
B209: Residuos renovables | C209: 27.1745 | D209: 27.1745 | E209: 27.1745 | F209: 27.1745 | G209: 27.1745 | H209: 27.1745 | I209: - | J209: - | K209: - | L209: -
B210: Total | C210: =SUM(C197:C209) -> 12335.11195 | D210: 12294.02805 | E210: 12261.21193 | F210: 11874.91778 | G210: 11855.89985 | H210: 11858.5655 | I210: - | J210: - | K210: - | L210: -
B212: Potencia instalada Extremadura (MW) | C212: 2015 | D212: 2016 | E212: 2017 | F212: 2018 | G212: 2019 | H212: 2020 | I212: 2021 | J212: 2022 | K212: 2023 | L212: 2024
B213: Bombeo puro | C213: - | D213: - | E213: - | F213: - | G213: - | H213: - | I213: - | J213: - | K213: - | L213: -
B214: Hidráulica convencional y mixta | C214: 2277.8123 | D214: 2277.8123 | E214: 2277.8123 | F214: 2277.8123 | G214: 2277.8123 | H214: 2277.8123 | I214: - | J214: - | K214: - | L214: -
B215: Nuclear | C215: 2017.13 | D215: 2017.13 | E215: 2017.13 | F215: 2017.13 | G215: 2017.13 | H215: 2017.13 | I215: - | J215: - | K215: - | L215: -
... 101 more rows

Sheet Año (hidden)
Y1: 1
B2: 1990-1999 | C2: 2006-2015 | D2: 2015-2024 | O2: Nacional
B3: 2000-2009 | C3: 2016-2025 | O3: Peninsular
B4: 2010-2019 | O4: Canarias
B5: 2020-2029 | O5: Baleares
O6: Ceuta
O7: Melilla
O8: --------------------
O9: Andalucía
O10: Aragón
O11: Asturias
O12: C.Valenciana
O13: Cantabria
O14: Castilla-La Mancha
O15: Castilla y León
O16: Cataluña
O17: Extremadura
O18: Galicia
O19: La Rioja
O20: Madrid
O21: Murcia
O22: Navarra
O23: País Vasco
